Workbook

Sheet 1. Information Sheet
U1: a | AA1: =IF(OR(F16="", F16="(if applicable)"), F14, F14 & " - " & F16) -> Kingston Hydro Corporation
M12: Version | N12: 1.1
E14: Utility Name | F14: Kingston Hydro Corporation
E16: Service Territory
E18: Assigned EB Number | F18: EB-2014-0088
E20: Name of Contact and Title | F20: Sherry Gibson, Senior Advisor Rates and Regulatory Affairs
E22: Phone Number | F22: 613.546.1181 ext. 2383
E24: Email Address | F24: sgibson@utilitieskingston.com
E26: We are applying for rates effective | F26: 2015-05-01
E28: Rate-Setting Method | F28: Price Cap IR
A30: Please indicate in which Rate Year the Group 1 accounts were last cleared1 | F30: 2014
A32: Please indicate the last Cost of Service Re-Basing Year | F32: 2011
B35: Notes
C37: Pale green cells represent input cells.
C39: Pale blue cells represent drop-down lists. The applicant should select the appropriate item from the drop-down list.
C41: White cells contain fixed values, automatically generated values or formulae.
A44: Note: 1. Rate year of application

Sheet 2. Related Links
A13: ● | B13: Ontario Energy Board's 2015 Electricity Distribution Rates Webpage
A15: ● | B15: An updated version of Chapter 3 of the Filing Requirements for Electricity Distribution Rate Applications for 2015 rates.

Sheet 3. Rate Class Selection
A12: Select the appropriate rate classes as they appear on your most recent Board-Approved Tariff of Rates and Charges, including the MicroFit Class.
A14: How many classes are on your most recent Board-Approved Tariff of Rates and Charges? | J14: 8
A16: Select Your Rate Classes from the Blue Cells below. Please ensure that a rate class is assigned to each shaded cell.
B18: Rate Class Classification | Q18: # of duplicates
A19: 1 | B19: RESIDENTIAL | P19: =COUNTIF($B$19:$J$40, B19) -> 1 | Q19: =COUNTIF(P19:P40, 2)/2 -> 0
A20: 2 | B20: GENERAL SERVICE LESS THAN 50 KW | P20: =COUNTIF($B$19:$J$40, B20) -> 1
A21: 3 | B21: GENERAL SERVICE 50 TO 4,999 KW | P21: 1
A22: 4 | B22: LARGE USE | P22: 1
A23: 5 | B23: UNMETERED SCATTERED LOAD | P23: 1
A24: 6 | B24: STANDBY POWER - APPROVED ON AN INTERIM BASIS | P24: 1
A25: 7 | B25: STREET LIGHTING | P25: 1
A26: 8 | B26: microFIT | P26: 1
P27: 0
P28: 0
P29: 0
P30: 0
P31: 0
P32: 0
P33: 0

Sheet 4. Current Tariff Schedule
Z1: 3 | AA1: January | AB1: ≥
AA2: February
AA3: March
AA4: April
AA5: May
AA6: June
AA7: July
AA8: August
AA9: September
AA10: October
AA11: November
B12: For each class, Applicants are required to copy and paste the class descriptions (located directly under the class name) and the description of the applicability of those rates (description is found under the class name and directly under the word "APPLICATION"). By using the drop-down lists located under the column labeled "Rate Description", please select the descriptions of the rates and charges that BEST MATCHES the descriptions on your most recent Board-Approved Tariff of Rates and Charges. If the description is not found in the drop-down list, please enter the description in the green cells under the correct class exactly as it appears on the tariff. Please do not enter more than one "Service Charge" for each class for which a base monthly fixed charge applies. | AA12: December
B21: =IF(ISBLANK('1. Information Sheet'!F14), "Please Choose Distributor Name on Sheet 1", '1. Information Sheet'!F14) -> Kingston Hydro Corporation
B22: TARIFF OF RATES AND CHARGES
A24: RESIDENTIAL | B24: RESIDENTIAL Service Classification
A25: RESIDENTIAL
A26: RESIDENTIAL | B26: This classification applies to an account taking electricity at 750 volts or less where the electricity is used exclusively in a separate metered living accommodation. Customers shall be residing in single-dwelling units that consist of a detached house or one unit of a semi-detached, duplex, triplex or quadruplex house, with a residential zoning. Separately metered dwellings within a town house complex or apartment building also qualify as residential customers. All customers are single-phase. Further servicing details are available in the distributor's Conditions of Service.
A27: RESIDENTIAL
A28: RESIDENTIAL
A29: RESIDENTIAL
A30: RESIDENTIAL
A31: RESIDENTIAL
A32: RESIDENTIAL | B32: APPLICATION
A33: RESIDENTIAL
A34: RESIDENTIAL | B34: The application of these rates and charges shall be in accordance with the Licence of the Distributor and any Code or Order of the Board, and amendments thereto as approved by the Board, which may be applicable to the administration of this schedule.
A35: RESIDENTIAL
A36: RESIDENTIAL
A37: RESIDENTIAL | B37: No rates and charges for the distribution of electricity and charges to meet the costs of any work or service done or furnished for the purpose of the distribution of electricity shall be made except as permitted by this schedule, unless required by the Distributor's Licence or a Code or Order of the Board, and amendments thereto as approved by the Board, or as specified herein.
A38: RESIDENTIAL
A39: RESIDENTIAL
A40: RESIDENTIAL
A41: RESIDENTIAL | B41: Unless specifically noted, this schedule does not contain any charges for the electricity commodity, be it under the Regulated Price Plan, a contract with a retailer or the wholesale market price, as applicable. In addition, the charges in the MONTHLY RATES AND CHARGES - Regulatory Component of this schedule do not apply to a customer that is an embedded wholesale market participant.
A42: RESIDENTIAL
A43: RESIDENTIAL
A44: RESIDENTIAL | B44: It should be noted that this schedule does not list any changes, assessments or credits that are required by law to be invoiced by a distributor and that are not subject to Board approval, such as the Debt Retirement Charge, the Global Adjustment, the Ontario Clean Energy Benefit and the HST.
A45: RESIDENTIAL
A46: RESIDENTIAL
A47: RESIDENTIAL
A48: RESIDENTIAL | B48: MONTHLY RATES AND CHARGES - Delivery Component (If applicable, Effective Date MUST be included in rate description)
A49: RESIDENTIAL | B49: Service Charge | H49: $ | I49: 12.4 | K49: 1_C_MSC
A50: RESIDENTIAL | B50: Rate Rider for Recovery of Smart Meter Incremental Revenue Requirement - in effect until the effective date of the next cost of service-based rate order | H50: $ | I50: 2.63 | K50: 1_C_MSC_Rate_Rider_1
A51: RESIDENTIAL | B51: Rate Rider for Smart Metering Entity Charge - effective until October 31, 2018 | H51: $ | I51: 0.79 | K51: 1_C_SMEC | L51: 2018-10-31
A52: RESIDENTIAL | B52: Distribution Volumetric Rate | H52: $/kWh | I52: 0.0152 | K52: 1_C_VC_1
A53: RESIDENTIAL | B53: Low Voltage Service Rate | H53: $/kWh | I53: 0.0007 | K53: 1_C_LVrate
A54: RESIDENTIAL | B54: Rate Rider for Incremental Capital (2012) - effective until April 30, 2015 | H54: $/kWh | I54: 0.0007 | K54: 1_C_VC_Rate_Rider_kWh_1 | L54: 2015-04-30
A55: RESIDENTIAL | B55: Rate Rider for Deferral/Variance Account Disposition (2014) - effective until April 30, 2015 | H55: $/kWh | I55: -0.0005 | K55: 1_C_VC_DEFVAR_kWh_1 | L55: 2015-04-30
A56: RESIDENTIAL | B56: Rate Rider for Global Adjustment Sub-Account Disposition (2014) - effective until April 30, 2015 Applicable only for Non-RPP Customers | H56: $/kWh | I56: 0.0073 | K56: 1_C_VC_GA_Rate_Rider_kWh_1 | L56: 2015-04-30
A57: RESIDENTIAL | B57: Rate Rider for Tax Change (2014) - effective until April 30, 2015 | H57: $/kWh | I57: -0.0001 | K57: 1_C_VC_Rate_Rider_kWh_3 | L57: 2015-04-30
A58: RESIDENTIAL | B58: Retail Transmission Rate - Network Service Rate | H58: $/kWh | I58: 0.0072 | K58: 1_C_RTSR_Network
A59: RESIDENTIAL | B59: Retail Transmission Rate - Line and Transformation Connection Service Rate | H59: $/kWh | I59: 0.0055 | K59: 1_C_RTSR_Connection
A60: RESIDENTIAL
A61: RESIDENTIAL
A62: RESIDENTIAL
A63: RESIDENTIAL
A64: RESIDENTIAL
A65: RESIDENTIAL
A66: RESIDENTIAL
A67: RESIDENTIAL
A68: RESIDENTIAL
A69: RESIDENTIAL
A70: RESIDENTIAL
A71: RESIDENTIAL
A72: RESIDENTIAL
A73: RESIDENTIAL
A74: RESIDENTIAL
A75: RESIDENTIAL
A76: RESIDENTIAL
A77: RESIDENTIAL
A78: RESIDENTIAL
A79: RESIDENTIAL | B79: MONTHLY RATES AND CHARGES - Regulatory Component
A80: RESIDENTIAL
A81: RESIDENTIAL | B81: Wholesale Market Service Rate | H81: $/kWh | I81: 0.0044 | K81: 1_C_WMSR
A82: RESIDENTIAL | B82: Rural or Remote Electricity Rate Protection Charge (RRRP) | H82: $/kWh | I82: 0.0013 | K82: 1_C_RRPC
A83: RESIDENTIAL | B83: Standard Supply Service - Administrative Charge (if applicable) | H83: $ | I83: 0.25 | K83: 1_C_SSS
A84: RESIDENTIAL
A87: GENERAL SERVICE LESS THAN 50 KW | B87: GENERAL SERVICE LESS THAN 50 KW Service Classification
A88: GENERAL SERVICE LESS THAN 50 KW
A89: GENERAL SERVICE LESS THAN 50 KW | B89: This classification refers to a non residential account taking electricity at 750 volts or less whose monthly average peak demand is less than, or is forecast to be less than, 50 kW. Further servicing details are available in the distributor's Conditions of Service.
A90: GENERAL SERVICE LESS THAN 50 KW
A91: GENERAL SERVICE LESS THAN 50 KW
A92: GENERAL SERVICE LESS THAN 50 KW
A93: GENERAL SERVICE LESS THAN 50 KW
A94: GENERAL SERVICE LESS THAN 50 KW
A95: GENERAL SERVICE LESS THAN 50 KW | B95: APPLICATION
A96: GENERAL SERVICE LESS THAN 50 KW
A97: GENERAL SERVICE LESS THAN 50 KW | B97: The application of these rates and charges shall be in accordance with the Licence of the Distributor and any Code or Order of the Board, and amendments thereto as approved by the Board, which may be applicable to the administration of this schedule.
A98: GENERAL SERVICE LESS THAN 50 KW
A99: GENERAL SERVICE LESS THAN 50 KW
A100: GENERAL SERVICE LESS THAN 50 KW | B100: No rates and charges for the distribution of electricity and charges to meet the costs of any work or service done or furnished for the purpose of the distribution of electricity shall be made except as permitted by this schedule, unless required by the Distributor's Licence or a Code or Order of the Board, and amendments thereto as approved by the Board, or as specified herein.
A101: GENERAL SERVICE LESS THAN 50 KW
A102: GENERAL SERVICE LESS THAN 50 KW
A103: GENERAL SERVICE LESS THAN 50 KW
A104: GENERAL SERVICE LESS THAN 50 KW | B104: Unless specifically noted, this schedule does not contain any charges for the electricity commodity, be it under the Regulated Price Plan, a contract with a retailer or the wholesale market price, as applicable. In addition, the charges in the MONTHLY RATES AND CHARGES - Regulatory Component of this schedule do not apply to a customer that is an embedded wholesale market participant.
A105: GENERAL SERVICE LESS THAN 50 KW
A106: GENERAL SERVICE LESS THAN 50 KW
A107: GENERAL SERVICE LESS THAN 50 KW | B107: It should be noted that this schedule does not list any changes, assessments or credits that are required by law to be invoiced by a distributor and that are not subject to Board approval, such as the Debt Retirement Charge, the Global Adjustment, the Ontario Clean Energy Benefit and the HST.
A108: GENERAL SERVICE LESS THAN 50 KW
A109: GENERAL SERVICE LESS THAN 50 KW
A110: GENERAL SERVICE LESS THAN 50 KW
A111: GENERAL SERVICE LESS THAN 50 KW | B111: MONTHLY RATES AND CHARGES - Delivery Component (If applicable, Effective Date MUST be included in rate description)
A112: GENERAL SERVICE LESS THAN 50 KW | B112: Service Charge | H112: $ | I112: 25.52 | K112: 2_C_MSC
A113: GENERAL SERVICE LESS THAN 50 KW | B113: Rate Rider for Recovery of Smart Meter Incremental Revenue Requirement - in effect until the effective date of the next cost of service-based rate order | H113: $ | I113: 3.65 | K113: 2_C_MSC_Rate_Rider_1
A114: GENERAL SERVICE LESS THAN 50 KW | B114: Rate Rider for Smart Metering Entity Charge - effective until October 31, 2018 | H114: $ | I114: 0.79 | K114: 2_C_SMEC | L114: 2018-10-31
A115: GENERAL SERVICE LESS THAN 50 KW | B115: Distribution Volumetric Rate | H115: $/kWh | I115: 0.0105 | K115: 2_C_VC_1
A116: GENERAL SERVICE LESS THAN 50 KW | B116: Low Voltage Service Rate | H116: $/kWh | I116: 0.0006 | K116: 2_C_LVrate
A117: GENERAL SERVICE LESS THAN 50 KW | B117: Rate Rider for Incremental Capital (2012) - effective until April 30, 2015 | H117: $/kWh | I117: 0.0005 | K117: 2_C_VC_Rate_Rider_kWh_1 | L117: 2015-04-30
A118: GENERAL SERVICE LESS THAN 50 KW | B118: Rate Rider for Deferral/Variance Account Disposition (2014) - effective until April 30, 2015 | H118: $/kWh | I118: -0.0003 | K118: 2_C_VC_DEFVAR_kWh_1 | L118: 2015-04-30
A119: GENERAL SERVICE LESS THAN 50 KW | B119: Rate Rider for Global Adjustment Sub-Account Disposition (2014) - effective until April 30, 2015 Applicable only for Non-RPP Customers | H119: $/kWh | I119: 0.0073 | K119: 2_C_VC_GA_Rate_Rider_kWh_1 | L119: 2015-04-30
A120: GENERAL SERVICE LESS THAN 50 KW | B120: Rate Rider for Tax Change (2014) - effective until April 30, 2015 | H120: $/kWh | I120: -0.0001 | K120: 2_C_VC_Rate_Rider_kWh_3 | L120: 2015-04-30
A121: GENERAL SERVICE LESS THAN 50 KW | B121: Retail Transmission Rate - Network Service Rate | H121: $/kWh | I121: 0.0065 | K121: 2_C_RTSR_Network
A122: GENERAL SERVICE LESS THAN 50 KW | B122: Retail Transmission Rate - Line and Transformation Connection Service Rate | H122: $/kWh | I122: 0.005 | K122: 2_C_RTSR_Connection
A123: GENERAL SERVICE LESS THAN 50 KW
A124: GENERAL SERVICE LESS THAN 50 KW
A125: GENERAL SERVICE LESS THAN 50 KW
A126: GENERAL SERVICE LESS THAN 50 KW
A127: GENERAL SERVICE LESS THAN 50 KW
A128: GENERAL SERVICE LESS THAN 50 KW
A129: GENERAL SERVICE LESS THAN 50 KW
A130: GENERAL SERVICE LESS THAN 50 KW
A131: GENERAL SERVICE LESS THAN 50 KW
A132: GENERAL SERVICE LESS THAN 50 KW
A133: GENERAL SERVICE LESS THAN 50 KW
A134: GENERAL SERVICE LESS THAN 50 KW
A135: GENERAL SERVICE LESS THAN 50 KW
A136: GENERAL SERVICE LESS THAN 50 KW
A137: GENERAL SERVICE LESS THAN 50 KW
A138: GENERAL SERVICE LESS THAN 50 KW
A139: GENERAL SERVICE LESS THAN 50 KW
A140: GENERAL SERVICE LESS THAN 50 KW
A141: GENERAL SERVICE LESS THAN 50 KW
A142: GENERAL SERVICE LESS THAN 50 KW | B142: MONTHLY RATES AND CHARGES - Regulatory Component
A143: GENERAL SERVICE LESS THAN 50 KW
A144: GENERAL SERVICE LESS THAN 50 KW | B144: Wholesale Market Service Rate | H144: =H81 -> $/kWh | I144: 0.0044 | K144: 2_C_WMSR
A145: GENERAL SERVICE LESS THAN 50 KW | B145: Rural or Remote Electricity Rate Protection Charge (RRRP) | H145: $/kWh | I145: 0.0013 | K145: 2_C_RRPC
A146: GENERAL SERVICE LESS THAN 50 KW | B146: Standard Supply Service - Administrative Charge (if applicable) | H146: $ | I146: 0.25 | K146: 2_C_SSS
A147: GENERAL SERVICE LESS THAN 50 KW
A150: GENERAL SERVICE 50 TO 4,999 KW | B150: GENERAL SERVICE 50 TO 4,999 KW Service Classification
A151: GENERAL SERVICE 50 TO 4,999 KW
A152: GENERAL SERVICE 50 TO 4,999 KW | B152: This classification refers to a non residential account whose monthly average peak demand is equal to or greater than, or is forecast to be equal to or greater than, 50 kW but less than 5,000 kW. Further servicing details are available in th distributor's Conditions of Service.
A153: GENERAL SERVICE 50 TO 4,999 KW
A154: GENERAL SERVICE 50 TO 4,999 KW
A155: GENERAL SERVICE 50 TO 4,999 KW
A156: GENERAL SERVICE 50 TO 4,999 KW
A157: GENERAL SERVICE 50 TO 4,999 KW
A158: GENERAL SERVICE 50 TO 4,999 KW | B158: APPLICATION
A159: GENERAL SERVICE 50 TO 4,999 KW
A160: GENERAL SERVICE 50 TO 4,999 KW | B160: The application of these rates and charges shall be in accordance with the Licence of the Distributor and any Code or Order of the Board, and amendments thereto as approved by the Board, which may be applicable to the administration of this schedule.
A161: GENERAL SERVICE 50 TO 4,999 KW
A162: GENERAL SERVICE 50 TO 4,999 KW
A163: GENERAL SERVICE 50 TO 4,999 KW | B163: No rates and charges for the distribution of electricity and charges to meet the costs of any work or service done or furnished for the purpose of the distribution of electricity shall be made except as permitted by this schedule, unless required by the Distributor's Licence or a Code or Order of the Board, and amendments thereto as approved by the Board, or as specified herein.
A164: GENERAL SERVICE 50 TO 4,999 KW
A165: GENERAL SERVICE 50 TO 4,999 KW
A166: GENERAL SERVICE 50 TO 4,999 KW
A167: GENERAL SERVICE 50 TO 4,999 KW | B167: Unless specifically noted, this schedule does not contain any charges for the electricity commodity, be it under the Regulated Price Plan, a contract with a retailer or the wholesale market price, as applicable. In addition, the charges in the MONTHLY RATES AND CHARGES - Regulatory Component of this schedule do not apply to a customer that is an embedded wholesale market participant.
A168: GENERAL SERVICE 50 TO 4,999 KW
A169: GENERAL SERVICE 50 TO 4,999 KW
A170: GENERAL SERVICE 50 TO 4,999 KW | B170: It should be noted that this schedule does not list any changes, assessments or credits that are required by law to be invoiced by a distributor and that are not subject to Board approval, such as the Debt Retirement Charge, the Global Adjustment, the Ontario Clean Energy Benefit and the HST.
A171: GENERAL SERVICE 50 TO 4,999 KW
A172: GENERAL SERVICE 50 TO 4,999 KW
A173: GENERAL SERVICE 50 TO 4,999 KW
A174: GENERAL SERVICE 50 TO 4,999 KW | B174: MONTHLY RATES AND CHARGES - Delivery Component (If applicable, Effective Date MUST be included in rate description)
A175: GENERAL SERVICE 50 TO 4,999 KW | B175: Service Charge | H175: $ | I175: 276.5 | K175: 3_C_MSC
A176: GENERAL SERVICE 50 TO 4,999 KW | B176: Distribution Volumetric Rate | H176: $/kW | I176: 1.9806 | K176: 3_C_VC_1
A177: GENERAL SERVICE 50 TO 4,999 KW | B177: Low Voltage Service Rate | H177: $/kW | I177: 0.252 | K177: 3_C_LVrate
A178: GENERAL SERVICE 50 TO 4,999 KW | B178: Rate Rider for Incremental Capital (2012) - effective until April 30, 2015 | H178: $/kW | I178: 0.0776 | K178: 3_C_VC_Rate_Rider_kW_1 | L178: 2015-04-30
A179: GENERAL SERVICE 50 TO 4,999 KW | B179: Rate Rider for Deferral/Variance Account Disposition (2014) - effective until April 30, 2015 | H179: $/kW | I179: -0.0861 | K179: 3_C_VC_DEFVAR_kW_1 | L179: 2015-04-30
A180: GENERAL SERVICE 50 TO 4,999 KW | B180: Rate Rider for Global Adjustment Sub-Account Disposition (2014) - effective until April 30, 2015 Applicable only for Non-RPP Customers | H180: $/kW | I180: 2.6877 | K180: 3_C_VC_GA_Rate_Rider_kW_1 | L180: 2015-04-30
A181: GENERAL SERVICE 50 TO 4,999 KW | B181: Rate Rider for Tax Change (2014) - effective until April 30, 2015 | H181: $/kW | I181: -0.0099 | K181: 3_C_VC_Rate_Rider_kW_3 | L181: 2015-04-30
A182: GENERAL SERVICE 50 TO 4,999 KW | B182: Retail Transmission Rate - Network Service Rate | H182: $/kW | I182: 2.8319 | K182: 3_C_RTSR_Network
A183: GENERAL SERVICE 50 TO 4,999 KW | B183: Retail Transmission Rate - Line and Transformation Connection Service Rate | H183: $/kW | I183: 2.1693 | K183: 3_C_RTSR_Connection
A184: GENERAL SERVICE 50 TO 4,999 KW
A185: GENERAL SERVICE 50 TO 4,999 KW
A186: GENERAL SERVICE 50 TO 4,999 KW
A187: GENERAL SERVICE 50 TO 4,999 KW
A188: GENERAL SERVICE 50 TO 4,999 KW
A189: GENERAL SERVICE 50 TO 4,999 KW
A190: GENERAL SERVICE 50 TO 4,999 KW
A191: GENERAL SERVICE 50 TO 4,999 KW
A192: GENERAL SERVICE 50 TO 4,999 KW
A193: GENERAL SERVICE 50 TO 4,999 KW
A194: GENERAL SERVICE 50 TO 4,999 KW
A195: GENERAL SERVICE 50 TO 4,999 KW
A196: GENERAL SERVICE 50 TO 4,999 KW
A197: GENERAL SERVICE 50 TO 4,999 KW
A198: GENERAL SERVICE 50 TO 4,999 KW
A199: GENERAL SERVICE 50 TO 4,999 KW
A200: GENERAL SERVICE 50 TO 4,999 KW
A201: GENERAL SERVICE 50 TO 4,999 KW
A202: GENERAL SERVICE 50 TO 4,999 KW
A203: GENERAL SERVICE 50 TO 4,999 KW
A204: GENERAL SERVICE 50 TO 4,999 KW
A205: GENERAL SERVICE 50 TO 4,999 KW | B205: MONTHLY RATES AND CHARGES - Regulatory Component
A206: GENERAL SERVICE 50 TO 4,999 KW
A207: GENERAL SERVICE 50 TO 4,999 KW | B207: Wholesale Market Service Rate | H207: =H81 -> $/kWh | I207: 0.0044 | K207: 3_C_WMSR
A208: GENERAL SERVICE 50 TO 4,999 KW | B208: Rural or Remote Electricity Rate Protection Charge (RRRP) | H208: $/kWh | I208: 0.0013 | K208: 3_C_RRPC
A209: GENERAL SERVICE 50 TO 4,999 KW | B209: Standard Supply Service - Administrative Charge (if applicable) | H209: $ | I209: 0.25 | K209: 3_C_SSS
A210: GENERAL SERVICE 50 TO 4,999 KW
A213: LARGE USE | B213: LARGE USE Service Classification
A214: LARGE USE
A215: LARGE USE | B215: This classification refers to an account whose monthly average peak demand is equal to or greater than, or is forecast to be equal to or greater than, 5,000 kW. Further servicing details are available in the distributor's Conditions of Service.
... 296 more rows

Sheet 4. Hidden (hidden)
M1: Current Rate Classes | N1: Changed to Rate Classes | O1: Values in A that are NOT in B | P1: Values in B that are Not in A | Q1: Count of A | R1: Count of B
M2: RESIDENTIAL | N2: RESIDENTIAL | Q2: 8 | R2: 8
M3: GENERAL SERVICE LESS THAN 50 KW | N3: GENERAL SERVICE LESS THAN 50 KW
M4: GENERAL SERVICE 50 TO 4,999 KW | N4: GENERAL SERVICE 50 TO 4,999 KW
M5: LARGE USE | N5: LARGE USE
M6: UNMETERED SCATTERED LOAD | N6: UNMETERED SCATTERED LOAD
M7: STANDBY POWER - APPROVED ON AN INTERIM BASIS | N7: STANDBY POWER - APPROVED ON AN INTERIM BASIS
M8: STREET LIGHTING | N8: STREET LIGHTING
M9: microFIT | N9: microFIT
A24: RESIDENTIAL | B24: RESIDENTIAL Service Classification
A25: RESIDENTIAL
A26: RESIDENTIAL
A27: RESIDENTIAL
A28: RESIDENTIAL
A29: RESIDENTIAL
A30: RESIDENTIAL
A31: RESIDENTIAL
A32: RESIDENTIAL | B32: APPLICATION
A33: RESIDENTIAL
A34: RESIDENTIAL
A35: RESIDENTIAL
A36: RESIDENTIAL
A37: RESIDENTIAL
A38: RESIDENTIAL
A39: RESIDENTIAL
A40: RESIDENTIAL
A41: RESIDENTIAL
A42: RESIDENTIAL
A43: RESIDENTIAL
A44: RESIDENTIAL
A45: RESIDENTIAL
A46: RESIDENTIAL
A47: RESIDENTIAL
A48: RESIDENTIAL | B48: MONTHLY RATES AND CHARGES - Delivery Component (If applicable, Effective Date MUST be included in rate description)
A49: RESIDENTIAL
A50: RESIDENTIAL
A51: RESIDENTIAL
A52: RESIDENTIAL
A53: RESIDENTIAL
A54: RESIDENTIAL
A55: RESIDENTIAL
A56: RESIDENTIAL
A57: RESIDENTIAL
A58: RESIDENTIAL
A59: RESIDENTIAL
A60: RESIDENTIAL
A61: RESIDENTIAL
A62: RESIDENTIAL
A63: RESIDENTIAL
A64: RESIDENTIAL
A65: RESIDENTIAL
A66: RESIDENTIAL
A67: RESIDENTIAL
A68: RESIDENTIAL
A69: RESIDENTIAL
A70: RESIDENTIAL
A71: RESIDENTIAL
A72: RESIDENTIAL
A73: RESIDENTIAL
A74: RESIDENTIAL
A75: RESIDENTIAL
A76: RESIDENTIAL
A77: RESIDENTIAL
A78: RESIDENTIAL
A79: RESIDENTIAL | B79: MONTHLY RATES AND CHARGES - Regulatory Component
A80: RESIDENTIAL
A81: RESIDENTIAL | B81: Wholesale Market Service Rate | H81: $/kWh | I81: 0.0044
A82: RESIDENTIAL | B82: Rural or Remote Electricity Rate Protection Charge (RRRP) | H82: $/kWh | I82: 0.0013
A83: RESIDENTIAL | B83: Standard Supply Service - Administrative Charge (if applicable) | H83: $ | I83: 0.25
A84: RESIDENTIAL
A87: STREET LIGHTING | B87: STREET LIGHTING Service Classification
A88: STREET LIGHTING
A89: STREET LIGHTING
A90: STREET LIGHTING
A91: STREET LIGHTING
A92: STREET LIGHTING
A93: STREET LIGHTING
A94: STREET LIGHTING
A95: STREET LIGHTING | B95: APPLICATION
A96: STREET LIGHTING
A97: STREET LIGHTING
A98: STREET LIGHTING
A99: STREET LIGHTING
A100: STREET LIGHTING
A101: STREET LIGHTING
A102: STREET LIGHTING
A103: STREET LIGHTING
A104: STREET LIGHTING
A105: STREET LIGHTING
A106: STREET LIGHTING
A107: STREET LIGHTING
A108: STREET LIGHTING
A109: STREET LIGHTING
A110: STREET LIGHTING
A111: STREET LIGHTING | B111: MONTHLY RATES AND CHARGES - Delivery Component (If applicable, Effective Date MUST be included in rate description)
A112: STREET LIGHTING
A113: STREET LIGHTING
A114: STREET LIGHTING
A115: STREET LIGHTING
A116: STREET LIGHTING
A117: STREET LIGHTING
A118: STREET LIGHTING
A119: STREET LIGHTING
A120: STREET LIGHTING
A121: STREET LIGHTING
A122: STREET LIGHTING
A123: STREET LIGHTING
A124: STREET LIGHTING
A125: STREET LIGHTING
A126: STREET LIGHTING
A127: STREET LIGHTING
A128: STREET LIGHTING
A129: STREET LIGHTING
A130: STREET LIGHTING
A131: STREET LIGHTING
A132: STREET LIGHTING
A133: STREET LIGHTING
A134: STREET LIGHTING
A135: STREET LIGHTING
A136: STREET LIGHTING
A137: STREET LIGHTING
A138: STREET LIGHTING
A139: STREET LIGHTING
A140: STREET LIGHTING
A141: STREET LIGHTING
A142: STREET LIGHTING | B142: MONTHLY RATES AND CHARGES - Regulatory Component
A143: STREET LIGHTING
A144: STREET LIGHTING | B144: Wholesale Market Service Rate | H144: $/kWh | I144: 0.0044
A145: STREET LIGHTING | B145: Rural or Remote Electricity Rate Protection Charge (RRRP) | H145: $/kWh | I145: 0.0013
A146: STREET LIGHTING | B146: Standard Supply Service - Administrative Charge (if applicable) | H146: $ | I146: 0.25
A147: STREET LIGHTING
A150: STANDBY POWER | B150: STANDBY POWER Service Classification
A151: STANDBY POWER
A152: STANDBY POWER
A153: STANDBY POWER
A154: STANDBY POWER
A155: STANDBY POWER
A156: STANDBY POWER
A157: STANDBY POWER
A158: STANDBY POWER | B158: APPLICATION
A159: STANDBY POWER
A160: STANDBY POWER
A161: STANDBY POWER
A162: STANDBY POWER
A163: STANDBY POWER
A164: STANDBY POWER
A165: STANDBY POWER
A166: STANDBY POWER
A167: STANDBY POWER
A168: STANDBY POWER
A169: STANDBY POWER
A170: STANDBY POWER
A171: STANDBY POWER
A172: STANDBY POWER
A173: STANDBY POWER
A174: STANDBY POWER | B174: MONTHLY RATES AND CHARGES - Delivery Component (If applicable, Effective Date MUST be included in rate description)
A175: STANDBY POWER
A176: STANDBY POWER
A177: STANDBY POWER
A178: STANDBY POWER
A179: STANDBY POWER
A180: STANDBY POWER
A181: STANDBY POWER
A182: STANDBY POWER
A183: STANDBY POWER
A184: STANDBY POWER
A185: STANDBY POWER
A186: STANDBY POWER
A187: STANDBY POWER
A188: STANDBY POWER
A189: STANDBY POWER
A190: STANDBY POWER
A191: STANDBY POWER
A192: STANDBY POWER
A193: STANDBY POWER
A194: STANDBY POWER
A195: STANDBY POWER
A196: STANDBY POWER
A197: STANDBY POWER
A198: STANDBY POWER
A199: STANDBY POWER
A200: STANDBY POWER
A201: STANDBY POWER
A202: STANDBY POWER
A203: STANDBY POWER
A204: STANDBY POWER
A205: STANDBY POWER | B205: MONTHLY RATES AND CHARGES - Regulatory Component
A206: STANDBY POWER
A207: STANDBY POWER | B207: Wholesale Market Service Rate | H207: =H81 -> $/kWh | I207: 0.0044
A208: STANDBY POWER | B208: Rural or Remote Electricity Rate Protection Charge (RRRP) | H208: $/kWh | I208: 0.0013
A209: STANDBY POWER | B209: Standard Supply Service - Administrative Charge (if applicable) | H209: $ | I209: 0.25
A210: STANDBY POWER

Sheet 5. 2014 Continuity Schedule
C15: Please complete the following continuity schedule for the following Deferral / Variance Accounts. Enter information into green cells only. If you have received approval to dispose of balances from prior years, the starting point for entries in the 2015 DVA schedule below will be the balance sheet date as per your G/L for which you received approval. For example, if in the 2014 EDR process (CoS or IRM) you received approval for the December 31, 2012 balances, the starting point for your entries below should be the 2011 year. This will allow for the correct starting point for the 2012 opening balance columns for both principal and interest. Please refer to the footnotes for further instructions.
E19: 2010 | O19: 2011 | Y19: 2012 | AL19: 2013 | AY19: 2014 | BC19: Projected Interest on Dec-31-13 Balances | BF19: 2.1.7 RRR
C20: Account Descriptions | D20: Account Number | E20: Opening Principal Amounts as of Jan-1-10 | F20: Transactions Debit / (Credit) during 2010 excluding interest and adjustments 2 | G20: Board-Approved Disposition during 2010 | H20: Adjustments during 2010 - other 1 | I20: Closing Principal Balance as of Dec-31-10 | J20: Opening Interest Amounts as of Jan-1-10 | K20: Interest Jan-1 to Dec-31-10 | L20: Board-Approved Disposition during 2010 | M20: Adjustments during 2010 - other 2 | N20: Closing Interest Amounts as of Dec-31-10 | O20: Opening Principal Amounts as of Jan-1-11 | P20: Transactions Debit / (Credit) during 2011 excluding interest and adjustments 2 | Q20: Board-Approved Disposition during 2011 | R20: Adjustments during 2011 - other 1 | S20: Closing Principal Balance as of Dec-31-11 | T20: Opening Interest Amounts as of Jan-1-11 | U20: Interest Jan-1 to Dec-31-11 | V20: Board-Approved Disposition during 2011 | W20: Adjustments during 2011 - other 2 | X20: Closing Interest Amounts as of Dec-31-11 | Y20: Opening Principal Amounts as of Jan-1-12 | Z20: Transactions Debit / (Credit) during 2012 excluding interest and adjustments 2 | AA20: Board-Approved Disposition during 2012 | AB20: Other 1 Adjustments during Q1 2012 | AC20: Other 1 Adjustments during Q2 2012 | AD20: Other 1 Adjustments during Q3 2012 | AE20: Other 1 Adjustments during Q4 2012 | AF20: Closing Principal Balance as of Dec-31-12 | AG20: Opening Interest Amounts as of Jan-1-12 | AH20: Interest Jan-1 to Dec-31-12 | AI20: Board-Approved Disposition during 2012 | AJ20: Adjustments during 2012 - other 1 | AK20: Closing Interest Amounts as of Dec-31-12 | AL20: Opening Principal Amounts as of Jan-1-13 | AM20: Transactions Debit / (Credit) during 2013 excluding interest and adjustments 2 | AN20: Board-Approved Disposition during 2013 | AO20: Other 1 Adjustments during Q1 2013 | AP20: Other 1 Adjustments during Q2 2013 | AQ20: Other 1 Adjustments during Q3 2013 | AR20: Other 1 Adjustments during Q4 2013 | AS20: Closing Principal Balance as of Dec-31-13 | AT20: Opening Interest Amounts as of Jan-1-13 | AU20: Interest Jan-1 to Dec-31-13 | AV20: Board-Approved Disposition during 2013 | AW20: Adjustments during 2013 - other 1 | AX20: Closing Interest Amounts as of Dec-31-13 | AY20: Principal Disposition during 2014 - instructed by Board | AZ20: Interest Disposition during 2014 - instructed by Board | BA20: Closing Principal Balances as of Dec 31-13 Adjusted for Dispositions during 2014 | BB20: Closing Interest Balances as of Dec 31-13 Adjusted for Dispositions during 2014 | BC20: Projected Interest from Jan 1, 2014 to December 31, 2014 on Dec 31 -13 balance adjusted for disposition during 2014 3 | BD20: Projected Interest from January 1, 2015 to April 30, 2015 on Dec 31 -13 balance adjusted for disposition during 2014 3 | BE20: Total Claim | BF20: As of Dec 31-13 | BG20: Variance RRR vs. 2013 Balance (Principal + Interest)
BE22: Claim before Forecasted Transactions
C23: Group 1 Accounts
A24: 1 | C24: LV Variance Account | D24: 1550 | E24: 1076842 | F24: 127004 | G24: 954176 | I24: =E24+F24-G24+H24 -> 249670 | J24: 57995 | K24: 3092 | L24: 59019 | N24: =J24+K24-L24+M24 -> 2068 | O24: =I24 -> 249670 | P24: 223960.97 | Q24: 122666.3 | S24: =O24+P24-Q24+R24 -> 350964.67 | T24: =N24 -> 2068 | U24: 4155.2 | V24: 1944 | X24: =T24+U24-V24+W24 -> 4279.2 | Y24: =S24 -> 350964.67 | Z24: 104600 | AE24: -47363 | AF24: =Y24+Z24-AA24+SUM(AB24:AE24) -> 408201.67 | AG24: =X24 -> 4279.2 | AH24: 5793 | AK24: =AG24+AH24-AI24+AJ24 -> 10072.2 | AL24: =AF24 -> 408201.67 | AM24: 367934 | AN24: 350964 | AS24: =AL24+AM24-AN24+SUM(AO24:AR24) -> 425171.67 | AT24: =AK24 -> 10072.2 | AU24: 5527 | AV24: 11134 | AX24: =AT24+AU24-AV24+AW24 -> 4465.2 | AY24: 57237 | AZ24: 59 | BA24: =AS24-AY24 -> 367934.67 | BB24: =AX24-AZ24 -> 4406.2 | BC24: =BA24*0.0147 -> 5408.639649 | BD24: =BA24*0.0147/365*120 -> 1778.182898 | BE24: =SUM(BA24:BD24) -> 379527.6925 | BF24: 429637 | BG24: =BF24-SUM(AS24,AX24) -> 0.1300000001
C25: Smart Metering Entity Charge Variance | D25: 1551 | AK25: 0 | AL25: =AK25 -> 0 | AS25: =AL25+AM25-AN25+SUM(AO25:AR25) -> 0 | AT25: =AK25 -> 0 | AX25: 0 | BA25: =AS25-AY25 -> 0 | BB25: =AX25-AZ25 -> 0 | BC25: 0 | BD25: =BA25*0.0147/365*120 -> 0 | BE25: =SUM(BA25:BD25) -> 0 | BG25: =BF25-SUM(AS25,AX25) -> 0
A26: 2 | C26: RSVA - Wholesale Market Service Charge | D26: 1580 | E26: -2228936 | F26: -799237 | G26: -1950854 | I26: =E26+F26-G26+SUM(H26:H26) -> -1077319 | J26: -107308 | K26: -9410 | L26: -109616 | N26: =J26+K26-L26+M26 -> -7102 | O26: =I26 -> -1077319 | P26: -684636 | Q26: -278081.99 | S26: =O26+P26-Q26+SUM(R26:R26) -> -1483873.01 | T26: -7102 | U26: -18292.95 | V26: -4040 | X26: =T26+U26-V26+W26 -> -21354.95 | Y26: =S26 -> -1483873.01 | Z26: -888314 | AF26: -2372187.01 | AG26: =X26 -> -21354.95 | AH26: -28000 | AK26: -49354.95 | AL26: =AF26 -> -2372187.01 | AM26: -443319.32 | AN26: -1483874 | AS26: -1331632.33 | AT26: =AK26 -> -49354.95 | AU26: -24773 | AV26: -50339 | AX26: -23788.95 | AY26: -888313 | AZ26: -16427 | BA26: -443319.33 | BB26: -7361.95 | BC26: =BA26*0.0147 -> -6516.794151 | BD26: -2142.507666 | BE26: =SUM(BA26:BD26) -> -459340.5818 | BF26: -1355421 | BG26: 0.2799999996
A27: 3 | C27: RSVA - Retail Transmission Network Charge | D27: 1584 | E27: -388453 | F27: 323649 | G27: -681877 | I27: 617073 | J27: -130742 | K27: 2192 | L27: -132881 | N27: 4331 | O27: 617073 | P27: 81942.56 | Q27: 293424 | S27: 405591.56 | T27: 4331 | U27: 6943.91 | V27: 3882 | X27: 7392.91 | Y27: 405591.56 | Z27: 356916 | AF27: 762507.56 | AG27: 7392.91 | AH27: 9638 | AK27: 17030.91 | AL27: 762507.56 | AM27: 216076.47 | AN27: 405591 | AS27: 572993.03 | AT27: 17030.91 | AU27: 8813 | AV27: 15315 | AX27: 10528.91 | AY27: 356917 | AZ27: 8712 | BA27: 216076.03 | BB27: 1816.91 | BC27: 3176.317641 | BD27: 1044.268813 | BE27: 222113.5265 | BF27: 583522 | BG27: 0.05999999994
A28: 4 | C28: RSVA - Retail Transmission Connection Charge | D28: 1586 | E28: 108422 | F28: 346391 | G28: -255064 | I28: 709877 | J28: -85921 | K28: 3558 | L28: -87754 | N28: 5391 | O28: 709877 | P28: 16107.48 | Q28: 363485 | S28: 362499.48 | T28: 5391 | U28: 7368.82 | V28: 5058 | X28: 7701.82 | Y28: 362499.48 | Z28: 299622 | AF28: 662121.48 | AG28: 7701.82 | AH28: 8173 | AK28: 15874.82 | AL28: 662121.48 | AM28: 109014.18 | AN28: 362498 | AS28: 408637.66 | AT28: 15874.82 | AU28: 6179.91 | AV28: 14782 | AX28: 7272.73 | AY28: 299623 | AZ28: 6965 | BA28: 109014.66 | BB28: 307.73 | BC28: 1602.515502 | BD28: 526.8544116 | BE28: 111451.7599 | BF28: 415910 | BG28: -0.3899999999
A29: 5 | C29: RSVA - Power (excluding Global Adjustment) | D29: 1588 | E29: -841886 | F29: -82037 | G29: -229917 | I29: -694006 | J29: -71035 | K29: -4457 | L29: -66562 | N29: -8930 | O29: -694006 | P29: -232448 | Q29: -611968 | S29: -314486 | T29: -8930 | U29: -934.73 | V29: -11095 | X29: 1230.27 | Y29: -314486 | Z29: 96329 | AE29: 92527.28 | AF29: -125629.72 | AG29: 1230.27 | AH29: 2110 | AK29: 3340.27 | AL29: -125629.72 | AM29: -196802.99 | AN29: -314526 | AS29: -7906.71 | AT29: 3340.27 | AU29: -10565 | AV29: -4912 | AX29: -2312.73 | AY29: 188896 | AZ29: 11955 | BA29: -196802.71 | BB29: -14267.73 | BC29: -2892.999837 | BD29: -951.1232341 | BE29: -214914.5631 | BF29: -10219 | BG29: 0.44
A30: 6 | C30: RSVA - Global Adjustment | D30: 1589 | E30: 1964763 | F30: -17164 | G30: 1105378 | I30: 842221 | J30: 26050 | K30: 3826 | L30: 27366 | N30: 2510 | O30: 842221 | P30: 2753143.17 | Q30: 859384.83 | S30: 2735979.34 | T30: 2510 | U30: 16265 | V30: 6898 | X30: 11877 | Y30: 2735979.34 | Z30: 2361773 | AE30: 279566.12 | AF30: 5377318.46 | AG30: 11877 | AH30: 50455 | AK30: 62332 | AL30: 5377318.46 | AM30: 3300841.36 | AN30: 2735980 | AS30: 5942179.82 | AT30: 62332 | AU30: 89339 | AV30: 65318 | AX30: 86353 | AY30: 2641338 | AZ30: 48786 | BA30: 3300841.82 | BB30: 37567 | BC30: 48522.37475 | BD30: 15952.56156 | BE30: 3402883.756 | BF30: 6028533 | BG30: 0.1799999997
A31: 7 | C31: Recovery of Regulatory Asset Balances | D31: 1590 | E31: -771256 | F31: -95 | G31: -770921 | I31: -430 | J31: 368782 | K31: -1397 | L31: 367387 | N31: -2 | O31: -430 | P31: -161 | Q31: -334.58 | S31: -256.42 | T31: -2 | U31: -4.92 | V31: -1.06 | X31: -5.86 | Y31: -256.42 | AC31: 256 | AF31: -0.42 | AG31: -5.86 | AJ31: 6 | AK31: 0.14 | AL31: -0.42 | AS31: -0.42 | AT31: 0.14 | AX31: 0.14 | AY31: 256 | AZ31: 16 | BA31: -256.42 | BB31: -15.86 | BC31: -3.769374 | BD31: -1.239246247 | BE31: -277.2886202 | BG31: 0.28
A32: 8 | C32: Disposition and Recovery/Refund of Regulatory Balances (2008)4 | D32: 1595 | I32: 0 | N32: 0 | O32: =I32 -> 0 | S32: 0 | T32: 0 | X32: 0 | Y32: 0 | AF32: 0 | AG32: 0 | AK32: 0 | AL32: 0 | AS32: 0 | AT32: 0 | AX32: 0 | BA32: 0 | BB32: 0 | BC32: 0 | BD32: 0 | BE32: 0 | BG32: 0
A33: 9 | C33: Disposition and Recovery/Refund of Regulatory Balances (2009)4 | D33: 1595 | I33: 0 | N33: 0 | O33: =I33 -> 0 | S33: 0 | T33: 0 | X33: 0 | Y33: 0 | AF33: 0 | AG33: 0 | AK33: 0 | AL33: 0 | AS33: 0 | AT33: 0 | AX33: 0 | BA33: 0 | BB33: 0 | BC33: 0 | BD33: 0 | BE33: 0 | BG33: 0
A34: 9 | C34: Disposition and Recovery/Refund of Regulatory Balances (2010)4 | D34: 1595 | F34: 410078 | G34: 1829079 | I34: -1419001 | K34: -9353 | L34: -56959 | N34: =J34+K34-L34+M34 -> 47606 | O34: =I34 -> -1419001 | P34: 768362 | S34: -650639 | T34: 47606 | U34: -15047 | X34: 32559 | Y34: -650639 | Z34: 384821 | AC34: -256 | AF34: -266074 | AG34: 32559 | AH34: -5368 | AJ34: -6 | AK34: 27185 | AL34: -266074 | AM34: -4686 | AN34: -256 | AS34: -270504 | AT34: 27185 | AU34: -3941 | AV34: -11 | AX34: 23255 | AY34: -266074 | AZ34: 24577 | BA34: -4430 | BB34: -1322 | BC34: -65.121 | BD34: -21.40964384 | BE34: -5838.530644 | BF34: -247249 | BG34: 0
A35: 9 | C35: Disposition and Recovery/Refund of Regulatory Balances (2011)4 | D35: 1595 | I35: 0 | N35: 0 | O35: =I35 -> 0 | P35: -228948 | Q35: -1227080.42 | S35: 998132.42 | T35: 0 | U35: 11480 | V35: -53612 | X35: 65092 | Y35: 998132.42 | Z35: -738102 | AF35: 260030.42 | AG35: 65092 | AH35: 9644 | AK35: 74736 | AL35: 260030.42 | AM35: -331324 | AS35: -71293.58 | AT35: 74736 | AU35: 161.55 | AX35: 74897.55 | BA35: -71293.58 | BB35: 74897.55 | BC35: -1048.015626 | BD35: -344.5530825 | BE35: =SUM(BA35:BD35) -> 2211.401291 | BF35: 3604 | BG35: 0.03000000007
A36: 9 | C36: Disposition and Recovery/Refund of Regulatory Balances (2012)4 | D36: 1595 | I36: 0 | N36: 0 | O36: =I36 -> 0 | S36: 0 | T36: =N36 -> 0 | X36: 0 | Y36: =S36 -> 0 | Z36: 249231 | AA36: 490638.38 | AF36: =Y36+Z36-AA36+SUM(AB36:AE36) -> -241407.38 | AG36: =X36 -> 0 | AH36: -3926 | AI36: 42067 | AK36: =AG36+AH36-AI36+AJ36 -> -45993 | AL36: =AF36 -> -241407.38 | AM36: 256096 | AS36: =AL36+AM36-AN36+SUM(AO36:AR36) -> 14688.62 | AT36: =AK36 -> -45993 | AU36: -676.36 | AX36: =AT36+AU36-AV36+AW36 -> -46669.36 | BA36: 14688.62 | BB36: -46669.36 | BC36: 215.922714 | BD36: 70.98828953 | BE36: =SUM(BA36:BD36) -> -31693.829 | BF36: -31981 | BG36: -0.26
C38: RSVA - Global Adjustment | D38: 1589 | E38: =E30 -> 1964763 | F38: =F30 -> -17164 | G38: 1105378 | H38: 0 | I38: 842221 | J38: 26050 | K38: 3826 | L38: 27366 | M38: 0 | N38: 2510 | O38: =O30 -> 842221 | P38: =P30 -> 2753143.17 | Q38: 859384.83 | R38: 0 | S38: 2735979.34 | T38: 2510 | U38: 16265 | V38: 6898 | W38: 0 | X38: 11877 | Y38: =Y30 -> 2735979.34 | Z38: =Z30 -> 2361773 | AA38: 0 | AB38: 0 | AC38: 0 | AD38: 0 | AE38: 279566.12 | AF38: =AF30 -> 5377318.46 | AG38: 11877 | AH38: 50455 | AI38: 0 | AJ38: =AJ30 -> 0 | AK38: 62332 | AL38: =AL30 -> 5377318.46 | AM38: =AM30 -> 3300841.36 | AN38: 2735980 | AO38: 0 | AP38: 0 | AQ38: 0 | AR38: 0 | AS38: 5942179.82 | AT38: 62332 | AU38: 89339 | AV38: 65318 | AW38: 0 | AX38: 86353 | AY38: 2641338 | AZ38: =AZ30 -> 48786 | BA38: 3300841.82 | BB38: 37567 | BC38: 48522.37475 | BD38: 15952.56156 | BE38: 3402883.756 | BF38: 6028533 | BG38: 0.1799999997
C39: Total Group 1 Balance excluding Account 1589 - Global Adjustment | E39: =SUM(E24:E29,E31:E36) -> -3045267 | F39: =SUM(F24:F29,F31:F36) -> 325753 | G39: -1105378 | H39: 0 | I39: -1614136 | J39: 31771 | K39: -15775 | L39: -27366 | M39: 0 | N39: 43362 | O39: =SUM(O24:O29,O31:O36) -> -1614136 | P39: =SUM(P24:P29,P31:P36) -> -55819.99 | Q39: -1337889.69 | R39: 0 | S39: -332066.3 | T39: 43362 | U39: -4331.67 | V39: -57864.06 | W39: 0 | X39: 96894.39 | Y39: =SUM(Y24:Y29,Y31:Y36) -> -332066.3 | Z39: =SUM(Z24:Z29,Z31:Z36) -> -134897 | AA39: 490638.38 | AB39: 0 | AC39: 0 | AD39: 0 | AE39: 45164.28 | AF39: =SUM(AF24:AF29,AF31:AF36) -> -912437.4 | AG39: 96894.39 | AH39: -1936 | AI39: 42067 | AJ39: =SUM(AJ24:AJ29,AJ31:AJ36) -> 0 | AK39: 52891.39 | AL39: =SUM(AL24:AL29,AL31:AL36) -> -912437.4 | AM39: =SUM(AM24:AM29,AM31:AM36) -> -27011.66 | AN39: -679603 | AO39: 0 | AP39: 0 | AQ39: 0 | AR39: 0 | AS39: -259846.06 | AT39: 52891.39 | AU39: -19273.9 | AV39: -14031 | AW39: 0 | AX39: 47648.49 | AY39: -251458 | AZ39: =SUM(AZ24:AZ29,AZ31:AZ36) -> 35857 | BA39: -8388.06 | BB39: 11791.49 | BC39: -123.304482 | BD39: -40.53845984 | BE39: 3239.587058 | BF39: -212197 | BG39: 0.5699999997
C40: Total Group 1 Balance | E40: =SUM(E24:E36) -> -1080504 | F40: =SUM(F24:F36) -> 308589 | G40: 0 | H40: 0 | I40: -771915 | J40: 57821 | K40: -11949 | L40: 0 | M40: 0 | N40: 45872 | O40: =SUM(O24:O36) -> -771915 | P40: =SUM(P24:P36) -> 2697323.18 | Q40: -478504.86 | R40: 0 | S40: 2403913.04 | T40: 45872 | U40: 11933.33 | V40: -50966.06 | W40: 0 | X40: 108771.39 | Y40: =SUM(Y24:Y36) -> 2403913.04 | Z40: =SUM(Z24:Z36) -> 2226876 | AA40: 490638.38 | AB40: 0 | AC40: 0 | AD40: 0 | AE40: 324730.4 | AF40: =SUM(AF24:AF36) -> 4464881.06 | AG40: 108771.39 | AH40: 48519 | AI40: 42067 | AJ40: =SUM(AJ24:AJ36) -> 0 | AK40: 115223.39 | AL40: =SUM(AL24:AL36) -> 4464881.06 | AM40: =SUM(AM24:AM36) -> 3273829.7 | AN40: 2056377 | AO40: 0 | AP40: 0 | AQ40: 0 | AR40: 0 | AS40: 5682333.76 | AT40: 115223.39 | AU40: 70065.1 | AV40: 51287 | AW40: 0 | AX40: 134001.49 | AY40: 2389880 | AZ40: =SUM(AZ24:AZ36) -> 84643 | BA40: 3292453.76 | BB40: 49358.49 | BC40: 48399.07027 | BD40: 15912.0231 | BE40: 3406123.343 | BF40: 5816336 | BG40: 0.7499999994
C42: LRAM Variance Account | D42: 1568 | I42: =E42+F42-G42+SUM(H42:H42) -> 0 | N42: =J42+K42-L42+M42 -> 0 | S42: =O42+P42-Q42+SUM(R42:R42) -> 0 | X42: =T42+U42-V42+W42 -> 0 | Y42: =S42 -> 0 | AF42: =Y42+Z42-AA42+SUM(AB42:AE42) -> 0 | AG42: =X42 -> 0 | AK42: =AG42+AH42-AI42+AJ42 -> 0 | AL42: =AF42 -> 0 | AS42: =AL42+AM42-AN42+SUM(AO42:AR42) -> 0 | AT42: =AK42 -> 0 | AX42: =AT42+AU42-AV42+AW42 -> 0 | BA42: =AS42-AY42 -> 0 | BB42: =AX42-AZ42 -> 0 | BE42: =SUM(BA42:BD42) -> 0 | BF42: 21270 | BG42: =BF42-SUM(AS42,AX42) -> 21270
C44: Total including Account 1568 | E44: =E42+E40 -> -1080504 | F44: =F42+F40 -> 308589 | G44: 0 | H44: 0 | I44: -771915 | J44: 57821 | K44: -11949 | L44: 0 | M44: 0 | N44: 45872 | O44: -771915 | P44: 2697323.18 | Q44: -478504.86 | R44: 0 | S44: 2403913.04 | T44: 45872 | U44: 11933.33 | V44: -50966.06 | W44: 0 | X44: 108771.39 | Y44: 2403913.04 | Z44: 2226876 | AA44: 490638.38 | AB44: 0 | AC44: 0 | AD44: 0 | AE44: 324730.4 | AF44: 4464881.06 | AG44: 108771.39 | AH44: 48519 | AI44: 42067 | AJ44: 0 | AK44: 115223.39 | AL44: 4464881.06 | AM44: 3273829.7 | AN44: 2056377 | AO44: 0 | AP44: 0 | AQ44: 0 | AR44: 0 | AS44: 5682333.76 | AT44: 115223.39 | AU44: 70065.1 | AV44: 51287 | AW44: 0 | AX44: 134001.49 | AY44: 2389880 | AZ44: 84643 | BA44: 3292453.76 | BB44: 49358.49 | BC44: 48399.07027 | BD44: 15912.0231 | BE44: 3406123.343 | BF44: 5837606 | BG44: 21270.75
C47: For all Board-Approved dispositions, please ensure that the disposition amount has the same sign (e.g: debit balances are to have a positive figure and credit balance are to have a negative figure) as per the related Board decision.
B50: 1 | C50: Please provide explanations for the nature of the adjustments. If the adjustment relates to previously Board Approved disposed balances, please provide amounts for adjustments and include supporting documentations.
B51: 2 | C51: For RSVA accounts only, report the net variance to the account during the year. For all other accounts, record the transactions during the year.
B52: 3 | C52: If the LDC’s rate year begins on January 1, 2015, the projected interest is recorded from January 1, 2014 to December 31, 2014 on the December 31, 2013 balances adjusted for the disposed balances approved by the Board in the 2014 rate decision. If the LDC’s rate year begins on May 1, 2015, the projected interest is recorded from January 1, 2014 to April 30, 2015 on the December 31, 2013 balances adjusted for the disposed interest balances approved by the Board in the 2014 rate decision.
B53: 4 | C53: Include Account 1595 as part of Group 1 accounts (lines 31, 32, 33 and 34) for review and disposition if the recovery (or refund) period has been completed. If the recovery (or refund) period has not been completed, do not include the respective balance in Account 1595 for disposition at this time.

Sheet 6. Billing Det. for Def-Var
AS1: As per Section 3.2.3 of the 2015 Filing Requirements for Electricity Distribution Rate Applications, an applicant may elect to dispose of the Group 1 account balances below the threshold. If doing so, please select YES from the adjacent drop-down cell and also indicate so in the Manager's Summary. If not, please select NO.
A13: In the green shaded cells, enter the most recent Board Approved volumetric forecast. If there is a material difference between the latest Board-approved volumetric forecast and the most recent 12-month actual volumetric data, use the most recent 12-month actual data. Do not enter data for the MicroFit class.
E15: Billed kWh for Non-RPP Customers | F15: Estimated kW for Non-RPP Customers | H15: 1590 Recovery Share Proportion* | I15: 1595 Recovery Share Proportion (2008) 1 | J15: 1595 Recovery Share Proportion (2009) 1 | K15: 1595 Recovery Share Proportion (2010) 1 | L15: 1595 Recovery Share Proportion (2011) 1 | M15: 1595 Recovery Share Proportion (2012) 1 | N15: 1568 LRAM Variance Account Class Allocation ($ amounts) | O15: Number of Customers for Residential and GS<50 classes3
A16: Rate Class | B16: Unit | C16: Metered kWh | D16: Metered kW
A17: RESIDENTIAL | B17: $/kWh | C17: 194606362 | E17: 20046075 | F17: =IF(ISERROR(D17/C17*E17), 0, D17/C17*E17) -> 0 | H17: -1.981206075 | K17: 0.422 | L17: 0.8992 | M17: 0.57 | O17: 23386
A18: GENERAL SERVICE LESS THAN 50 KW | B18: $/kWh | C18: 93096784 | E18: 19270681 | F18: =IF(ISERROR(D18/C18*E18), 0, D18/C18*E18) -> 0 | H18: 0.1942209443 | K18: 0.1303 | L18: 0.1446 | M18: 0.1744 | O18: 3244
A19: GENERAL SERVICE 50 TO 4,999 KW | B19: $/kW | C19: 259610762 | D19: 701859 | E19: 177820062 | F19: =IF(ISERROR(D19/C19*E19), 0, D19/C19*E19) -> 480737.4314 | H19: 1.945409578 | K19: 0.2894 | L19: -0.0063 | M19: 0.2069
A20: LARGE USE | B20: $/kW | C20: 152017673 | D20: 297737 | E20: 148002869 | F20: =IF(ISERROR(D20/C20*E20), 0, D20/C20*E20) -> 289873.732 | H20: 0.8070326335 | K20: 0.1502 | L20: -0.0464 | M20: 0.0337
A21: UNMETERED SCATTERED LOAD | B21: $/kWh | C21: 2275040 | E21: 1092553 | F21: =IF(ISERROR(D21/C21*E21), 0, D21/C21*E21) -> 0 | H21: -0.003441377187 | K21: 0.004 | L21: 0.0063 | M21: 0.0048
A22: STANDBY POWER - APPROVED ON AN INTERIM BASIS | F22: =IF(ISERROR(D22/C22*E22), 0, D22/C22*E22) -> 0
A23: STREET LIGHTING | B23: $/kW | C23: 4024186 | D23: 11336 | E23: 3992185 | F23: =IF(ISERROR(D23/C23*E23), 0, D23/C23*E23) -> 11245.85423 | H23: 0.03798429618 | K23: 0.0041 | L23: 0.0026 | M23: 0.0102
A24: microFIT
B26: Total | C26: =SUM(C17:C24) -> 705630807 | D26: =SUM(D17:D24) -> 1010932 | E26: 370224425 | F26: 781857.0177 | H26: 1 | I26: 0 | J26: 0 | K26: 1 | L26: 1 | M26: 1 | N26: 0 | O26: 26630
M27: Balance as per Sheet 5 | N27: =ROUND('5. 2014 Continuity Schedule'!BE42, 0) -> 0
M28: Variance | N28: =N26-N27 -> 0
A30: Threshold Test
A31: Total Claim (including Account 1568) | B31: ='5. 2014 Continuity Schedule'!BE44 -> 3406123.343
A32: Total Claim for Threshold Test (All Group 1 Accounts) | B32: ='5. 2014 Continuity Schedule'!BE40 -> 3406123.343
A33: Threshold Test (Total claim per kWh) 2 | B33: =IF(ISERROR(B32/C26), 0, B32/C26) -> 0.004827061559 | D33: =IF(AND(B33>-0.001,B33<0.001),"Claim does not meet the threshold test.","") -> 
A35: =IF(AND(B33>-0.001, B33<0.001), AS1, "") -> 
A39: 1 Residual Account balance to be allocated to rate classes in proportion to the recovery share as established when rate riders were implemented.
A40: 2 The Threshold Test does not include the amount in 1568.
A41: 3 The proportion of customers for the Residential and GS<50 Classes will be used to allocate Account 1551.

Sheet 6. hidden (hidden)
E1: Billed kWh for Non-RPP Customers | F1: Estimated kW for Non-RPP Customers | G1: Distribution Revenue 1 | H1: 1590 Recovery Share Proportion* | I1: 1595 Recovery Share Proportion (2008) 2 | J1: 1595 Recovery Share Proportion (2009) 2 | K1: 1595 Recovery Share Proportion (2010) 2 | L1: 1595 Recovery Share Proportion (2011) 2 | M1: 1568 LRAM Variance Account Class Allocation
A2: Rate Class | B2: Unit | C2: Metered kWh | D2: Metered kW
A3: RESIDENTIAL | B3: $/kWh | C3: 194606362 | D3: 0 | E3: 20046075 | G3: 0 | H3: -1.981206075 | I3: 0 | J3: 0 | K3: 0.422 | L3: 0.8992 | M3: 0.57 | N3: 0 | O3: 23386
A4: GENERAL SERVICE LESS THAN 50 KW | B4: $/kWh | C4: 93096784 | D4: 0 | E4: 19270681 | G4: 0 | H4: 0.1942209443 | I4: 0 | J4: 0 | K4: 0.1303 | L4: 0.1446 | M4: 0.1744 | N4: 0 | O4: 3244
A5: GENERAL SERVICE 50 TO 4,999 KW | B5: $/kW | C5: 259610762 | D5: 701859 | E5: 177820062 | G5: 0 | H5: 1.945409578 | I5: 0 | J5: 0 | K5: 0.2894 | L5: -0.0063 | M5: 0.2069 | N5: 0 | O5: 0
A6: LARGE USE | B6: $/kW | C6: 152017673 | D6: 297737 | E6: 148002869 | G6: 0 | H6: 0.8070326335 | I6: 0 | J6: 0 | K6: 0.1502 | L6: -0.0464 | M6: 0.0337 | N6: 0 | O6: 0
A7: UNMETERED SCATTERED LOAD | B7: $/kWh | C7: 2275040 | D7: 0 | E7: 1092553 | G7: 0 | H7: -0.003441377187 | I7: 0 | J7: 0 | K7: 0.004 | L7: 0.0063 | M7: 0.0048 | N7: 0 | O7: 0
A8: STANDBY POWER - APPROVED ON AN INTERIM BASIS | B8: 0 | C8: 0 | D8: 0 | E8: 0 | G8: 0 | H8: 0 | I8: 0 | J8: 0 | K8: 0 | L8: 0 | M8: 0 | N8: 0 | O8: 0
A9: STREET LIGHTING | B9: $/kW | C9: 4024186 | D9: 11336 | E9: 3992185 | G9: 0 | H9: 0.03798429618 | I9: 0 | J9: 0 | K9: 0.0041 | L9: 0.0026 | M9: 0.0102 | N9: 0 | O9: 0
A10: microFIT | B10: 0 | C10: 0 | D10: 0 | E10: 0 | G10: 0 | H10: 0 | I10: 0 | J10: 0 | K10: 0 | L10: 0 | M10: 0 | N10: 0 | O10: 0

Sheet 7. Allocating Def-Var Balances
A13: No input required. This workshseet allocates the deferral/variance account balances (Group 1, 1589, and 1568) to the appropriate classes as per the EDDVAR Report dated July 31, 2009
A15: Allocation of Group 1 Accounts (including Account 1568)
C16: % of Total kWh | D16: % of Total non-RPP kWh | E16: % of Customer Numbers ** | N16: 1595 (2008) | O16: 1595 (2009) | P16: 1595 (2010) | Q16: 1595 (2011) | R16: 1595 (2012) | S16: 1568
A17: Rate Class | F17: 1550 | G17: 1551 | H17: 1580 | I17: 1584 | J17: 1586 | K17: 1588 | L17: 1589 | M17: 1590
A19: RESIDENTIAL | C19: =VLOOKUP(A19, '6. Billing Det. for Def-Var'!A17:D24, 3,0)/'6. Billing Det. for Def-Var'!C26 -> 0.275790626 | D19: =VLOOKUP(A19, '6. Billing Det. for Def-Var'!A17:E24, 5,0)/'6. Billing Det. for Def-Var'!E26 -> 0.05414573876 | E19: =VLOOKUP(A19, '6. Billing Det. for Def-Var'!A17:O24, 15,0)/'6. Billing Det. for Def-Var'!O26 -> 0.8781825009 | F19: =C19* '5. 2014 Continuity Schedule'!BE24 -> 104670.1799 | G19: =E19* '5. 2014 Continuity Schedule'!BE25 -> 0 | H19: =C19* '5. 2014 Continuity Schedule'!BE26 -> -126681.8266 | I19: =C19* '5. 2014 Continuity Schedule'!BE27 -> 61256.82851 | J19: =C19* '5. 2014 Continuity Schedule'!BE28 -> 30737.35064 | K19: =C19* '5. 2014 Continuity Schedule'!BE29 -> -59271.42189 | L19: =D19* '5. 2014 Continuity Schedule'!BE30 -> 184251.6549 | M19: ='6. Billing Det. for Def-Var'!H17* '5. 2014 Continuity Schedule'!BE31 -> 549.365899 | N19: ='6. Billing Det. for Def-Var'!I17* '5. 2014 Continuity Schedule'!BE32 -> 0 | O19: ='6. Billing Det. for Def-Var'!J17* '5. 2014 Continuity Schedule'!BE33 -> 0 | P19: ='6. Billing Det. for Def-Var'!K17* '5. 2014 Continuity Schedule'!BE34 -> -2463.859932 | Q19: ='6. Billing Det. for Def-Var'!L17* '5. 2014 Continuity Schedule'!BE35 -> 1988.492041 | R19: ='6. Billing Det. for Def-Var'!M17* '5. 2014 Continuity Schedule'!BE36 -> -18065.48253 | S19: ='6. Billing Det. for Def-Var'!N17 -> 0
A20: GENERAL SERVICE LESS THAN 50 KW | C20: =VLOOKUP(A20, '6. Billing Det. for Def-Var'!A17:D24, 3,0)/'6. Billing Det. for Def-Var'!C26 -> 0.1319341263 | D20: =VLOOKUP(A20, '6. Billing Det. for Def-Var'!A17:E24, 5,0)/'6. Billing Det. for Def-Var'!E26 -> 0.05205134966 | E20: =VLOOKUP(A20, '6. Billing Det. for Def-Var'!A17:O24, 15,0)/'6. Billing Det. for Def-Var'!O26 -> 0.1218174991 | F20: =C20* '5. 2014 Continuity Schedule'!BE24 -> 50072.65452 | G20: =E20* '5. 2014 Continuity Schedule'!BE25 -> 0 | H20: =C20* '5. 2014 Continuity Schedule'!BE26 -> -60602.69833 | I20: =C20* '5. 2014 Continuity Schedule'!BE27 -> 29304.35405 | J20: =C20* '5. 2014 Continuity Schedule'!BE28 -> 14704.29057 | K20: =C20* '5. 2014 Continuity Schedule'!BE29 -> -28354.5651 | L20: =D20* '5. 2014 Continuity Schedule'!BE30 -> 177124.6923 | M20: ='6. Billing Det. for Def-Var'!H18* '5. 2014 Continuity Schedule'!BE31 -> -53.85525766 | N20: ='6. Billing Det. for Def-Var'!I18* '5. 2014 Continuity Schedule'!BE32 -> 0 | O20: ='6. Billing Det. for Def-Var'!J18* '5. 2014 Continuity Schedule'!BE33 -> 0 | P20: ='6. Billing Det. for Def-Var'!K18* '5. 2014 Continuity Schedule'!BE34 -> -760.7605429 | Q20: ='6. Billing Det. for Def-Var'!L18* '5. 2014 Continuity Schedule'!BE35 -> 319.7686267 | R20: ='6. Billing Det. for Def-Var'!M18* '5. 2014 Continuity Schedule'!BE36 -> -5527.403777 | S20: ='6. Billing Det. for Def-Var'!N18 -> 0
A21: GENERAL SERVICE 50 TO 4,999 KW | C21: =VLOOKUP(A21, '6. Billing Det. for Def-Var'!A17:D24, 3,0)/'6. Billing Det. for Def-Var'!C26 -> 0.3679130211 | D21: =VLOOKUP(A21, '6. Billing Det. for Def-Var'!A17:E24, 5,0)/'6. Billing Det. for Def-Var'!E26 -> 0.4803034322 | F21: =C21* '5. 2014 Continuity Schedule'!BE24 -> 139633.18 | G21: =E21* '5. 2014 Continuity Schedule'!BE25 -> 0 | H21: =C21* '5. 2014 Continuity Schedule'!BE26 -> -168997.3812 | I21: =C21* '5. 2014 Continuity Schedule'!BE27 -> 81718.45855 | J21: =C21* '5. 2014 Continuity Schedule'!BE28 -> 41004.5537 | K21: =C21* '5. 2014 Continuity Schedule'!BE29 -> -79069.86618 | L21: =D21* '5. 2014 Continuity Schedule'!BE30 -> 1634416.747 | M21: ='6. Billing Det. for Def-Var'!H19* '5. 2014 Continuity Schedule'!BE31 -> -539.4399378 | N21: ='6. Billing Det. for Def-Var'!I19* '5. 2014 Continuity Schedule'!BE32 -> 0 | O21: ='6. Billing Det. for Def-Var'!J19* '5. 2014 Continuity Schedule'!BE33 -> 0 | P21: ='6. Billing Det. for Def-Var'!K19* '5. 2014 Continuity Schedule'!BE34 -> -1689.670768 | Q21: ='6. Billing Det. for Def-Var'!L19* '5. 2014 Continuity Schedule'!BE35 -> -13.93182814 | R21: ='6. Billing Det. for Def-Var'!M19* '5. 2014 Continuity Schedule'!BE36 -> -6557.453219 | S21: ='6. Billing Det. for Def-Var'!N19 -> 0
A22: LARGE USE | C22: =VLOOKUP(A22, '6. Billing Det. for Def-Var'!A17:D24, 3,0)/'6. Billing Det. for Def-Var'!C26 -> 0.2154351419 | D22: =VLOOKUP(A22, '6. Billing Det. for Def-Var'!A17:E24, 5,0)/'6. Billing Det. for Def-Var'!E26 -> 0.3997652748 | F22: =C22* '5. 2014 Continuity Schedule'!BE24 -> 81763.60228 | G22: =E22* '5. 2014 Continuity Schedule'!BE25 -> 0 | H22: =C22* '5. 2014 Continuity Schedule'!BE26 -> -98958.1034 | I22: =C22* '5. 2014 Continuity Schedule'!BE27 -> 47851.05908 | J22: =C22* '5. 2014 Continuity Schedule'!BE28 -> 24010.62571 | K22: =C22* '5. 2014 Continuity Schedule'!BE29 -> -46300.14938 | L22: =D22* '5. 2014 Continuity Schedule'!BE30 -> 1360354.76 | M22: ='6. Billing Det. for Def-Var'!H20* '5. 2014 Continuity Schedule'!BE31 -> -223.7809654 | N22: ='6. Billing Det. for Def-Var'!I20* '5. 2014 Continuity Schedule'!BE32 -> 0 | O22: ='6. Billing Det. for Def-Var'!J20* '5. 2014 Continuity Schedule'!BE33 -> 0 | P22: ='6. Billing Det. for Def-Var'!K20* '5. 2014 Continuity Schedule'!BE34 -> -876.9473027 | Q22: ='6. Billing Det. for Def-Var'!L20* '5. 2014 Continuity Schedule'!BE35 -> -102.6090199 | R22: ='6. Billing Det. for Def-Var'!M20* '5. 2014 Continuity Schedule'!BE36 -> -1068.082037 | S22: ='6. Billing Det. for Def-Var'!N20 -> 0
A23: UNMETERED SCATTERED LOAD | C23: =VLOOKUP(A23, '6. Billing Det. for Def-Var'!A17:D24, 3,0)/'6. Billing Det. for Def-Var'!C26 -> 0.003224122271 | D23: =VLOOKUP(A23, '6. Billing Det. for Def-Var'!A17:E24, 5,0)/'6. Billing Det. for Def-Var'!E26 -> 0.002951055971 | F23: =C23* '5. 2014 Continuity Schedule'!BE24 -> 1223.643686 | G23: =E23* '5. 2014 Continuity Schedule'!BE25 -> 0 | H23: =C23* '5. 2014 Continuity Schedule'!BE26 -> -1480.9702 | I23: =C23* '5. 2014 Continuity Schedule'!BE27 -> 716.1211673 | J23: =C23* '5. 2014 Continuity Schedule'!BE28 -> 359.3341013 | K23: =C23* '5. 2014 Continuity Schedule'!BE29 -> -692.9108292 | L23: =D23* '5. 2014 Continuity Schedule'!BE30 -> 10042.10043 | M23: ='6. Billing Det. for Def-Var'!H21* '5. 2014 Continuity Schedule'!BE31 -> 0.9542547319 | N23: ='6. Billing Det. for Def-Var'!I21* '5. 2014 Continuity Schedule'!BE32 -> 0 | O23: ='6. Billing Det. for Def-Var'!J21* '5. 2014 Continuity Schedule'!BE33 -> 0 | P23: ='6. Billing Det. for Def-Var'!K21* '5. 2014 Continuity Schedule'!BE34 -> -23.35412258 | Q23: ='6. Billing Det. for Def-Var'!L21* '5. 2014 Continuity Schedule'!BE35 -> 13.93182814 | R23: ='6. Billing Det. for Def-Var'!M21* '5. 2014 Continuity Schedule'!BE36 -> -152.1303792 | S23: ='6. Billing Det. for Def-Var'!N21 -> 0
A24: STANDBY POWER - APPROVED ON AN INTERIM BASIS | C24: 0 | D24: 0 | E24: 0 | F24: =C24* '5. 2014 Continuity Schedule'!BE24 -> 0 | G24: =E24* '5. 2014 Continuity Schedule'!BE25 -> 0 | H24: =C24* '5. 2014 Continuity Schedule'!BE26 -> 0 | I24: =C24* '5. 2014 Continuity Schedule'!BE27 -> 0 | J24: =C24* '5. 2014 Continuity Schedule'!BE28 -> 0 | K24: =C24* '5. 2014 Continuity Schedule'!BE29 -> 0 | L24: =D24* '5. 2014 Continuity Schedule'!BE30 -> 0 | M24: ='6. Billing Det. for Def-Var'!H22* '5. 2014 Continuity Schedule'!BE31 -> 0 | N24: ='6. Billing Det. for Def-Var'!I22* '5. 2014 Continuity Schedule'!BE32 -> 0 | O24: ='6. Billing Det. for Def-Var'!J22* '5. 2014 Continuity Schedule'!BE33 -> 0 | P24: ='6. Billing Det. for Def-Var'!K22* '5. 2014 Continuity Schedule'!BE34 -> 0 | Q24: ='6. Billing Det. for Def-Var'!L22* '5. 2014 Continuity Schedule'!BE35 -> 0 | R24: ='6. Billing Det. for Def-Var'!M22* '5. 2014 Continuity Schedule'!BE36 -> 0 | S24: ='6. Billing Det. for Def-Var'!N22 -> 0
A25: STREET LIGHTING | C25: =VLOOKUP(A25, '6. Billing Det. for Def-Var'!A17:D24, 3,0)/'6. Billing Det. for Def-Var'!C26 -> 0.005702962456 | D25: =VLOOKUP(A25, '6. Billing Det. for Def-Var'!A17:E24, 5,0)/'6. Billing Det. for Def-Var'!E26 -> 0.01078314863 | F25: =C25* '5. 2014 Continuity Schedule'!BE24 -> 2164.432182 | G25: =E25* '5. 2014 Continuity Schedule'!BE25 -> 0 | H25: =C25* '5. 2014 Continuity Schedule'!BE26 -> -2619.602093 | I25: =C25* '5. 2014 Continuity Schedule'!BE27 -> 1266.705102 | J25: =C25* '5. 2014 Continuity Schedule'!BE28 -> 635.6052024 | K25: =C25* '5. 2014 Continuity Schedule'!BE29 -> -1225.649684 | L25: =D25* '5. 2014 Continuity Schedule'!BE30 -> 36693.8013 | M25: ='6. Billing Det. for Def-Var'!H23* '5. 2014 Continuity Schedule'!BE31 -> -10.53261308 | N25: ='6. Billing Det. for Def-Var'!I23* '5. 2014 Continuity Schedule'!BE32 -> 0 | O25: ='6. Billing Det. for Def-Var'!J23* '5. 2014 Continuity Schedule'!BE33 -> 0 | P25: ='6. Billing Det. for Def-Var'!K23* '5. 2014 Continuity Schedule'!BE34 -> -23.93797564 | Q25: ='6. Billing Det. for Def-Var'!L23* '5. 2014 Continuity Schedule'!BE35 -> 5.749643358 | R25: ='6. Billing Det. for Def-Var'!M23* '5. 2014 Continuity Schedule'!BE36 -> -323.2770558 | S25: ='6. Billing Det. for Def-Var'!N23 -> 0
A26: microFIT | C26: 0 | D26: 0 | E26: 0 | F26: =C26* '5. 2014 Continuity Schedule'!BE24 -> 0 | G26: =E26* '5. 2014 Continuity Schedule'!BE25 -> 0 | H26: =C26* '5. 2014 Continuity Schedule'!BE26 -> 0 | I26: =C26* '5. 2014 Continuity Schedule'!BE27 -> 0 | J26: =C26* '5. 2014 Continuity Schedule'!BE28 -> 0 | K26: =C26* '5. 2014 Continuity Schedule'!BE29 -> 0 | L26: =D26* '5. 2014 Continuity Schedule'!BE30 -> 0 | M26: ='6. Billing Det. for Def-Var'!H24* '5. 2014 Continuity Schedule'!BE31 -> 0 | N26: ='6. Billing Det. for Def-Var'!I24* '5. 2014 Continuity Schedule'!BE32 -> 0 | O26: ='6. Billing Det. for Def-Var'!J24* '5. 2014 Continuity Schedule'!BE33 -> 0 | P26: ='6. Billing Det. for Def-Var'!K24* '5. 2014 Continuity Schedule'!BE34 -> 0 | Q26: ='6. Billing Det. for Def-Var'!L24* '5. 2014 Continuity Schedule'!BE35 -> 0 | R26: ='6. Billing Det. for Def-Var'!M24* '5. 2014 Continuity Schedule'!BE36 -> 0 | S26: ='6. Billing Det. for Def-Var'!N24 -> 0
A28: Total | C28: =SUM(C19:C26) -> 1 | D28: =SUM(D19:D26) -> 1 | E28: =SUM(E19:E26) -> 1 | F28: =SUM(F19:F26) -> 379527.6925 | G28: =SUM(G19:G26) -> 0 | H28: =SUM(H19:H26) -> -459340.5818 | I28: =SUM(I19:I26) -> 222113.5265 | J28: =SUM(J19:J26) -> 111451.7599 | K28: =SUM(K19:K26) -> -214914.5631 | L28: =SUM(L19:L26) -> 3402883.756 | M28: =SUM(M19:M26) -> -277.2886202 | N28: =SUM(N19:N26) -> 0 | O28: =SUM(O19:O26) -> 0 | P28: =SUM(P19:P26) -> -5838.530644 | Q28: =SUM(Q19:Q26) -> 2211.401291 | R28: =SUM(R19:R26) -> -31693.829 | S28: =SUM(S19:S26) -> 0
A31: * RSVA - Power (Excluding Global Adjustment)
A32: ** Used to allocate Account 1551 as this account records the variances arising from the Smart Metering Entity Charges to Residential and GS<50 customers.

Sheet 8. Calculation of Def-Var RR
A12: Input required at cell C15 only. This workshseet calculates rate riders related to the Deferral/Variance Account Disposition (if applicable), associated rate riders for the global adjustment account (1589) and Account 1568. Rate Riders will not be generated for the microFIT class.
A15: Please indicate the Rate Rider Recovery Period (in years) | C15: 1
E17: Balance of Accounts Allocated by kWh/kW (RPP) or Distribution Revenue | F17: Deferral/Variance Account Rate Rider | G17: Allocation of Balance in Account 1589 | H17: Billed kWh or Estimated kW for Non-RPP Customers | I17: Global Adjustment Rate Rider | J17: Allocation of Account 1568 | K17: Account 1568 Rate Rider
A18: Rate Class | B18: Unit | C18: Billed kWh | D18: Billed kW or kVA
A20: RESIDENTIAL | B20: $/kWh | C20: 194606362 | E20: =SUM('7. Allocating Def-Var Balances'!#REF!)+SUM('7. Allocating Def-Var Balances'!#REF!) ->  | F20: 0 | G20: 184251.6549 | H20: 20046075 | I20: 0.0092
A21: GENERAL SERVICE LESS THAN 50 KW | B21: $/kWh | C21: 93096784 | E21: =SUM('7. Allocating Def-Var Balances'!#REF!)+SUM('7. Allocating Def-Var Balances'!#REF!) ->  | F21: 0 | G21: 177124.6923 | H21: 19270681 | I21: 0.0092
A22: GENERAL SERVICE 50 TO 4,999 KW | B22: $/kW | C22: 259610762 | D22: 701859 | E22: =SUM('7. Allocating Def-Var Balances'!#REF!)+SUM('7. Allocating Def-Var Balances'!#REF!) ->  | F22: 0.0078 | G22: 1634416.747 | H22: 480737.4314 | I22: 3.3998
A23: LARGE USE | B23: $/kW | C23: 152017673 | D23: 297737 | E23: =SUM('7. Allocating Def-Var Balances'!#REF!)+SUM('7. Allocating Def-Var Balances'!#REF!) ->  | F23: 0.0205 | G23: 1360354.76 | H23: 289873.732 | I23: 4.6929
A24: UNMETERED SCATTERED LOAD | B24: $/kWh | C24: 2275040 | E24: =SUM('7. Allocating Def-Var Balances'!#REF!)+SUM('7. Allocating Def-Var Balances'!#REF!) ->  | F24: 0 | G24: 10042.10043 | H24: 1092553 | I24: 0.0092
A25: STANDBY POWER - APPROVED ON AN INTERIM BASIS
A26: STREET LIGHTING | B26: $/kW | C26: 4024186 | D26: 11336 | E26: =SUM('7. Allocating Def-Var Balances'!#REF!)+SUM('7. Allocating Def-Var Balances'!#REF!) ->  | F26: -0.0115 | G26: 36693.8013 | H26: 11245.85423 | I26: 3.2629
A27: microFIT
A28: Total | C28: =SUM(C20:C27) -> 705630807 | D28: =SUM(D20:D27) -> 1010932 | E28: =SUM(E20:E27) ->  | G28: =SUM(G20:G27) -> 3402883.756 | H28: =SUM(H20:H27) -> 41191166.02 | J28: =SUM(J20:J27) -> 0
A32: One or more rate classes appear to have negligible rate riders in columns F and/or I. As per Appendix B of the Filing Requirements, please provide details of the Applicant's proposal in the Manager's Summary.

Sheet 9. STS - Billing Det & Rates
A11: Shared Tax Savings
A13: ="Enter your " & '1. Information Sheet'!F32 & " Board-Approved Billing Determinents into columns B, C and D." -> Enter your 2011 Board-Approved Billing Determinents into columns B, C and D.
A14: ="Enter your " & '1. Information Sheet'!F32 & " Board-Approved Base monthly service and volumetric charges into columns G, H and I." -> Enter your 2011 Board-Approved Base monthly service and volumetric charges into columns G, H and I.
A16: Rate Class | B16: Units | C16: Re-based Billed Customers or Connections | D16: Re-based Billed kWh | E16: Re-based Billed kW (if applicable) | G16: ='1. Information Sheet'!F32 &" Base Monthly Service Charge" -> 2011 Base Monthly Service Charge | H16: ='1. Information Sheet'!F32 &" Base Distribution Volumetric Rate kWh" -> 2011 Base Distribution Volumetric Rate kWh | I16: ='1. Information Sheet'!F32 &" Base Distribution Volumetric Rate kW" -> 2011 Base Distribution Volumetric Rate kW
A17: RESIDENTIAL | B17: $/kWh | C17: 23386 | D17: 194606362 | E17: 0 | G17: 12.06 | H17: 0.0148 | I17: 0
A18: GENERAL SERVICE LESS THAN 50 KW | B18: $/kWh | C18: 3244 | D18: 93096784 | E18: 0 | G18: 24.83 | H18: 0.0103 | I18: 0
A19: GENERAL SERVICE 50 TO 4,999 KW | B19: $/kW | C19: 347 | D19: 259610762 | E19: 701859 | G19: 269.01 | H19: 0 | I19: 1.927
A20: LARGE USE | B20: $/kW | C20: 3 | D20: 152017673 | E20: 297737 | G20: 4959.68 | H20: 0 | I20: 1.0118
A21: UNMETERED SCATTERED LOAD | B21: $/kWh | C21: 164 | D21: 2275040 | E21: 0 | G21: 11.09 | H21: 0.0135 | I21: 0
A22: STANDBY POWER - APPROVED ON AN INTERIM BASIS | C22: 0 | D22: 0 | E22: 0 | G22: 0 | H22: 0 | I22: 0
A23: STREET LIGHTING | B23: $/kW | C23: 5155 | D23: 4024186 | E23: 11336 | G23: 0.99 | H23: 0 | I23: 4.4901
A24: microFIT

Sheet 10. STS - Rebased Rev
A12: Calculation of Rebased Revenue Requirement. No input required.
A15: Rate Class | C15: Re-based Billed Customers or Connections | D15: Re-based Billed kWh | E15: Re-based Billed kW | G15: Rate ReBal Base Service Charge | H15: Rate ReBal Base Distribution Volumetric Rate kWh | I15: Rate ReBal Base Distribution Volumetric Rate kW | K15: Service Charge Revenue | L15: Distribution Volumetric Rate Revenue kWh | M15: Distribution Volumetric Rate Revenue kW | N15: Revenue Requirement from Rates | P15: Service Charge % Revenue | Q15: Distribution Volumetric Rate % Revenue kWh | R15: Distribution Volumetric Rate % Revenue kW | S15: Total % Revenue
C16: A | D16: B | E16: C | G16: D | H16: E | I16: F | K16: G = A * D *12 | L16: H = B * E | M16: I = C * F | N16: J = G + H + I | P16: K = G / J | Q16: L = H / J | R16: M = I / J | S16: N = J / R
A17: RESIDENTIAL | C17: 23386 | D17: 194606362 | E17: 0 | G17: 12.06 | H17: 0.0148 | I17: 0 | K17: =G17*C17*12 -> 3384421.92 | L17: =H17*D17 -> 2880174.158 | M17: 0 | N17: =SUM(K17,L17,M17) -> 6264596.078 | P17: =IF(ISERROR(K17/N17),0,K17/N17) -> 0.540245832 | Q17: =IF(ISERROR(L17/N17),0,L17/N17) -> 0.459754168 | R17: =IF(ISERROR(M17/N17),0,M17/N17) -> 0 | S17: =N17/N25 -> 0.5540363507
A18: GENERAL SERVICE LESS THAN 50 KW | C18: 3244 | D18: 93096784 | E18: 0 | G18: 24.83 | H18: 0.0103 | I18: 0 | K18: 966582.24 | L18: =H18*D18 -> 958896.8752 | M18: 0 | N18: 1925479.115 | P18: 0.5019957019 | Q18: 0.4980042981 | R18: 0 | S18: =N18/N25 -> 0.1702879817
A19: GENERAL SERVICE 50 TO 4,999 KW | C19: 347 | D19: 259610762 | E19: 701859 | G19: 269.01 | H19: 0 | I19: 1.927 | K19: 1120157.64 | L19: 0 | M19: =I19*E19 -> 1352482.293 | N19: 2472639.933 | P19: 0.4530209292 | Q19: 0 | R19: 0.5469790708 | S19: =N19/N25 -> 0.2186784891
A20: LARGE USE | C20: 3 | D20: 152017673 | E20: 297737 | G20: 4959.68 | H20: 0 | I20: 1.0118 | K20: 178548.48 | L20: 0 | M20: =I20*E20 -> 301250.2966 | N20: 479798.7766 | P20: 0.3721320035 | Q20: 0 | R20: 0.6278679965 | S20: =N20/N25 -> 0.04243305713
A21: UNMETERED SCATTERED LOAD | C21: 164 | D21: 2275040 | E21: 0 | G21: 11.09 | H21: 0.0135 | I21: 0 | K21: 21825.12 | L21: =H21*D21 -> 30713.04 | M21: 0 | N21: 52538.16 | P21: 0.4154146243 | Q21: 0.5845853757 | R21: 0 | S21: =N21/N25 -> 0.00464643691
A22: STANDBY POWER - APPROVED ON AN INTERIM BASIS | C22: 0 | D22: 0 | E22: 0 | G22: 0 | H22: 0 | I22: 0 | K22: 0 | L22: 0 | M22: 0 | N22: 0 | P22: 0 | Q22: 0 | R22: 0 | S22: =N22/N25 -> 0
A23: STREET LIGHTING | C23: 5155 | D23: 4024186 | E23: 11336 | G23: 0.99 | H23: 0 | I23: 4.4901 | K23: 61241.4 | L23: 0 | M23: =I23*E23 -> 50899.7736 | N23: 112141.1736 | P23: 0.5461098545 | Q23: 0 | R23: 0.4538901455 | S23: =N23/N25 -> 0.009917684368
A24: microFIT | K24: 0 | L24: 0 | M24: 0 | N24: 0 | P24: 0 | Q24: 0 | R24: 0 | S24: =N24/N25 -> 0
A25: Total | C25: =SUM(C17:C24) -> 32299 | D25: =SUM(D17:D24) -> 705630807 | E25: =SUM(E17:E24) -> 1010932 | K25: =SUM(K17:K24) -> 5732776.8 | L25: =SUM(L17:L24) -> 3869784.073 | M25: =SUM(M17:M24) -> 1704632.363 | N25: =SUM(N17:N24) -> 11307193.24 | S25: =SUM(S17:S24) -> 1

Sheet 9. STS - Billing Det & Rate HID (hidden)
A11: Shared Tax Savings
A12: ="Enter your " & '1. Information Sheet'!F32 & " Board-Approved Billing Determinents into columns B, C and D." -> Enter your 2011 Board-Approved Billing Determinents into columns B, C and D.
A16: Rate Class | B16: Units | C16: Re-based Billed Customers or Connections | D16: Re-based Billed kWh | E16: Re-based Billed kW (if applicable) | G16: ='1. Information Sheet'!F32 &" Base Monthly Service Charge" -> 2011 Base Monthly Service Charge | H16: ='1. Information Sheet'!F32 &" Base Distribution Volumetric Rate kWh" -> 2011 Base Distribution Volumetric Rate kWh | I16: ='1. Information Sheet'!F32 &" Base Distribution Volumetric Rate kW" -> 2011 Base Distribution Volumetric Rate kW
A17: RESIDENTIAL | B17: $/kWh | C17: 23386 | D17: 194606362 | E17: 0 | G17: 12.06 | H17: 0.0148 | I17: 0
A18: GENERAL SERVICE LESS THAN 50 KW | B18: $/kWh | C18: 3244 | D18: 93096784 | E18: 0 | G18: 24.83 | H18: 0.0103 | I18: 0
A19: GENERAL SERVICE 50 TO 4,999 KW | B19: $/kW | C19: 347 | D19: 259610762 | E19: 701859 | G19: 269.01 | H19: 0 | I19: 1.927
A20: LARGE USE | B20: $/kW | C20: 3 | D20: 152017673 | E20: 297737 | G20: 4959.68 | H20: 0 | I20: 1.0118
A21: UNMETERED SCATTERED LOAD | B21: $/kWh | C21: 164 | D21: 2275040 | E21: 0 | G21: 11.09 | H21: 0.0135 | I21: 0
A22: STANDBY POWER - APPROVED ON AN INTERIM BASIS | B22: 0 | C22: 0 | D22: 0 | E22: 0 | G22: 0 | H22: 0 | I22: 0
A23: STREET LIGHTING | B23: $/kW | C23: 5155 | D23: 4024186 | E23: 11336 | G23: 0.99 | H23: 0 | I23: 4.4901
A24: microFIT | B24: 0 | C24: 0 | D24: 0 | E24: 0 | G24: 0 | H24: 0 | I24: 0

Sheet 11. STS - Tax Change
T1: Rate Base | U1: Federal Tax Rate
T2: 500000 | U2: 0.11
T3: 10000000 | U3: 0.11
T4: =T3+100000 -> 10100000 | U4: 0.11
T5: =T4+100000 -> 10200000 | U5: 0.11
T6: 10300000 | U6: 0.11
T7: 10400000 | U7: 0.11
T8: 10500000 | U8: 0.11
T9: 10600000 | U9: 0.11
T10: 10700000 | U10: 0.11
T11: 10800000 | U11: 0.11
T12: 10900000 | U12: 0.11
A13: Summary - Sharing of Tax Change Forecast Amounts | T13: 11000000 | U13: 0.11
T14: 11100000 | U14: 0.111
A15: ="For the " & '1. Information Sheet'!F32 & " year, enter any Tax Credits from the Cost of Service Tax Calculation (Positive #)" -> For the 2011 year, enter any Tax Credits from the Cost of Service Tax Calculation (Positive #) | L15: 0 | T15: 11200000 | U15: =U14+0.13% -> 0.1123 | V15: =U15-U14 -> 0.0013
T16: 11300000 | U16: =U15+0.13% -> 0.1136 | V16: =U16-U15 -> 0.0013
T17: 11400000 | U17: 0.1149 | V17: 0.0013
A18: 1. Tax Related Amounts Forecast from Capital Tax Rate Changes | L18: ='1. Information Sheet'!F32 -> 2011 | N18: 2015 | T18: 11500000 | U18: 0.1162 | V18: 0.0013
A19: Taxable Capital (if you are not claiming capital tax, please enter your Board-Approved Rate Base) | L19: 42289795 | N19: =L19 -> 42289795 | T19: 11600000 | U19: =U18+0.12% -> 0.1174 | V19: 0.0012
T20: 11700000 | U20: =U19+0.12% -> 0.1186 | V20: 0.0012
A21: Deduction from taxable capital up to $15,000,000 | N21: =L21 -> 0 | T21: 11800000 | U21: 0.1198 | V21: 0.0012
T22: 11900000 | U22: 0.121 | V22: 0.0012
A23: Net Taxable Capital | L23: =L19-L21 -> 42289795 | N23: =N19-N21 -> 42289795 | T23: 12000000 | U23: =U22+0.112% -> 0.12212 | V23: 0.00112
T24: 12100000 | U24: =U23+0.112% -> 0.12324 | V24: 0.00112
A25: Rate | N25: 0 | T25: 12200000 | U25: 0.12436 | V25: 0.00112
T26: 12300000 | U26: 0.12548 | V26: 0.00112
A27: Ontario Capital Tax (Deductible, not grossed-up) | L27: =IF(L23>0, L23*L25, 0)*181/365 -> 0 | N27: 0 | T27: 12400000 | U27: 0.1266 | V27: 0.00112
T28: 12500000 | U28: 0.12772 | V28: 0.00112
A29: 2. Tax Related Amounts Forecast from lncome Tax Rate Changes | T29: 12600000 | U29: =U28+0.102% -> 0.12874 | V29: 0.00102
A30: Regulatory Taxable Income | L30: 1544582 | N30: =L30 -> 1544582 | T30: 12700000 | U30: =U29+0.102% -> 0.12976 | V30: 0.00102
T31: 12800000 | U31: 0.13078 | V31: 0.00102
A32: Corporate Tax Rate | L32: 0.259 | N32: =IF(N30=0,0,IF(N30<=500000,4.5%+11%,IF(N30>500000,(11.5%*N30-35000)/N30+VLOOKUP(N19,T:U,2,TRUE),""))) -> 0.2423401477 | T32: 12900000 | U32: 0.1318 | V32: 0.00102
T33: 13000000 | U33: 0.13282 | V33: 0.00102
A34: Tax Impact | L34: 400095 | N34: =N30*N32-L15 -> 374314.23 | T34: 13100000 | U34: =U33+0.096% -> 0.13378 | V34: 0.00096
T35: 13200000 | U35: =U34+0.096% -> 0.13474 | V35: 0.00096
A36: Grossed-up Tax Amount | L36: 557623 | N36: =N34/(1-N32) -> 494039.9427 | T36: 13300000 | U36: 0.1357 | V36: 0.00096
T37: 13400000 | U37: 0.13666 | V37: 0.00096
A38: Tax Related Amounts Forecast from Capital Tax Rate Changes | L38: =L27 -> 0 | N38: =N27 -> 0 | T38: 13500000 | U38: 0.13762 | V38: 0.00096
T39: 13600000 | U39: =U38+0.088% -> 0.1385 | V39: 0.00088
A40: Tax Related Amounts Forecast from lncome Tax Rate Changes | L40: =L36 -> 557623 | N40: =N36 -> 494039.9427 | T40: 13700000 | U40: =U39+0.088% -> 0.13938 | V40: 0.00088
T41: 13800000 | U41: 0.14026 | V41: 0.00088
A42: Total Tax Related Amounts | L42: =SUM(L40,L38) -> 557623 | N42: =SUM(N40,N38) -> 494039.9427 | T42: 13900000 | U42: 0.14114 | V42: 0.00088
T43: 14000000 | U43: 0.14202 | V43: 0.00088
A44: Incremental Tax Savings | N44: =N42-L42 -> -63583.05733 | T44: 14100000 | U44: =U43+0.082% -> 0.14284 | V44: 0.00082
T45: 14200000 | U45: =U44+0.082% -> 0.14366 | V45: 0.00082
A46: Sharing of Tax Savings (50%) | N46: =0.5*N44 -> -31791.52866 | T46: 14300000 | U46: 0.14448 | V46: 0.00082
T47: 14400000 | U47: 0.1453 | V47: 0.00082
T48: 14500000 | U48: 0.14612 | V48: 0.00082
T49: 14600000 | U49: =U48+0.076% -> 0.14688 | V49: 0.00076
T50: 14700000 | U50: =U49+0.076% -> 0.14764 | V50: 0.00076
T51: 14800000 | U51: 0.1484 | V51: 0.00076
T52: 14900000 | U52: 0.14916 | V52: 0.00076
T53: 15000000 | U53: 0.15 | V53: 0.00084

Sheet 12. STS - Tax Change Rate Rider
A11: This worksheet calculates a tax change volumetric rate rider. If the rate riders are material (round to 4 decimal places), then the outputs in columns M and O will appear on Sheet 27 - Final Tariff Schedule.
A15: Rate Class | C15: Total Revenue $ by Rate Class | E15: Total Revenue % by Rate Class | G15: Allocation of Tax Savings by Rate Class | I15: Billed kWh | K15: Billed kW | M15: Distribution Volumetric Rate kWh Rate Rider | O15: Distribution Volumetric Rate kW Rate Rider
A17: RESIDENTIAL | C17: 6264596.078 | E17: =C17/C25 -> 0.5540363507 | G17: =E17*G25 -> -17613.66327 | I17: 194606362 | K17: 0 | M17: =ROUND(G17/I17,4) -> -0.0001
A18: GENERAL SERVICE LESS THAN 50 KW | C18: 1925479.115 | E18: =C18/C25 -> 0.1702879817 | G18: =E18*G25 -> -5413.71548 | I18: 93096784 | K18: 0 | M18: =ROUND(G18/I18,4) -> -0.0001
A19: GENERAL SERVICE 50 TO 4,999 KW | C19: 2472639.933 | E19: =C19/C25 -> 0.2186784891 | G19: =E19*G25 -> -6952.123747 | I19: 259610762 | K19: 701859 | O19: =ROUND(G19/K19,4) -> -0.0099
A20: LARGE USE | C20: 479798.7766 | E20: =C20/C25 -> 0.04243305713 | G20: =E20*G25 -> -1349.011809 | I20: 152017673 | K20: 297737 | O20: =ROUND(G20/K20,4) -> -0.0045
A21: UNMETERED SCATTERED LOAD | C21: 52538.16 | E21: =C21/C25 -> 0.00464643691 | G21: =E21*G25 -> -147.7173384 | I21: 2275040 | K21: 0 | M21: =ROUND(G21/I21,4) -> -0.0001
A22: STANDBY POWER - APPROVED ON AN INTERIM BASIS | C22: 0 | E22: =C22/C25 -> 0 | G22: =E22*G25 -> 0 | I22: 0 | K22: 0
A23: STREET LIGHTING | C23: 112141.1736 | E23: =C23/C25 -> 0.009917684368 | G23: =E23*G25 -> -315.2983601 | I23: 4024186 | K23: 11336 | O23: =ROUND(G23/K23,4) -> -0.0278
A24: microFIT | C24: 0 | E24: =C24/C25 -> 0 | G24: =E24*G25 -> 0
A25: Total | C25: =SUM(C17:C24) -> 11307193.24 | E25: =SUM(E17:E24) -> 1 | G25: -31791.53 | I25: =SUM(I17:I24) -> 705630807 | K25: =SUM(K17:K24) -> 1010932

Sheet 13. RTSR Rate Sheet
A13: No input required. This sheet consolidates all Current Retail Transmission Rates entered on Sheet 4.
A15: Rate Class | B15: Rate Description | C15: Unit | D15: RTSR-Network | E15: RTSR-Connection
A17: RESIDENTIAL | B17: Retail Transmission Rate - Network Service Rate | C17: $/kWh | D17: 0.0072
A18: RESIDENTIAL | B18: Retail Transmission Rate - Line and Transformation Connection Service Rate | C18: $/kWh | E18: 0.0055
A19: GENERAL SERVICE LESS THAN 50 KW | B19: Retail Transmission Rate - Network Service Rate | C19: $/kWh | D19: 0.0065
A20: GENERAL SERVICE LESS THAN 50 KW | B20: Retail Transmission Rate - Line and Transformation Connection Service Rate | C20: $/kWh | E20: 0.005
A21: GENERAL SERVICE 50 TO 4,999 KW | B21: Retail Transmission Rate - Network Service Rate | C21: $/kW | D21: 2.8319
A22: GENERAL SERVICE 50 TO 4,999 KW | B22: Retail Transmission Rate - Line and Transformation Connection Service Rate | C22: $/kW | E22: 2.1693
A23: LARGE USE | B23: Retail Transmission Rate - Network Service Rate | C23: $/kW | D23: 3.4122
A24: LARGE USE | B24: Retail Transmission Rate - Line and Transformation Connection Service Rate | C24: $/kW | E24: 2.6139
A25: UNMETERED SCATTERED LOAD | B25: Retail Transmission Rate - Network Service Rate | C25: $/kWh | D25: 0.0072
A26: UNMETERED SCATTERED LOAD | B26: Retail Transmission Rate - Line and Transformation Connection Service Rate | C26: $/kWh | E26: 0.0055
A27: STREET LIGHTING | B27: Retail Transmission Rate - Network Service Rate | C27: $/kW | D27: 2.0455
A28: STREET LIGHTING | B28: Retail Transmission Rate - Line and Transformation Connection Service Rate | C28: $/kW | E28: 1.5668

Sheet 14. RTSR RRR Data
A12: In the green shaded cells, enter the most recent reported RRR billing determinants. Please ensure that billing determinants are non-loss adjusted.
A14: Rate Class | B14: Rate Description | C14: Unit | D14: Non-Loss Adjusted Metered kWh | E14: Non-Loss Adjusted Metered kW | F14: Applicable Loss Factor | H14: Load Factor | I14: Loss Adjusted Billed kWh | J14: Billed kW
A15: RESIDENTIAL | B15: Retail Transmission Rate - Network Service Rate | C15: $/kWh | D15: 189838640.6 | E15: 0 | F15: 1.0344 | H15: =IF(C15="$/kW", D15/(E15* 30.4 * 24), "" ) ->  | I15: =IF(OR(F15=0, OR(ISBLANK(F15), TRIM(F15)="")), F15, F15 * D15) -> 196369089.8 | J15: =IF(OR(F15=0, OR(ISBLANK(F15), TRIM(F15)="")), E15, E15) -> 0
A16: RESIDENTIAL | B16: Retail Transmission Rate - Line and Transformation Connection Service Rate | C16: $/kWh | D16: 189838640.6 | E16: 0 | F16: 1.0344 | H16: =IF(C16="$/kW", D16/(E16* 30.4 * 24), "" ) ->  | I16: 196369089.8 | J16: 0
A17: GENERAL SERVICE LESS THAN 50 KW | B17: Retail Transmission Rate - Network Service Rate | C17: $/kWh | D17: 86582360.1 | E17: 0 | F17: 1.0344 | H17: =IF(C17="$/kW", D17/(E17* 30.4 * 24), "" ) ->  | I17: 89560793.29 | J17: 0
A18: GENERAL SERVICE LESS THAN 50 KW | B18: Retail Transmission Rate - Line and Transformation Connection Service Rate | C18: $/kWh | D18: 86582360.1 | E18: 0 | F18: 1.0344 | H18: =IF(C18="$/kW", D18/(E18* 30.4 * 24), "" ) ->  | I18: 89560793.29 | J18: 0
A19: GENERAL SERVICE 50 TO 4,999 KW | B19: Retail Transmission Rate - Network Service Rate | C19: $/kW | D19: 277540533.6 | E19: 767156 | F19: 0 | H19: 0 | I19: 0 | J19: 767156
A20: GENERAL SERVICE 50 TO 4,999 KW | B20: Retail Transmission Rate - Line and Transformation Connection Service Rate | C20: $/kW | D20: 277540533.6 | E20: 767156 | F20: 0 | H20: 0 | I20: 0 | J20: 767156
A21: LARGE USE | B21: Retail Transmission Rate - Network Service Rate | C21: $/kW | D21: 153508055.6 | E21: 291732 | F21: 0 | H21: 0 | I21: 0 | J21: 291732
A22: LARGE USE | B22: Retail Transmission Rate - Line and Transformation Connection Service Rate | C22: $/kW | D22: 153508055.6 | E22: 291732 | F22: 0 | H22: 0 | I22: 0 | J22: 291732
A23: UNMETERED SCATTERED LOAD | B23: Retail Transmission Rate - Network Service Rate | C23: $/kWh | D23: 866225 | E23: 0 | F23: 1.0344 | H23: =IF(C23="$/kW", D23/(E23* 30.4 * 24), "" ) ->  | I23: 896023.14 | J23: 0
A24: UNMETERED SCATTERED LOAD | B24: Retail Transmission Rate - Line and Transformation Connection Service Rate | C24: $/kWh | D24: 866225 | E24: 0 | F24: 1.0344 | H24: =IF(C24="$/kW", D24/(E24* 30.4 * 24), "" ) ->  | I24: 896023.14 | J24: 0
A25: STREET LIGHTING | B25: Retail Transmission Rate - Network Service Rate | C25: $/kW | D25: 3236835 | E25: 8744 | F25: 0 | H25: 0 | I25: 0 | J25: 8744
A26: STREET LIGHTING | B26: Retail Transmission Rate - Line and Transformation Connection Service Rate | C26: $/kW | D26: 3236835 | E26: 8744 | F26: 0 | H26: 0 | I26: 0 | J26: 8744

Sheet 14. RTSR RRR Data Copy (hidden)
A12: In the green shaded cells, enter the most recent reported RRR billing determinants. Please ensure that billing determinants are non-loss adjusted.
A14: Rate Class | B14: Rate Description | C14: Unit | D14: Non-Loss Adjusted Metered kWh | E14: Non-Loss Adjusted Metered kW | F14: Applicable Loss Factor | H14: Load Factor | I14: Loss Adjusted Billed kWh | J14: Billed kW
A15: RESIDENTIAL | B15: Retail Transmission Rate - Network Service Rate | C15: $/kWh | D15: 189838640.6 | E15: 0 | F15: 1.0344
A16: RESIDENTIAL | B16: Retail Transmission Rate - Line and Transformation Connection Service Rate | C16: $/kWh | D16: 189838640.6 | E16: 0 | F16: 1.0344
A17: GENERAL SERVICE LESS THAN 50 KW | B17: Retail Transmission Rate - Network Service Rate | C17: $/kWh | D17: 86582360.1 | E17: 0 | F17: 1.0344
A18: GENERAL SERVICE LESS THAN 50 KW | B18: Retail Transmission Rate - Line and Transformation Connection Service Rate | C18: $/kWh | D18: 86582360.1 | E18: 0 | F18: 1.0344
A19: GENERAL SERVICE 50 TO 4,999 KW | B19: Retail Transmission Rate - Network Service Rate | C19: $/kW | D19: 277540533.6 | E19: 767156 | F19: 0
A20: GENERAL SERVICE 50 TO 4,999 KW | B20: Retail Transmission Rate - Line and Transformation Connection Service Rate | C20: $/kW | D20: 277540533.6 | E20: 767156 | F20: 0
A21: LARGE USE | B21: Retail Transmission Rate - Network Service Rate | C21: $/kW | D21: 153508055.6 | E21: 291732 | F21: 0
A22: LARGE USE | B22: Retail Transmission Rate - Line and Transformation Connection Service Rate | C22: $/kW | D22: 153508055.6 | E22: 291732 | F22: 0
A23: UNMETERED SCATTERED LOAD | B23: Retail Transmission Rate - Network Service Rate | C23: $/kWh | D23: 866225 | E23: 0 | F23: 1.0344
A24: UNMETERED SCATTERED LOAD | B24: Retail Transmission Rate - Line and Transformation Connection Service Rate | C24: $/kWh | D24: 866225 | E24: 0 | F24: 1.0344
A25: STREET LIGHTING | B25: Retail Transmission Rate - Network Service Rate | C25: $/kW | D25: 3236835 | E25: 8744 | F25: 0
A26: STREET LIGHTING | B26: Retail Transmission Rate - Line and Transformation Connection Service Rate | C26: $/kW | D26: 3236835 | E26: 8744 | F26: 0

Sheet 15. RTSR - UTRs & Sub-Tx
B18: Uniform Transmission Rates | C18: Unit | E18: Effective January 1, 2013 | G18: Effective January 1, 2014 | I18: Effective January 1, 2015
B20: Rate Description | E20: Rate | G20: Rate | I20: Rate
B22: Network Service Rate | C22: kW | E22: 3.63 | G22: 3.82 | I22: 3.82
B24: Line Connection Service Rate | C24: kW | E24: 0.75 | G24: 0.82 | I24: 0.82
B26: Transformation Connection Service Rate | C26: kW | E26: 1.85 | G26: 1.98 | I26: 1.98
B29: Hydro One Sub-Transmission Rates | C29: Unit | E29: Effective January 1, 2013 | G29: Effective January 1, 2014 | I29: Effective January 1, 2015
B33: Rate Description | E33: Rate | G33: Rate | I33: Rate
B35: Network Service Rate | C35: kW | E35: 3.18 | G35: 3.23 | I35: =+G35 -> 3.23
B37: Line Connection Service Rate | C37: kW | E37: 0.7 | G37: 0.65 | I37: =+G37 -> 0.65
B39: Transformation Connection Service Rate | C39: kW | E39: 1.63 | G39: 1.62 | I39: =+G39 -> 1.62
B41: Both Line and Transformation Connection Service Rate | C41: kW | E41: =E39+E37 -> 2.33 | G41: =G39+G37 -> 2.27 | I41: =I39+I37 -> 2.27
B44: If needed , add extra host here (I) | C44: Unit | E44: Effective January 1, 2013 | G44: Effective January 1, 2014 | I44: Effective January 1, 2015
B48: Rate Description | E48: Rate | G48: Rate | I48: Rate
B50: Network Service Rate | C50: kW
B52: Line Connection Service Rate | C52: kW
B54: Transformation Connection Service Rate | C54: kW
B56: Both Line and Transformation Connection Service Rate | C56: kW | E56: =E54+E52 -> 0 | G56: =G54+G52 -> 0 | I56: =I54+I52 -> 0
B59: If needed , add extra host here (II) | C59: Unit | E59: Effective January 1, 2013 | G59: Effective January 1, 2014 | I59: Effective January 1, 2015
B63: Rate Description | E63: Rate | G63: Rate | I63: Rate
B65: Network Service Rate | C65: kW
B67: Line Connection Service Rate | C67: kW
B69: Transformation Connection Service Rate | C69: kW
B71: Both Line and Transformation Connection Service Rate | C71: kW | E71: =E69+E67 -> 0 | G71: =G69+G67 -> 0 | I71: =I69+I67 -> 0
B75: Hydro One Sub-Transmission Rate Rider 9A | C75: Unit | E75: Effective January 1, 2013 | G75: Effective January 1, 2014 | I75: Effective January 1, 2015
B77: Rate Description | E77: Rate | G77: Rate | I77: Rate
B79: RSVA Transmission network – 4714 – which affects 1584 | C79: kW | E79: 0 | G79: 0.1465 | I79: 0.1465
B81: RSVA Transmission connection – 4716 – which affects 1586 | C81: kW | E81: 0 | G81: 0.0667 | I81: 0.0667
B83: RSVA LV – 4750 – which affects 1550 | C83: kW | E83: 0 | G83: 0.0475 | I83: 0.0475
B85: RARA 1 – 2252 – which affects 1590 | C85: kW | E85: 0 | G85: 0.0419 | I85: 0.0419
B87: RARA 1 – 2252 – which affects 1590 (2008) | C87: kW | E87: 0 | G87: -0.027 | I87: -0.027
B89: RARA 1 – 2252 – which affects 1590 (2009) | C89: kW | E89: 0 | G89: -0.0006 | I89: -0.0006
B91: Hydro One Sub-Transmission Rate Rider 9A | C91: kW | E91: =SUM(E79:E89) -> 0 | G91: =SUM(G79:G89) -> 0.275 | I91: =SUM(I79:I89) -> 0.275
E94: Historical 2013 | G94: Current 2014 | I94: Forecast 2015
B95: Low Voltage Switchgear Credit (if applicable, enter as a negative value) | C95: $

Sheet 16. RTSR - Historical Wholesale
B13: In the green shaded cells, enter billing detail for wholesale transmission for the same reporting period as the billing determinants on Sheet "14. RTSR RRR Data". For Hydro One Sub-transmission Rates, if you are charged a combined Line and Transformer connection rate, please ensure that both the line connection and transformer connection columns are completed.
B16: IESO | D16: Network | H16: Line Connection | L16: Transformation Connection | P16: Total Line
B17: Month | D17: Units Billed | E17: Rate | F17: Amount | H17: Units Billed | I17: Rate | J17: Amount | L17: Units Billed | M17: Rate | N17: Amount | P17: Amount
B19: January | D19: 58744 | E19: =IF(D19<>0,F19/D19,0) -> 3.63 | F19: 213240.72 | H19: 69110 | I19: =IF(H19<>0,J19/H19,0) -> 0.75 | J19: 51832.5 | L19: 69110 | M19: =IF(L19<>0,N19/L19,0) -> 1.85 | N19: 127853.5 | P19: =J19+N19 -> 179686
B20: February | D20: 51500 | E20: 3.63 | F20: 186945 | H20: 55611 | I20: 0.75 | J20: 41708.25 | L20: 55611 | M20: 1.85 | N20: 102880.35 | P20: 144588.6
B21: March | D21: 37065.73554 | E21: 3.63 | F21: 134548.62 | H21: 38669 | I21: 0.75 | J21: 29001.75 | L21: 38669 | M21: 1.85 | N21: 71537.65 | P21: 100539.4
B22: April | D22: 36184 | E22: 3.63 | F22: 131347.92 | H22: 36495 | I22: 0.75 | J22: 27371.25 | L22: 36495 | M22: 1.85 | N22: 67515.75 | P22: 94887
B23: May | D23: 43949 | E23: 3.63 | F23: 159534.87 | H23: 46106 | I23: 0.75 | J23: 34579.5 | L23: 46106 | M23: 1.85 | N23: 85296.1 | P23: 119875.6
B24: June | D24: 46358 | E24: 3.63 | F24: 168279.54 | H24: 54539 | I24: 0.75 | J24: 40904.25 | L24: 54539 | M24: 1.85 | N24: 100897.15 | P24: 141801.4
B25: July | D25: 47138.00826 | E25: 3.63 | F25: 171110.97 | H25: 55457 | I25: 0.75 | J25: 41592.75 | L25: 55457 | M25: 1.85 | N25: 102595.45 | P25: 144188.2
B26: August | D26: 40524 | E26: 3.63 | F26: 147102.12 | H26: 45438 | I26: 0.75 | J26: 34078.5 | L26: 45438 | M26: 1.85 | N26: 84060.3 | P26: 118138.8
B27: September | D27: 43381.27273 | E27: 3.63 | F27: 157474.02 | H27: 48039 | I27: 0.75 | J27: 36029.25 | L27: 48039 | M27: 1.85 | N27: 88872.15 | P27: 124901.4
B28: October | D28: 39568 | E28: 3.63 | F28: 143631.84 | H28: 46551 | I28: 0.75 | J28: 34913.25 | L28: 46551 | M28: 1.85 | N28: 86119.35 | P28: 121032.6
B29: November | D29: 47954 | E29: 3.63 | F29: 174073.02 | H29: 56417 | I29: 0.75 | J29: 42312.75 | L29: 56417 | M29: 1.85 | N29: 104371.45 | P29: 146684.2
B30: December | D30: 55276 | E30: 3.63 | F30: 200651.88 | H30: 61498 | I30: 0.75 | J30: 46123.5 | L30: 61498 | M30: 1.85 | N30: 113771.3 | P30: 159894.8
B32: Total | D32: =SUM(D19:D30) -> 547642.0165 | E32: =IF(D32<>0,F32/D32,0) -> 3.63 | F32: =SUM(F19:F30) -> 1987940.52 | H32: =SUM(H19:H30) -> 613930 | I32: =IF(H32<>0,J32/H32,0) -> 0.75 | J32: =SUM(J19:J30) -> 460447.5 | L32: =SUM(L19:L30) -> 613930 | M32: =IF(L32<>0,N32/L32,0) -> 1.85 | N32: =SUM(N19:N30) -> 1135770.5 | P32: =SUM(P19:P30) -> 1596218
B34: Hydro One | D34: Network | H34: Line Connection | L34: Transformation Connection | P34: Total Line
B36: Month | D36: Units Billed | E36: Rate | F36: Amount | H36: Units Billed | I36: Rate | J36: Amount | L36: Units Billed | M36: Rate | N36: Amount | P36: Amount
B38: January | D38: 80885 | E38: =IF(D38<>0,F38/D38,0) -> 3.18 | F38: 257214.3 | H38: 80885 | I38: =IF(H38<>0,J38/H38,0) -> 0.7 | J38: 56619.5 | L38: 80885 | M38: =IF(L38<>0,N38/L38,0) -> 1.63 | N38: 131842.55 | P38: =J38+N38 -> 188462.05
B39: February | D39: 72743 | E39: 3.18 | F39: 231322.74 | H39: 72743 | I39: 0.7 | J39: 50920.1 | L39: 72743 | M39: 1.63 | N39: 118571.09 | P39: 169491.19
B40: March | D40: 78483 | E40: 3.18 | F40: 249575.94 | H40: 78483 | I40: 0.7 | J40: 54938.1 | L40: 78483 | M40: 1.63 | N40: 127927.29 | P40: 182865.39
B41: April | D41: 71157.18 | E41: 3.179999859 | F41: 226279.8224 | H41: 71157.18 | I41: 0.7 | J41: 49810.026 | L41: 71157.18 | M41: 1.63 | N41: 115986.2034 | P41: 165796.2294
B42: May | D42: 61135.6 | E42: 3.18 | F42: 194411.208 | H42: 61135.6 | I42: 0.7 | J42: 42794.92 | L42: 61135.6 | M42: 1.63 | N42: 99651.028 | P42: 142445.948
B43: June | D43: 62968.76 | E43: 3.18 | F43: 200240.6568 | H43: 62968.76 | I43: 0.7 | J43: 44078.132 | L43: 62968.76 | M43: 1.63 | N43: 102639.0788 | P43: 146717.2108
B44: July | D44: 77147.94 | E44: 3.18 | F44: 245330.4492 | H44: 77147.94 | I44: 0.7 | J44: 54003.558 | L44: 77147.94 | M44: 1.63 | N44: 125751.1422 | P44: 179754.7002
B45: August | D45: 71392.85 | E45: 3.18 | F45: 227029.263 | H45: 71392.85 | I45: 0.7 | J45: 49974.995 | L45: 71392.85 | M45: 1.63 | N45: 116370.3455 | P45: 166345.3405
B46: September | D46: 65276.1 | E46: 3.18 | F46: 207577.998 | H46: 65276.09571 | I46: 0.7 | J46: 45693.267 | L46: 65276.09571 | M46: 1.63 | N46: 106400.036 | P46: 152093.303
B47: October | D47: 61526.06 | E47: 3.179382652 | F47: 195614.8878 | H47: 61526.06 | I47: 0.7 | J47: 43068.242 | L47: 61526.06 | M47: 1.63 | N47: 100287.4778 | P47: 143355.7198
B48: November | D48: 67466.93 | E48: 3.18 | F48: 214544.8374 | H48: 67466.93 | I48: 0.7 | J48: 47226.851 | L48: 67466.93 | M48: 1.63 | N48: 109971.0959 | P48: 157197.9469
B49: December | D49: 81397.27175 | E49: 3.18 | F49: 258843.3241 | H49: 80347.46176 | I49: 0.7 | J49: 56243.22323 | L49: 80347.46176 | M49: 1.63 | N49: 130966.3627 | P49: 187209.5859
B51: Total | D51: =SUM(D38:D49) -> 851579.6917 | E51: =IF(D51<>0,F51/D51,0) -> 3.179955385 | F51: =SUM(F38:F49) -> 2707985.427 | H51: =SUM(H38:H49) -> 850529.8775 | I51: =IF(H51<>0,J51/H51,0) -> 0.7 | J51: =SUM(J38:J49) -> 595370.9142 | L51: =SUM(L38:L49) -> 850529.8775 | M51: =IF(L51<>0,N51/L51,0) -> 1.63 | N51: =SUM(N38:N49) -> 1386363.7 | P51: =SUM(P38:P49) -> 1981734.615
B53: Add Extra Host Here (I) | D53: Network | H53: Line Connection | L53: Transformation Connection | P53: Total Line
B54: (if needed)
B55: Month | D55: Units Billed | E55: Rate | F55: Amount | H55: Units Billed | I55: Rate | J55: Amount | L55: Units Billed | M55: Rate | N55: Amount | P55: Amount
B57: January | E57: =IF(D57<>0,F57/D57,0) -> 0 | I57: =IF(H57<>0,J57/H57,0) -> 0 | M57: =IF(L57<>0,N57/L57,0) -> 0 | P57: =J57+N57 -> 0
B58: February | E58: 0 | I58: 0 | M58: 0 | P58: 0
B59: March | E59: 0 | I59: 0 | M59: 0 | P59: 0
B60: April | E60: 0 | I60: 0 | M60: 0 | P60: 0
B61: May | E61: 0 | I61: 0 | M61: 0 | P61: 0
B62: June | E62: 0 | I62: 0 | M62: 0 | P62: 0
B63: July | E63: 0 | I63: 0 | M63: 0 | P63: 0
B64: August | E64: 0 | I64: 0 | M64: 0 | P64: 0
B65: September | E65: 0 | I65: 0 | M65: 0 | P65: 0
B66: October | E66: 0 | I66: 0 | M66: 0 | P66: 0
B67: November | E67: 0 | I67: 0 | M67: 0 | P67: 0
B68: December | E68: 0 | I68: 0 | M68: 0 | P68: 0
B70: Total | D70: =SUM(D57:D68) -> 0 | E70: =IF(D70<>0,F70/D70,0) -> 0 | F70: =SUM(F57:F68) -> 0 | H70: =SUM(H57:H68) -> 0 | I70: =IF(H70<>0,J70/H70,0) -> 0 | J70: =SUM(J57:J68) -> 0 | L70: =SUM(L57:L68) -> 0 | M70: =IF(L70<>0,N70/L70,0) -> 0 | N70: =SUM(N57:N68) -> 0 | P70: =SUM(P57:P68) -> 0
B72: Add Extra Host Here (II) | D72: Network | H72: Line Connection | L72: Transformation Connection | P72: Total Line
B73: (if needed)
B74: Month | D74: Units Billed | E74: Rate | F74: Amount | H74: Units Billed | I74: Rate | J74: Amount | L74: Units Billed | M74: Rate | N74: Amount | P74: Amount
B76: January | E76: =IF(D76<>0,F76/D76,0) -> 0 | I76: =IF(H76<>0,J76/H76,0) -> 0 | M76: =IF(L76<>0,N76/L76,0) -> 0 | P76: =J76+N76 -> 0
B77: February | E77: 0 | I77: 0 | M77: 0 | P77: 0
B78: March | E78: 0 | I78: 0 | M78: 0 | P78: 0
B79: April | E79: 0 | I79: 0 | M79: 0 | P79: 0
B80: May | E80: 0 | I80: 0 | M80: 0 | P80: 0
B81: June | E81: 0 | I81: 0 | M81: 0 | P81: 0
B82: July | E82: 0 | I82: 0 | M82: 0 | P82: 0
B83: August | E83: 0 | I83: 0 | M83: 0 | P83: 0
B84: September | E84: 0 | I84: 0 | M84: 0 | P84: 0
B85: October | E85: 0 | I85: 0 | M85: 0 | P85: 0
B86: November | E86: 0 | I86: 0 | M86: 0 | P86: 0
B87: December | E87: 0 | I87: 0 | M87: 0 | P87: 0
B89: Total | D89: =SUM(D76:D87) -> 0 | E89: =IF(D89<>0,F89/D89,0) -> 0 | F89: =SUM(F76:F87) -> 0 | H89: =SUM(H76:H87) -> 0 | I89: =IF(H89<>0,J89/H89,0) -> 0 | J89: =SUM(J76:J87) -> 0 | L89: =SUM(L76:L87) -> 0 | M89: =IF(L89<>0,N89/L89,0) -> 0 | N89: =SUM(N76:N87) -> 0 | P89: =SUM(P76:P87) -> 0
B91: Total | D91: Network | H91: Line Connection | L91: Transformation Connection | P91: Total Line
B93: Month | D93: Units Billed | E93: Rate | F93: Amount | H93: Units Billed | I93: Rate | J93: Amount | L93: Units Billed | M93: Rate | N93: Amount | P93: Amount
B95: January | D95: =D19+D38+D57+D76 -> 139629 | E95: =IF(D95<>0,F95/D95,0) -> 3.369321703 | F95: =F19+F38+F57+F76 -> 470455.02 | H95: =H19+H38+H57+H76 -> 149995 | I95: =IF(H95<>0,J95/H95,0) -> 0.7230374346 | J95: =J19+J38+J57+J76 -> 108452 | L95: =L19+L38+L57+L76 -> 149995 | M95: =IF(L95<>0,N95/L95,0) -> 1.731364712 | N95: =N19+N38+N57+N76 -> 259696.05 | P95: =J95+N95 -> 368148.05
B96: February | D96: =D20+D39+D58+D77 -> 124243 | E96: 3.366529623 | F96: =F20+F39+F58+F77 -> 418267.74 | H96: =H20+H39+H58+H77 -> 128354 | I96: 0.7216631348 | J96: =J20+J39+J58+J77 -> 92628.35 | L96: =L20+L39+L58+L77 -> 128354 | M96: 1.725317793 | N96: =N20+N39+N58+N77 -> 221451.44 | P96: 314079.79
B97: March | D97: 115548.7355 | E97: 3.324351047 | F97: 384124.56 | H97: 117152 | I97: 0.7165037729 | J97: 83939.85 | L97: 117152 | M97: 1.702616601 | N97: 199464.94 | P97: 283404.79
B98: April | D98: 107341.18 | E98: 3.331691923 | F98: 357627.7424 | H98: 107652.18 | I98: 0.7169504231 | J98: 77181.276 | L98: 107652.18 | M98: 1.704581862 | N98: 183501.9534 | P98: 260683.2294
B99: May | D99: 105084.6 | E99: 3.368201221 | F99: 353946.078 | H99: 107241.6 | I99: 0.7214963223 | J99: 77374.42 | L99: 107241.6 | M99: 1.724583818 | N99: 184947.128 | P99: 262321.548
B100: June | D100: 109326.76 | E100: 3.370814216 | F100: 368520.1968 | H100: 117507.76 | I100: 0.7232065525 | J100: 84982.382 | L100: 117507.76 | M100: 1.732108831 | N100: 203536.2288 | P100: 288518.6108
B101: July | D101: 124285.9483 | E101: 3.350671778 | F101: 416441.4192 | H101: 132604.94 | I101: 0.7209106086 | J101: 95596.308 | L101: 132604.94 | M101: 1.722006678 | N101: 228346.5922 | P101: 323942.9002
B102: August | D102: 111916.85 | E102: 3.342940612 | F102: 374131.383 | H102: 116830.85 | I102: 0.7194460624 | J102: 84053.495 | L102: 116830.85 | M102: 1.715562675 | N102: 200430.6455 | P102: 284484.1405
B103: September | D103: 108657.3727 | E103: 3.359661741 | F103: 365052.018 | H103: 113315.0957 | I103: 0.7211970875 | J103: 81722.517 | L103: 113315.0957 | M103: 1.723267185 | N103: 195272.186 | P103: 276994.703
B104: October | D104: 101094.06 | E104: 3.355753323 | F104: 339246.7278 | H104: 108077.06 | I104: 0.7215360225 | J104: 77981.492 | L104: 108077.06 | M104: 1.724758499 | N104: 186406.8278 | P104: 264388.3198
B105: November | D105: 115420.93 | E105: 3.366961758 | F105: 388617.8574 | H105: 123883.93 | I105: 0.7227701042 | J105: 89539.601 | L105: 123883.93 | M105: 1.730188459 | N105: 214342.5459 | P105: 303882.1469
B106: December | D106: 136673.2717 | E106: 3.361997546 | F106: 459495.2042 | H106: 141845.4618 | I106: 0.7216778173 | J106: 102366.7232 | L106: 141845.4618 | M106: 1.725382396 | N106: 244737.6627 | P106: 347104.3859
B108: Total | D108: =SUM(D95:D106) -> 1399221.708 | E108: =IF(D108<>0,F108/D108,0) -> 3.35609855 | F108: =SUM(F95:F106) -> 4695925.947 | H108: =SUM(H95:H106) -> 1464459.877 | I108: =IF(H108<>0,J108/H108,0) -> 0.7209609703 | J108: =SUM(J95:J106) -> 1055818.414 | L108: =SUM(L95:L106) -> 1464459.877 | M108: =IF(L108<>0,N108/L108,0) -> 1.722228269 | N108: =SUM(N95:N106) -> 2522134.2 | P108: =SUM(P95:P106) -> 3577952.614
N110: Transformer Allowance Credit (if applicable) | P110: ='15. RTSR - UTRs & Sub-Tx'!E95 -> 0
N112: Total including deduction for Transformer Allowance Credit | P112: =P108+P110 -> 3577952.614

Sheet 17. RTSR - Current Wholesale
B13: The purpose of this sheet is to calculate the expected billing when current 2014 Uniform Transmission Rates are applied against historical 2013 transmission units.
B16: IESO | D16: Network | H16: Line Connection | L16: Transformation Connection | P16: Total Line
B18: Month | D18: Units Billed | E18: Rate | F18: Amount | H18: Units Billed | I18: Rate | J18: Amount | L18: Units Billed | M18: Rate | N18: Amount | P18: Amount
B20: January | D20: ='16. RTSR - Historical Wholesale'!D19 -> 58744 | E20: ='15. RTSR - UTRs & Sub-Tx'!G22 -> 3.82 | F20: =D20*E20 -> 224402.08 | H20: ='16. RTSR - Historical Wholesale'!H19 -> 69110 | I20: ='15. RTSR - UTRs & Sub-Tx'!G24 -> 0.82 | J20: =H20*I20 -> 56670.2 | L20: ='16. RTSR - Historical Wholesale'!L19 -> 69110 | M20: ='15. RTSR - UTRs & Sub-Tx'!G26 -> 1.98 | N20: =L20*M20 -> 136837.8 | P20: =J20+N20 -> 193508
B21: February | D21: ='16. RTSR - Historical Wholesale'!D20 -> 51500 | E21: =E20 -> 3.82 | F21: =D21*E21 -> 196730 | H21: ='16. RTSR - Historical Wholesale'!H20 -> 55611 | I21: =I20 -> 0.82 | J21: =H21*I21 -> 45601.02 | L21: ='16. RTSR - Historical Wholesale'!L20 -> 55611 | M21: =M20 -> 1.98 | N21: =L21*M21 -> 110109.78 | P21: 155710.8
B22: March | D22: ='16. RTSR - Historical Wholesale'!D21 -> 37065.73554 | E22: =E21 -> 3.82 | F22: 141591.1098 | H22: ='16. RTSR - Historical Wholesale'!H21 -> 38669 | I22: =I21 -> 0.82 | J22: 31708.58 | L22: ='16. RTSR - Historical Wholesale'!L21 -> 38669 | M22: =M21 -> 1.98 | N22: 76564.62 | P22: 108273.2
B23: April | D23: ='16. RTSR - Historical Wholesale'!D22 -> 36184 | E23: 3.82 | F23: 138222.88 | H23: ='16. RTSR - Historical Wholesale'!H22 -> 36495 | I23: 0.82 | J23: 29925.9 | L23: ='16. RTSR - Historical Wholesale'!L22 -> 36495 | M23: 1.98 | N23: 72260.1 | P23: 102186
B24: May | D24: ='16. RTSR - Historical Wholesale'!D23 -> 43949 | E24: 3.82 | F24: 167885.18 | H24: ='16. RTSR - Historical Wholesale'!H23 -> 46106 | I24: 0.82 | J24: 37806.92 | L24: ='16. RTSR - Historical Wholesale'!L23 -> 46106 | M24: 1.98 | N24: 91289.88 | P24: 129096.8
B25: June | D25: ='16. RTSR - Historical Wholesale'!D24 -> 46358 | E25: 3.82 | F25: 177087.56 | H25: ='16. RTSR - Historical Wholesale'!H24 -> 54539 | I25: 0.82 | J25: 44721.98 | L25: ='16. RTSR - Historical Wholesale'!L24 -> 54539 | M25: 1.98 | N25: 107987.22 | P25: 152709.2
B26: July | D26: ='16. RTSR - Historical Wholesale'!D25 -> 47138.00826 | E26: 3.82 | F26: 180067.1916 | H26: ='16. RTSR - Historical Wholesale'!H25 -> 55457 | I26: 0.82 | J26: 45474.74 | L26: ='16. RTSR - Historical Wholesale'!L25 -> 55457 | M26: 1.98 | N26: 109804.86 | P26: 155279.6
B27: August | D27: ='16. RTSR - Historical Wholesale'!D26 -> 40524 | E27: 3.82 | F27: 154801.68 | H27: ='16. RTSR - Historical Wholesale'!H26 -> 45438 | I27: 0.82 | J27: 37259.16 | L27: ='16. RTSR - Historical Wholesale'!L26 -> 45438 | M27: 1.98 | N27: 89967.24 | P27: 127226.4
B28: September | D28: ='16. RTSR - Historical Wholesale'!D27 -> 43381.27273 | E28: 3.82 | F28: 165716.4618 | H28: ='16. RTSR - Historical Wholesale'!H27 -> 48039 | I28: 0.82 | J28: 39391.98 | L28: ='16. RTSR - Historical Wholesale'!L27 -> 48039 | M28: 1.98 | N28: 95117.22 | P28: 134509.2
B29: October | D29: ='16. RTSR - Historical Wholesale'!D28 -> 39568 | E29: 3.82 | F29: 151149.76 | H29: ='16. RTSR - Historical Wholesale'!H28 -> 46551 | I29: 0.82 | J29: 38171.82 | L29: ='16. RTSR - Historical Wholesale'!L28 -> 46551 | M29: 1.98 | N29: 92170.98 | P29: 130342.8
B30: November | D30: ='16. RTSR - Historical Wholesale'!D29 -> 47954 | E30: 3.82 | F30: 183184.28 | H30: ='16. RTSR - Historical Wholesale'!H29 -> 56417 | I30: 0.82 | J30: 46261.94 | L30: ='16. RTSR - Historical Wholesale'!L29 -> 56417 | M30: 1.98 | N30: 111705.66 | P30: 157967.6
B31: December | D31: ='16. RTSR - Historical Wholesale'!D30 -> 55276 | E31: 3.82 | F31: 211154.32 | H31: ='16. RTSR - Historical Wholesale'!H30 -> 61498 | I31: 0.82 | J31: 50428.36 | L31: ='16. RTSR - Historical Wholesale'!L30 -> 61498 | M31: 1.98 | N31: 121766.04 | P31: 172194.4
B33: Total | D33: =SUM(D20:D31) -> 547642.0165 | E33: =IF(D33<>0,F33/D33,0) -> 3.82 | F33: =SUM(F20:F31) -> 2091992.503 | H33: =SUM(H20:H31) -> 613930 | I33: =IF(H33<>0,J33/H33,0) -> 0.82 | J33: =SUM(J20:J31) -> 503422.6 | L33: =SUM(L20:L31) -> 613930 | M33: =IF(L33<>0,N33/L33,0) -> 1.98 | N33: =SUM(N20:N31) -> 1215581.4 | P33: =SUM(P20:P31) -> 1719004
B35: Hydro One | D35: Network | H35: Line Connection | L35: Transformation Connection | P35: Total Line
B37: Month | D37: Units Billed | E37: Rate | F37: Amount | H37: Units Billed | I37: Rate | J37: Amount | L37: Units Billed | M37: Rate | N37: Amount | P37: Amount
B39: January | D39: ='16. RTSR - Historical Wholesale'!D38 -> 80885 | E39: ='15. RTSR - UTRs & Sub-Tx'!G35+'15. RTSR - UTRs & Sub-Tx'!G79 -> 3.3765 | F39: =D39*E39 -> 273108.2025 | H39: ='16. RTSR - Historical Wholesale'!H38 -> 80885 | I39: ='15. RTSR - UTRs & Sub-Tx'!G37+'15. RTSR - UTRs & Sub-Tx'!G81 -> 0.7167 | J39: =H39*I39 -> 57970.2795 | L39: ='16. RTSR - Historical Wholesale'!L38 -> 80885 | M39: ='15. RTSR - UTRs & Sub-Tx'!G39 -> 1.62 | N39: =L39*M39 -> 131033.7 | P39: =J39+N39 -> 189003.9795
B40: February | D40: ='16. RTSR - Historical Wholesale'!D39 -> 72743 | E40: =E39 -> 3.3765 | F40: =D40*E40 -> 245616.7395 | H40: ='16. RTSR - Historical Wholesale'!H39 -> 72743 | I40: =I39 -> 0.7167 | J40: =H40*I40 -> 52134.9081 | L40: ='16. RTSR - Historical Wholesale'!L39 -> 72743 | M40: =M39 -> 1.62 | N40: =L40*M40 -> 117843.66 | P40: 169978.5681
B41: March | D41: ='16. RTSR - Historical Wholesale'!D40 -> 78483 | E41: =E40 -> 3.3765 | F41: 264997.8495 | H41: ='16. RTSR - Historical Wholesale'!H40 -> 78483 | I41: =I40 -> 0.7167 | J41: 56248.7661 | L41: ='16. RTSR - Historical Wholesale'!L40 -> 78483 | M41: =M40 -> 1.62 | N41: 127142.46 | P41: 183391.2261
B42: April | D42: ='16. RTSR - Historical Wholesale'!D41 -> 71157.18 | E42: 3.3765 | F42: 240262.2183 | H42: ='16. RTSR - Historical Wholesale'!H41 -> 71157.18 | I42: 0.7167 | J42: 50998.35091 | L42: ='16. RTSR - Historical Wholesale'!L41 -> 71157.18 | M42: =M41 -> 1.62 | N42: 115274.6316 | P42: 166272.9825
B43: May | D43: ='16. RTSR - Historical Wholesale'!D42 -> 61135.6 | E43: 3.3765 | F43: 206424.3534 | H43: ='16. RTSR - Historical Wholesale'!H42 -> 61135.6 | I43: 0.7167 | J43: 43815.88452 | L43: ='16. RTSR - Historical Wholesale'!L42 -> 61135.6 | M43: 1.62 | N43: 99039.672 | P43: 142855.5565
B44: June | D44: ='16. RTSR - Historical Wholesale'!D43 -> 62968.76 | E44: 3.3765 | F44: 212614.0181 | H44: ='16. RTSR - Historical Wholesale'!H43 -> 62968.76 | I44: 0.7167 | J44: 45129.71029 | L44: ='16. RTSR - Historical Wholesale'!L43 -> 62968.76 | M44: 1.62 | N44: 102009.3912 | P44: 147139.1015
B45: July | D45: ='16. RTSR - Historical Wholesale'!D44 -> 77147.94 | E45: 3.3765 | F45: 260490.0194 | H45: ='16. RTSR - Historical Wholesale'!H44 -> 77147.94 | I45: 0.7167 | J45: 55291.9286 | L45: ='16. RTSR - Historical Wholesale'!L44 -> 77147.94 | M45: 1.62 | N45: 124979.6628 | P45: 180271.5914
B46: August | D46: ='16. RTSR - Historical Wholesale'!D45 -> 71392.85 | E46: 3.3765 | F46: 241057.958 | H46: ='16. RTSR - Historical Wholesale'!H45 -> 71392.85 | I46: 0.7167 | J46: 51167.2556 | L46: ='16. RTSR - Historical Wholesale'!L45 -> 71392.85 | M46: 1.62 | N46: 115656.417 | P46: 166823.6726
B47: September | D47: ='16. RTSR - Historical Wholesale'!D46 -> 65276.1 | E47: 3.3765 | F47: 220404.7516 | H47: ='16. RTSR - Historical Wholesale'!H46 -> 65276.09571 | I47: 0.7167 | J47: 46783.37779 | L47: ='16. RTSR - Historical Wholesale'!L46 -> 65276.09571 | M47: 1.62 | N47: 105747.275 | P47: 152530.6528
B48: October | D48: ='16. RTSR - Historical Wholesale'!D47 -> 61526.06 | E48: 3.3765 | F48: 207742.7416 | H48: ='16. RTSR - Historical Wholesale'!H47 -> 61526.06 | I48: 0.7167 | J48: 44095.7272 | L48: ='16. RTSR - Historical Wholesale'!L47 -> 61526.06 | M48: 1.62 | N48: 99672.2172 | P48: 143767.9444
B49: November | D49: ='16. RTSR - Historical Wholesale'!D48 -> 67466.93 | E49: 3.3765 | F49: 227802.0891 | H49: ='16. RTSR - Historical Wholesale'!H48 -> 67466.93 | I49: 0.7167 | J49: 48353.54873 | L49: ='16. RTSR - Historical Wholesale'!L48 -> 67466.93 | M49: 1.62 | N49: 109296.4266 | P49: 157649.9753
B50: December | D50: ='16. RTSR - Historical Wholesale'!D49 -> 81397.27175 | E50: 3.3765 | F50: 274837.888 | H50: ='16. RTSR - Historical Wholesale'!H49 -> 80347.46176 | I50: 0.7167 | J50: 57585.02584 | L50: ='16. RTSR - Historical Wholesale'!L49 -> 80347.46176 | M50: 1.62 | N50: 130162.8881 | P50: 187747.9139
B52: Total | D52: =SUM(D39:D50) -> 851579.6917 | E52: =IF(D52<>0,F52/D52,0) -> 3.3765 | F52: =SUM(F39:F50) -> 2875358.829 | H52: =SUM(H39:H50) -> 850529.8775 | I52: =IF(H52<>0,J52/H52,0) -> 0.7167 | J52: =SUM(J39:J50) -> 609574.7632 | L52: =SUM(L39:L50) -> 850529.8775 | M52: =IF(L52<>0,N52/L52,0) -> 1.62 | N52: =SUM(N39:N50) -> 1377858.401 | P52: =SUM(P39:P50) -> 1987433.165
B54: ='16. RTSR - Historical Wholesale'!B53 -> Add Extra Host Here (I) | D54: Network | H54: Line Connection | L54: Transformation Connection | P54: Total Line
B56: Month | D56: Units Billed | E56: Rate | F56: Amount | H56: Units Billed | I56: Rate | J56: Amount | L56: Units Billed | M56: Rate | N56: Amount | P56: Amount
B58: January | D58: ='16. RTSR - Historical Wholesale'!D57 -> 0 | E58: ='15. RTSR - UTRs & Sub-Tx'!G50 -> 0 | F58: =D58*E58 -> 0 | H58: ='16. RTSR - Historical Wholesale'!H57 -> 0 | I58: ='15. RTSR - UTRs & Sub-Tx'!G52 -> 0 | J58: =H58*I58 -> 0 | L58: ='16. RTSR - Historical Wholesale'!L57 -> 0 | M58: ='15. RTSR - UTRs & Sub-Tx'!G54 -> 0 | N58: =L58*M58 -> 0 | P58: =J58+N58 -> 0
B59: February | D59: ='16. RTSR - Historical Wholesale'!D58 -> 0 | E59: =E58 -> 0 | F59: =D59*E59 -> 0 | H59: ='16. RTSR - Historical Wholesale'!H58 -> 0 | I59: =I58 -> 0 | J59: =H59*I59 -> 0 | L59: ='16. RTSR - Historical Wholesale'!L58 -> 0 | M59: =M58 -> 0 | N59: =L59*M59 -> 0 | P59: 0
B60: March | D60: ='16. RTSR - Historical Wholesale'!D59 -> 0 | E60: =E59 -> 0 | F60: 0 | H60: ='16. RTSR - Historical Wholesale'!H59 -> 0 | I60: =I59 -> 0 | J60: 0 | L60: ='16. RTSR - Historical Wholesale'!L59 -> 0 | M60: =M59 -> 0 | N60: 0 | P60: 0
B61: April | D61: ='16. RTSR - Historical Wholesale'!D60 -> 0 | E61: 0 | F61: 0 | H61: ='16. RTSR - Historical Wholesale'!H60 -> 0 | I61: 0 | J61: 0 | L61: ='16. RTSR - Historical Wholesale'!L60 -> 0 | M61: =M60 -> 0 | N61: 0 | P61: 0
B62: May | D62: ='16. RTSR - Historical Wholesale'!D61 -> 0 | E62: 0 | F62: 0 | H62: ='16. RTSR - Historical Wholesale'!H61 -> 0 | I62: 0 | J62: 0 | L62: ='16. RTSR - Historical Wholesale'!L61 -> 0 | M62: 0 | N62: 0 | P62: 0
B63: June | D63: ='16. RTSR - Historical Wholesale'!D62 -> 0 | E63: 0 | F63: 0 | H63: ='16. RTSR - Historical Wholesale'!H62 -> 0 | I63: 0 | J63: 0 | L63: ='16. RTSR - Historical Wholesale'!L62 -> 0 | M63: 0 | N63: 0 | P63: 0
B64: July | D64: ='16. RTSR - Historical Wholesale'!D63 -> 0 | E64: 0 | F64: 0 | H64: ='16. RTSR - Historical Wholesale'!H63 -> 0 | I64: 0 | J64: 0 | L64: ='16. RTSR - Historical Wholesale'!L63 -> 0 | M64: 0 | N64: 0 | P64: 0
B65: August | D65: ='16. RTSR - Historical Wholesale'!D64 -> 0 | E65: 0 | F65: 0 | H65: ='16. RTSR - Historical Wholesale'!H64 -> 0 | I65: 0 | J65: 0 | L65: ='16. RTSR - Historical Wholesale'!L64 -> 0 | M65: 0 | N65: 0 | P65: 0
B66: September | D66: ='16. RTSR - Historical Wholesale'!D65 -> 0 | E66: 0 | F66: 0 | H66: ='16. RTSR - Historical Wholesale'!H65 -> 0 | I66: 0 | J66: 0 | L66: ='16. RTSR - Historical Wholesale'!L65 -> 0 | M66: 0 | N66: 0 | P66: 0
B67: October | D67: ='16. RTSR - Historical Wholesale'!D66 -> 0 | E67: 0 | F67: 0 | H67: ='16. RTSR - Historical Wholesale'!H66 -> 0 | I67: 0 | J67: 0 | L67: ='16. RTSR - Historical Wholesale'!L66 -> 0 | M67: 0 | N67: 0 | P67: 0
B68: November | D68: ='16. RTSR - Historical Wholesale'!D67 -> 0 | E68: 0 | F68: 0 | H68: ='16. RTSR - Historical Wholesale'!H67 -> 0 | I68: 0 | J68: 0 | L68: ='16. RTSR - Historical Wholesale'!L67 -> 0 | M68: 0 | N68: 0 | P68: 0
B69: December | D69: ='16. RTSR - Historical Wholesale'!D68 -> 0 | E69: 0 | F69: 0 | H69: ='16. RTSR - Historical Wholesale'!H68 -> 0 | I69: 0 | J69: 0 | L69: ='16. RTSR - Historical Wholesale'!L68 -> 0 | M69: 0 | N69: 0 | P69: 0
B71: Total | D71: =SUM(D58:D69) -> 0 | E71: =IF(D71<>0,F71/D71,0) -> 0 | F71: =SUM(F58:F69) -> 0 | H71: =SUM(H58:H69) -> 0 | I71: =IF(H71<>0,J71/H71,0) -> 0 | J71: =SUM(J58:J69) -> 0 | L71: =SUM(L58:L69) -> 0 | M71: =IF(L71<>0,N71/L71,0) -> 0 | N71: =SUM(N58:N69) -> 0 | P71: =SUM(P58:P69) -> 0
B73: ='16. RTSR - Historical Wholesale'!B72 -> Add Extra Host Here (II) | D73: Network | H73: Line Connection | L73: Transformation Connection | P73: Total Line
B75: Month | D75: Units Billed | E75: Rate | F75: Amount | H75: Units Billed | I75: Rate | J75: Amount | L75: Units Billed | M75: Rate | N75: Amount | P75: Amount
B77: January | D77: ='16. RTSR - Historical Wholesale'!D76 -> 0 | E77: ='15. RTSR - UTRs & Sub-Tx'!G65 -> 0 | F77: =D77*E77 -> 0 | H77: ='16. RTSR - Historical Wholesale'!H76 -> 0 | I77: ='15. RTSR - UTRs & Sub-Tx'!G67 -> 0 | J77: =H77*I77 -> 0 | L77: ='16. RTSR - Historical Wholesale'!L76 -> 0 | M77: ='15. RTSR - UTRs & Sub-Tx'!G69 -> 0 | N77: =L77*M77 -> 0 | P77: =J77+N77 -> 0
B78: February | D78: ='16. RTSR - Historical Wholesale'!D77 -> 0 | E78: =E77 -> 0 | F78: =D78*E78 -> 0 | H78: ='16. RTSR - Historical Wholesale'!H77 -> 0 | I78: =I77 -> 0 | J78: =H78*I78 -> 0 | L78: ='16. RTSR - Historical Wholesale'!L77 -> 0 | M78: =M77 -> 0 | N78: =L78*M78 -> 0 | P78: 0
B79: March | D79: ='16. RTSR - Historical Wholesale'!D78 -> 0 | E79: =E78 -> 0 | F79: 0 | H79: ='16. RTSR - Historical Wholesale'!H78 -> 0 | I79: =I78 -> 0 | J79: 0 | L79: ='16. RTSR - Historical Wholesale'!L78 -> 0 | M79: =M78 -> 0 | N79: 0 | P79: 0
B80: April | D80: ='16. RTSR - Historical Wholesale'!D79 -> 0 | E80: 0 | F80: 0 | H80: ='16. RTSR - Historical Wholesale'!H79 -> 0 | I80: 0 | J80: 0 | L80: ='16. RTSR - Historical Wholesale'!L79 -> 0 | M80: =M79 -> 0 | N80: 0 | P80: 0
B81: May | D81: ='16. RTSR - Historical Wholesale'!D80 -> 0 | E81: 0 | F81: 0 | H81: ='16. RTSR - Historical Wholesale'!H80 -> 0 | I81: 0 | J81: 0 | L81: ='16. RTSR - Historical Wholesale'!L80 -> 0 | M81: 0 | N81: 0 | P81: 0
B82: June | D82: ='16. RTSR - Historical Wholesale'!D81 -> 0 | E82: 0 | F82: 0 | H82: ='16. RTSR - Historical Wholesale'!H81 -> 0 | I82: 0 | J82: 0 | L82: ='16. RTSR - Historical Wholesale'!L81 -> 0 | M82: 0 | N82: 0 | P82: 0
B83: July | D83: ='16. RTSR - Historical Wholesale'!D82 -> 0 | E83: 0 | F83: 0 | H83: ='16. RTSR - Historical Wholesale'!H82 -> 0 | I83: 0 | J83: 0 | L83: ='16. RTSR - Historical Wholesale'!L82 -> 0 | M83: 0 | N83: 0 | P83: 0
B84: August | D84: ='16. RTSR - Historical Wholesale'!D83 -> 0 | E84: 0 | F84: 0 | H84: ='16. RTSR - Historical Wholesale'!H83 -> 0 | I84: 0 | J84: 0 | L84: ='16. RTSR - Historical Wholesale'!L83 -> 0 | M84: 0 | N84: 0 | P84: 0
B85: September | D85: ='16. RTSR - Historical Wholesale'!D84 -> 0 | E85: 0 | F85: 0 | H85: ='16. RTSR - Historical Wholesale'!H84 -> 0 | I85: 0 | J85: 0 | L85: ='16. RTSR - Historical Wholesale'!L84 -> 0 | M85: 0 | N85: 0 | P85: 0
B86: October | D86: ='16. RTSR - Historical Wholesale'!D85 -> 0 | E86: 0 | F86: 0 | H86: ='16. RTSR - Historical Wholesale'!H85 -> 0 | I86: 0 | J86: 0 | L86: ='16. RTSR - Historical Wholesale'!L85 -> 0 | M86: 0 | N86: 0 | P86: 0
B87: November | D87: ='16. RTSR - Historical Wholesale'!D86 -> 0 | E87: 0 | F87: 0 | H87: ='16. RTSR - Historical Wholesale'!H86 -> 0 | I87: 0 | J87: 0 | L87: ='16. RTSR - Historical Wholesale'!L86 -> 0 | M87: 0 | N87: 0 | P87: 0
B88: December | D88: ='16. RTSR - Historical Wholesale'!D87 -> 0 | E88: 0 | F88: 0 | H88: ='16. RTSR - Historical Wholesale'!H87 -> 0 | I88: 0 | J88: 0 | L88: ='16. RTSR - Historical Wholesale'!L87 -> 0 | M88: 0 | N88: 0 | P88: 0
B90: Total | D90: =SUM(D77:D88) -> 0 | E90: =IF(D90<>0,F90/D90,0) -> 0 | F90: =SUM(F77:F88) -> 0 | H90: =SUM(H77:H88) -> 0 | I90: =IF(H90<>0,J90/H90,0) -> 0 | J90: =SUM(J77:J88) -> 0 | L90: =SUM(L77:L88) -> 0 | M90: =IF(L90<>0,N90/L90,0) -> 0 | N90: =SUM(N77:N88) -> 0 | P90: =SUM(P77:P88) -> 0
B92: Total | D92: Network | H92: Line Connection | L92: Transformation Connection | P92: Total Line
B94: Month | D94: Units Billed | E94: Rate | F94: Amount | H94: Units Billed | I94: Rate | J94: Amount | L94: Units Billed | M94: Rate | N94: Amount | P94: Amount
B96: January | D96: =D20+D39+D58+D77 -> 139629 | E96: =IF(D96<>0,F96/D96,0) -> 3.563087056 | F96: =F20+F39+F58+F77 -> 497510.2825 | H96: =H20+H39+H58+H77 -> 149995 | I96: =IF(H96<>0,J96/H96,0) -> 0.7642953398 | J96: =J20+J39+J58+J77 -> 114640.4795 | L96: =L20+L39+L58+L77 -> 149995 | M96: =IF(L96<>0,N96/L96,0) -> 1.785869529 | N96: =N20+N39+N58+N77 -> 267871.5 | P96: =J96+N96 -> 382511.9795
B97: February | D97: =D21+D40+D59+D78 -> 124243 | E97: 3.560335307 | F97: =F21+F40+F59+F78 -> 442346.7395 | H97: =H21+H40+H59+H78 -> 128354 | I97: 0.7614560364 | J97: =J21+J40+J59+J78 -> 97735.9281 | L97: =L21+L40+L59+L78 -> 128354 | M97: 1.77597457 | N97: =N21+N40+N59+N78 -> 227953.44 | P97: 325689.3681
B98: March | D98: 115548.7355 | E98: 3.518765977 | F98: 406588.9593 | H98: 117152 | I98: 0.7507967948 | J98: 87957.3461 | L98: 117152 | M98: 1.738827165 | N98: 203707.08 | P98: 291664.4261
B99: April | D99: 107341.18 | E99: 3.526000909 | F99: 378485.0983 | H99: 107652.18 | I99: 0.7517195742 | J99: 80924.25091 | L99: 107652.18 | M99: 1.742043046 | N99: 187534.7316 | P99: 268458.9825
B100: May | D100: 105084.6 | E100: 3.561982759 | F100: 374309.5334 | H100: 107241.6 | I100: 0.7611114019 | J100: 81622.80452 | L100: 107241.6 | M100: 1.774773521 | N100: 190329.552 | P100: 271952.3565
B101: June | D101: 109326.76 | E101: 3.564558011 | F101: 389701.5781 | H101: 117507.76 | I101: 0.7646447374 | J101: 89851.69029 | L101: 117507.76 | M101: 1.787087178 | N101: 209996.6112 | P101: 299848.3015
B102: July | D102: 124285.9483 | E102: 3.544706519 | F102: 440557.211 | H102: 132604.94 | I102: 0.7599013174 | J102: 100766.6686 | L102: 132604.94 | M102: 1.770556382 | N102: 234784.5228 | P102: 335551.1914
B103: August | D103: 111916.85 | E103: 3.537087025 | F103: 395859.638 | H103: 116830.85 | I103: 0.7568755649 | J103: 88426.41559 | L103: 116830.85 | M103: 1.760011649 | N103: 205623.657 | P103: 294050.0726
B104: September | D104: 108657.3727 | E104: 3.553566627 | F104: 386121.2135 | H104: 113315.0957 | I104: 0.7604931828 | J104: 86175.35779 | L104: 113315.0957 | M104: 1.77261903 | N104: 200864.495 | P104: 287039.8528
B105: October | D105: 101094.06 | E105: 3.550084956 | F105: 358892.5016 | H105: 108077.06 | I105: 0.7611934226 | J105: 82267.5472 | L105: 108077.06 | M105: 1.775059362 | N105: 191843.1972 | P105: 274110.7444
B106: November | D106: 115420.93 | E106: 3.560761199 | F106: 410986.3691 | H106: 123883.93 | I106: 0.7637430354 | J106: 94615.48873 | L106: 123883.93 | M106: 1.783944751 | N106: 221002.0866 | P106: 315617.5753
B107: December | D107: 136673.2717 | E107: 3.555868692 | F107: 485992.208 | H107: 141845.4618 | I107: 0.7614863705 | J107: 108013.3858 | L107: 141845.4618 | M107: 1.776080284 | N107: 251928.9281 | P107: 359942.3139
B109: Total | D109: =SUM(D96:D107) -> 1399221.708 | E109: =IF(D109<>0,F109/D109,0) -> 3.550081665 | F109: =SUM(F96:F107) -> 4967351.332 | H109: =SUM(H96:H107) -> 1464459.877 | I109: =IF(H109<>0,J109/H109,0) -> 0.7600053646 | J109: =SUM(J96:J107) -> 1112997.363 | L109: =SUM(L96:L107) -> 1464459.877 | M109: =IF(L109<>0,N109/L109,0) -> 1.770918986 | N109: =SUM(N96:N107) -> 2593439.801 | P109: =SUM(P96:P107) -> 3706437.165
N111: Transformer Allowance Credit (if applicable) | P111: ='15. RTSR - UTRs & Sub-Tx'!G95 -> 0
N113: Total including deduction for Transformer Allowance Credit | P113: =P109+P111 -> 3706437.165

Sheet 18. RTSR - Forecast Wholesale
B13: The purpose of this sheet is to calculate the expected billing when forecasted 2015 Uniform Transmission Rates are applied against historical 2013 transmission units.
B16: IESO | D16: Network | H16: Line Connection | L16: Transformation Connection | P16: Total Line
B18: Month | D18: Units Billed | E18: Rate | F18: Amount | H18: Units Billed | I18: Rate | J18: Amount | L18: Units Billed | M18: Rate | N18: Amount | P18: Amount
B20: January | D20: ='16. RTSR - Historical Wholesale'!D19 -> 58744 | E20: ='15. RTSR - UTRs & Sub-Tx'!I22 -> 3.82 | F20: =D20*E20 -> 224402.08 | H20: ='16. RTSR - Historical Wholesale'!H19 -> 69110 | I20: ='15. RTSR - UTRs & Sub-Tx'!I24 -> 0.82 | J20: =H20*I20 -> 56670.2 | L20: ='16. RTSR - Historical Wholesale'!L19 -> 69110 | M20: ='15. RTSR - UTRs & Sub-Tx'!I26 -> 1.98 | N20: =L20*M20 -> 136837.8 | P20: =J20+N20 -> 193508
B21: February | D21: ='16. RTSR - Historical Wholesale'!D20 -> 51500 | E21: =E20 -> 3.82 | F21: 196730 | H21: ='16. RTSR - Historical Wholesale'!H20 -> 55611 | I21: =I20 -> 0.82 | J21: 45601.02 | L21: ='16. RTSR - Historical Wholesale'!L20 -> 55611 | M21: =M20 -> 1.98 | N21: 110109.78 | P21: 155710.8
B22: March | D22: ='16. RTSR - Historical Wholesale'!D21 -> 37065.73554 | E22: 3.82 | F22: 141591.1098 | H22: ='16. RTSR - Historical Wholesale'!H21 -> 38669 | I22: 0.82 | J22: 31708.58 | L22: ='16. RTSR - Historical Wholesale'!L21 -> 38669 | M22: 1.98 | N22: 76564.62 | P22: 108273.2
B23: April | D23: ='16. RTSR - Historical Wholesale'!D22 -> 36184 | E23: 3.82 | F23: 138222.88 | H23: ='16. RTSR - Historical Wholesale'!H22 -> 36495 | I23: 0.82 | J23: 29925.9 | L23: ='16. RTSR - Historical Wholesale'!L22 -> 36495 | M23: 1.98 | N23: 72260.1 | P23: 102186
B24: May | D24: ='16. RTSR - Historical Wholesale'!D23 -> 43949 | E24: 3.82 | F24: 167885.18 | H24: ='16. RTSR - Historical Wholesale'!H23 -> 46106 | I24: 0.82 | J24: 37806.92 | L24: ='16. RTSR - Historical Wholesale'!L23 -> 46106 | M24: 1.98 | N24: 91289.88 | P24: 129096.8
B25: June | D25: ='16. RTSR - Historical Wholesale'!D24 -> 46358 | E25: 3.82 | F25: 177087.56 | H25: ='16. RTSR - Historical Wholesale'!H24 -> 54539 | I25: 0.82 | J25: 44721.98 | L25: ='16. RTSR - Historical Wholesale'!L24 -> 54539 | M25: 1.98 | N25: 107987.22 | P25: 152709.2
B26: July | D26: ='16. RTSR - Historical Wholesale'!D25 -> 47138.00826 | E26: 3.82 | F26: 180067.1916 | H26: ='16. RTSR - Historical Wholesale'!H25 -> 55457 | I26: 0.82 | J26: 45474.74 | L26: ='16. RTSR - Historical Wholesale'!L25 -> 55457 | M26: 1.98 | N26: 109804.86 | P26: 155279.6
B27: August | D27: ='16. RTSR - Historical Wholesale'!D26 -> 40524 | E27: 3.82 | F27: 154801.68 | H27: ='16. RTSR - Historical Wholesale'!H26 -> 45438 | I27: 0.82 | J27: 37259.16 | L27: ='16. RTSR - Historical Wholesale'!L26 -> 45438 | M27: 1.98 | N27: 89967.24 | P27: 127226.4
B28: September | D28: ='16. RTSR - Historical Wholesale'!D27 -> 43381.27273 | E28: 3.82 | F28: 165716.4618 | H28: ='16. RTSR - Historical Wholesale'!H27 -> 48039 | I28: 0.82 | J28: 39391.98 | L28: ='16. RTSR - Historical Wholesale'!L27 -> 48039 | M28: 1.98 | N28: 95117.22 | P28: 134509.2
B29: October | D29: ='16. RTSR - Historical Wholesale'!D28 -> 39568 | E29: 3.82 | F29: 151149.76 | H29: ='16. RTSR - Historical Wholesale'!H28 -> 46551 | I29: 0.82 | J29: 38171.82 | L29: ='16. RTSR - Historical Wholesale'!L28 -> 46551 | M29: 1.98 | N29: 92170.98 | P29: 130342.8
B30: November | D30: ='16. RTSR - Historical Wholesale'!D29 -> 47954 | E30: 3.82 | F30: 183184.28 | H30: ='16. RTSR - Historical Wholesale'!H29 -> 56417 | I30: 0.82 | J30: 46261.94 | L30: ='16. RTSR - Historical Wholesale'!L29 -> 56417 | M30: 1.98 | N30: 111705.66 | P30: 157967.6
B31: December | D31: ='16. RTSR - Historical Wholesale'!D30 -> 55276 | E31: 3.82 | F31: 211154.32 | H31: ='16. RTSR - Historical Wholesale'!H30 -> 61498 | I31: 0.82 | J31: 50428.36 | L31: ='16. RTSR - Historical Wholesale'!L30 -> 61498 | M31: 1.98 | N31: 121766.04 | P31: 172194.4
B33: Total | D33: =SUM(D20:D31) -> 547642.0165 | E33: =IF(D33<>0,F33/D33,0) -> 3.82 | F33: =SUM(F20:F31) -> 2091992.503 | H33: =SUM(H20:H31) -> 613930 | I33: =IF(H33<>0,J33/H33,0) -> 0.82 | J33: =SUM(J20:J31) -> 503422.6 | L33: =SUM(L20:L31) -> 613930 | M33: =IF(L33<>0,N33/L33,0) -> 1.98 | N33: =SUM(N20:N31) -> 1215581.4 | P33: =SUM(P20:P31) -> 1719004
B35: Hydro One | D35: Network | H35: Line Connection | L35: Transformation Connection | P35: Total Line
B37: Month | D37: Units Billed | E37: Rate | F37: Amount | H37: Units Billed | I37: Rate | J37: Amount | L37: Units Billed | M37: Rate | N37: Amount | P37: Amount
B39: January | D39: ='16. RTSR - Historical Wholesale'!D38 -> 80885 | E39: ='15. RTSR - UTRs & Sub-Tx'!I35+'15. RTSR - UTRs & Sub-Tx'!I79 -> 3.3765 | F39: =D39*E39 -> 273108.2025 | H39: ='16. RTSR - Historical Wholesale'!H38 -> 80885 | I39: ='15. RTSR - UTRs & Sub-Tx'!I37+'15. RTSR - UTRs & Sub-Tx'!I81 -> 0.7167 | J39: =H39*I39 -> 57970.2795 | L39: ='16. RTSR - Historical Wholesale'!L38 -> 80885 | M39: ='15. RTSR - UTRs & Sub-Tx'!I39 -> 1.62 | N39: =L39*M39 -> 131033.7 | P39: =J39+N39 -> 189003.9795
B40: February | D40: ='16. RTSR - Historical Wholesale'!D39 -> 72743 | E40: =E39 -> 3.3765 | F40: 245616.7395 | H40: ='16. RTSR - Historical Wholesale'!H39 -> 72743 | I40: =I39 -> 0.7167 | J40: 52134.9081 | L40: ='16. RTSR - Historical Wholesale'!L39 -> 72743 | M40: =M39 -> 1.62 | N40: 117843.66 | P40: 169978.5681
B41: March | D41: ='16. RTSR - Historical Wholesale'!D40 -> 78483 | E41: 3.3765 | F41: 264997.8495 | H41: ='16. RTSR - Historical Wholesale'!H40 -> 78483 | I41: 0.7167 | J41: 56248.7661 | L41: ='16. RTSR - Historical Wholesale'!L40 -> 78483 | M41: 1.62 | N41: 127142.46 | P41: 183391.2261
B42: April | D42: ='16. RTSR - Historical Wholesale'!D41 -> 71157.18 | E42: 3.3765 | F42: 240262.2183 | H42: ='16. RTSR - Historical Wholesale'!H41 -> 71157.18 | I42: 0.7167 | J42: 50998.35091 | L42: ='16. RTSR - Historical Wholesale'!L41 -> 71157.18 | M42: 1.62 | N42: 115274.6316 | P42: 166272.9825
B43: May | D43: ='16. RTSR - Historical Wholesale'!D42 -> 61135.6 | E43: 3.3765 | F43: 206424.3534 | H43: ='16. RTSR - Historical Wholesale'!H42 -> 61135.6 | I43: 0.7167 | J43: 43815.88452 | L43: ='16. RTSR - Historical Wholesale'!L42 -> 61135.6 | M43: 1.62 | N43: 99039.672 | P43: 142855.5565
B44: June | D44: ='16. RTSR - Historical Wholesale'!D43 -> 62968.76 | E44: 3.3765 | F44: 212614.0181 | H44: ='16. RTSR - Historical Wholesale'!H43 -> 62968.76 | I44: 0.7167 | J44: 45129.71029 | L44: ='16. RTSR - Historical Wholesale'!L43 -> 62968.76 | M44: 1.62 | N44: 102009.3912 | P44: 147139.1015
B45: July | D45: ='16. RTSR - Historical Wholesale'!D44 -> 77147.94 | E45: 3.3765 | F45: 260490.0194 | H45: ='16. RTSR - Historical Wholesale'!H44 -> 77147.94 | I45: 0.7167 | J45: 55291.9286 | L45: ='16. RTSR - Historical Wholesale'!L44 -> 77147.94 | M45: 1.62 | N45: 124979.6628 | P45: 180271.5914
B46: August | D46: ='16. RTSR - Historical Wholesale'!D45 -> 71392.85 | E46: 3.3765 | F46: 241057.958 | H46: ='16. RTSR - Historical Wholesale'!H45 -> 71392.85 | I46: 0.7167 | J46: 51167.2556 | L46: ='16. RTSR - Historical Wholesale'!L45 -> 71392.85 | M46: 1.62 | N46: 115656.417 | P46: 166823.6726
B47: September | D47: ='16. RTSR - Historical Wholesale'!D46 -> 65276.1 | E47: 3.3765 | F47: 220404.7516 | H47: ='16. RTSR - Historical Wholesale'!H46 -> 65276.09571 | I47: 0.7167 | J47: 46783.37779 | L47: ='16. RTSR - Historical Wholesale'!L46 -> 65276.09571 | M47: 1.62 | N47: 105747.275 | P47: 152530.6528
B48: October | D48: ='16. RTSR - Historical Wholesale'!D47 -> 61526.06 | E48: 3.3765 | F48: 207742.7416 | H48: ='16. RTSR - Historical Wholesale'!H47 -> 61526.06 | I48: 0.7167 | J48: 44095.7272 | L48: ='16. RTSR - Historical Wholesale'!L47 -> 61526.06 | M48: 1.62 | N48: 99672.2172 | P48: 143767.9444
B49: November | D49: ='16. RTSR - Historical Wholesale'!D48 -> 67466.93 | E49: 3.3765 | F49: 227802.0891 | H49: ='16. RTSR - Historical Wholesale'!H48 -> 67466.93 | I49: 0.7167 | J49: 48353.54873 | L49: ='16. RTSR - Historical Wholesale'!L48 -> 67466.93 | M49: 1.62 | N49: 109296.4266 | P49: 157649.9753
B50: December | D50: ='16. RTSR - Historical Wholesale'!D49 -> 81397.27175 | E50: 3.3765 | F50: 274837.888 | H50: ='16. RTSR - Historical Wholesale'!H49 -> 80347.46176 | I50: 0.7167 | J50: 57585.02584 | L50: ='16. RTSR - Historical Wholesale'!L49 -> 80347.46176 | M50: 1.62 | N50: 130162.8881 | P50: 187747.9139
B52: Total | D52: =SUM(D39:D50) -> 851579.6917 | E52: =IF(D52<>0,F52/D52,0) -> 3.3765 | F52: =SUM(F39:F50) -> 2875358.829 | H52: =SUM(H39:H50) -> 850529.8775 | I52: =IF(H52<>0,J52/H52,0) -> 0.7167 | J52: =SUM(J39:J50) -> 609574.7632 | L52: =SUM(L39:L50) -> 850529.8775 | M52: =IF(L52<>0,N52/L52,0) -> 1.62 | N52: =SUM(N39:N50) -> 1377858.401 | P52: =SUM(P39:P50) -> 1987433.165
B54: ='16. RTSR - Historical Wholesale'!B53 -> Add Extra Host Here (I) | D54: Network | H54: Line Connection | L54: Transformation Connection | P54: Total Line
B56: Month | D56: Units Billed | E56: Rate | F56: Amount | H56: Units Billed | I56: Rate | J56: Amount | L56: Units Billed | M56: Rate | N56: Amount | P56: Amount
B58: January | D58: ='16. RTSR - Historical Wholesale'!D57 -> 0 | E58: ='15. RTSR - UTRs & Sub-Tx'!I50 -> 0 | F58: =D58*E58 -> 0 | H58: ='16. RTSR - Historical Wholesale'!H57 -> 0 | I58: ='15. RTSR - UTRs & Sub-Tx'!I52 -> 0 | J58: =H58*I58 -> 0 | L58: ='16. RTSR - Historical Wholesale'!L57 -> 0 | M58: ='15. RTSR - UTRs & Sub-Tx'!I54 -> 0 | N58: =L58*M58 -> 0 | P58: =J58+N58 -> 0
B59: February | D59: ='16. RTSR - Historical Wholesale'!D58 -> 0 | E59: =E58 -> 0 | F59: 0 | H59: ='16. RTSR - Historical Wholesale'!H58 -> 0 | I59: =I58 -> 0 | J59: 0 | L59: ='16. RTSR - Historical Wholesale'!L58 -> 0 | M59: =M58 -> 0 | N59: 0 | P59: 0
B60: March | D60: ='16. RTSR - Historical Wholesale'!D59 -> 0 | E60: 0 | F60: 0 | H60: ='16. RTSR - Historical Wholesale'!H59 -> 0 | I60: 0 | J60: 0 | L60: ='16. RTSR - Historical Wholesale'!L59 -> 0 | M60: 0 | N60: 0 | P60: 0
B61: April | D61: ='16. RTSR - Historical Wholesale'!D60 -> 0 | E61: 0 | F61: 0 | H61: ='16. RTSR - Historical Wholesale'!H60 -> 0 | I61: 0 | J61: 0 | L61: ='16. RTSR - Historical Wholesale'!L60 -> 0 | M61: 0 | N61: 0 | P61: 0
B62: May | D62: ='16. RTSR - Historical Wholesale'!D61 -> 0 | E62: 0 | F62: 0 | H62: ='16. RTSR - Historical Wholesale'!H61 -> 0 | I62: 0 | J62: 0 | L62: ='16. RTSR - Historical Wholesale'!L61 -> 0 | M62: 0 | N62: 0 | P62: 0
B63: June | D63: ='16. RTSR - Historical Wholesale'!D62 -> 0 | E63: 0 | F63: 0 | H63: ='16. RTSR - Historical Wholesale'!H62 -> 0 | I63: 0 | J63: 0 | L63: ='16. RTSR - Historical Wholesale'!L62 -> 0 | M63: 0 | N63: 0 | P63: 0
B64: July | D64: ='16. RTSR - Historical Wholesale'!D63 -> 0 | E64: 0 | F64: 0 | H64: ='16. RTSR - Historical Wholesale'!H63 -> 0 | I64: 0 | J64: 0 | L64: ='16. RTSR - Historical Wholesale'!L63 -> 0 | M64: 0 | N64: 0 | P64: 0
B65: August | D65: ='16. RTSR - Historical Wholesale'!D64 -> 0 | E65: 0 | F65: 0 | H65: ='16. RTSR - Historical Wholesale'!H64 -> 0 | I65: 0 | J65: 0 | L65: ='16. RTSR - Historical Wholesale'!L64 -> 0 | M65: 0 | N65: 0 | P65: 0
B66: September | D66: ='16. RTSR - Historical Wholesale'!D65 -> 0 | E66: 0 | F66: 0 | H66: ='16. RTSR - Historical Wholesale'!H65 -> 0 | I66: 0 | J66: 0 | L66: ='16. RTSR - Historical Wholesale'!L65 -> 0 | M66: 0 | N66: 0 | P66: 0
B67: October | D67: ='16. RTSR - Historical Wholesale'!D66 -> 0 | E67: 0 | F67: 0 | H67: ='16. RTSR - Historical Wholesale'!H66 -> 0 | I67: 0 | J67: 0 | L67: ='16. RTSR - Historical Wholesale'!L66 -> 0 | M67: 0 | N67: 0 | P67: 0
B68: November | D68: ='16. RTSR - Historical Wholesale'!D67 -> 0 | E68: 0 | F68: 0 | H68: ='16. RTSR - Historical Wholesale'!H67 -> 0 | I68: 0 | J68: 0 | L68: ='16. RTSR - Historical Wholesale'!L67 -> 0 | M68: 0 | N68: 0 | P68: 0
B69: December | D69: ='16. RTSR - Historical Wholesale'!D68 -> 0 | E69: 0 | F69: 0 | H69: ='16. RTSR - Historical Wholesale'!H68 -> 0 | I69: 0 | J69: 0 | L69: ='16. RTSR - Historical Wholesale'!L68 -> 0 | M69: 0 | N69: 0 | P69: 0
B71: Total | D71: =SUM(D58:D69) -> 0 | E71: =IF(D71<>0,F71/D71,0) -> 0 | F71: =SUM(F58:F69) -> 0 | H71: =SUM(H58:H69) -> 0 | I71: =IF(H71<>0,J71/H71,0) -> 0 | J71: =SUM(J58:J69) -> 0 | L71: =SUM(L58:L69) -> 0 | M71: =IF(L71<>0,N71/L71,0) -> 0 | N71: =SUM(N58:N69) -> 0 | P71: =SUM(P58:P69) -> 0
B73: ='16. RTSR - Historical Wholesale'!B72 -> Add Extra Host Here (II) | D73: Network | H73: Line Connection | L73: Transformation Connection | P73: Total Line
B75: Month | D75: Units Billed | E75: Rate | F75: Amount | H75: Units Billed | I75: Rate | J75: Amount | L75: Units Billed | M75: Rate | N75: Amount | P75: Amount
B77: January | D77: ='16. RTSR - Historical Wholesale'!D76 -> 0 | E77: ='15. RTSR - UTRs & Sub-Tx'!I65 -> 0 | F77: =D77*E77 -> 0 | H77: ='16. RTSR - Historical Wholesale'!H76 -> 0 | I77: ='15. RTSR - UTRs & Sub-Tx'!I67 -> 0 | J77: =H77*I77 -> 0 | L77: ='16. RTSR - Historical Wholesale'!L76 -> 0 | M77: ='15. RTSR - UTRs & Sub-Tx'!I69 -> 0 | N77: =L77*M77 -> 0 | P77: =J77+N77 -> 0
B78: February | D78: ='16. RTSR - Historical Wholesale'!D77 -> 0 | E78: =E77 -> 0 | F78: 0 | H78: ='16. RTSR - Historical Wholesale'!H77 -> 0 | I78: =I77 -> 0 | J78: 0 | L78: ='16. RTSR - Historical Wholesale'!L77 -> 0 | M78: =M77 -> 0 | N78: 0 | P78: 0
B79: March | D79: ='16. RTSR - Historical Wholesale'!D78 -> 0 | E79: 0 | F79: 0 | H79: ='16. RTSR - Historical Wholesale'!H78 -> 0 | I79: 0 | J79: 0 | L79: ='16. RTSR - Historical Wholesale'!L78 -> 0 | M79: 0 | N79: 0 | P79: 0
B80: April | D80: ='16. RTSR - Historical Wholesale'!D79 -> 0 | E80: 0 | F80: 0 | H80: ='16. RTSR - Historical Wholesale'!H79 -> 0 | I80: 0 | J80: 0 | L80: ='16. RTSR - Historical Wholesale'!L79 -> 0 | M80: 0 | N80: 0 | P80: 0
B81: May | D81: ='16. RTSR - Historical Wholesale'!D80 -> 0 | E81: 0 | F81: 0 | H81: ='16. RTSR - Historical Wholesale'!H80 -> 0 | I81: 0 | J81: 0 | L81: ='16. RTSR - Historical Wholesale'!L80 -> 0 | M81: 0 | N81: 0 | P81: 0
B82: June | D82: ='16. RTSR - Historical Wholesale'!D81 -> 0 | E82: 0 | F82: 0 | H82: ='16. RTSR - Historical Wholesale'!H81 -> 0 | I82: 0 | J82: 0 | L82: ='16. RTSR - Historical Wholesale'!L81 -> 0 | M82: 0 | N82: 0 | P82: 0
B83: July | D83: ='16. RTSR - Historical Wholesale'!D82 -> 0 | E83: 0 | F83: 0 | H83: ='16. RTSR - Historical Wholesale'!H82 -> 0 | I83: 0 | J83: 0 | L83: ='16. RTSR - Historical Wholesale'!L82 -> 0 | M83: 0 | N83: 0 | P83: 0
B84: August | D84: ='16. RTSR - Historical Wholesale'!D83 -> 0 | E84: 0 | F84: 0 | H84: ='16. RTSR - Historical Wholesale'!H83 -> 0 | I84: 0 | J84: 0 | L84: ='16. RTSR - Historical Wholesale'!L83 -> 0 | M84: 0 | N84: 0 | P84: 0
B85: September | D85: ='16. RTSR - Historical Wholesale'!D84 -> 0 | E85: 0 | F85: 0 | H85: ='16. RTSR - Historical Wholesale'!H84 -> 0 | I85: 0 | J85: 0 | L85: ='16. RTSR - Historical Wholesale'!L84 -> 0 | M85: 0 | N85: 0 | P85: 0
B86: October | D86: ='16. RTSR - Historical Wholesale'!D85 -> 0 | E86: 0 | F86: 0 | H86: ='16. RTSR - Historical Wholesale'!H85 -> 0 | I86: 0 | J86: 0 | L86: ='16. RTSR - Historical Wholesale'!L85 -> 0 | M86: 0 | N86: 0 | P86: 0
B87: November | D87: ='16. RTSR - Historical Wholesale'!D86 -> 0 | E87: 0 | F87: 0 | H87: ='16. RTSR - Historical Wholesale'!H86 -> 0 | I87: 0 | J87: 0 | L87: ='16. RTSR - Historical Wholesale'!L86 -> 0 | M87: 0 | N87: 0 | P87: 0
B88: December | D88: ='16. RTSR - Historical Wholesale'!D87 -> 0 | E88: 0 | F88: 0 | H88: ='16. RTSR - Historical Wholesale'!H87 -> 0 | I88: 0 | J88: 0 | L88: ='16. RTSR - Historical Wholesale'!L87 -> 0 | M88: 0 | N88: 0 | P88: 0
B90: Total | D90: =SUM(D77:D88) -> 0 | E90: =IF(D90<>0,F90/D90,0) -> 0 | F90: =SUM(F77:F88) -> 0 | H90: =SUM(H77:H88) -> 0 | I90: =IF(H90<>0,J90/H90,0) -> 0 | J90: =SUM(J77:J88) -> 0 | L90: =SUM(L77:L88) -> 0 | M90: =IF(L90<>0,N90/L90,0) -> 0 | N90: =SUM(N77:N88) -> 0 | P90: =SUM(P77:P88) -> 0
B92: Total | D92: Network | H92: Line Connection | L92: Transformation Connection | P92: Total Line
B94: Month | D94: Units Billed | E94: Rate | F94: Amount | H94: Units Billed | I94: Rate | J94: Amount | L94: Units Billed | M94: Rate | N94: Amount | P94: Amount
B96: January | D96: =D20+D39 -> 139629 | E96: =IF(D96<>0,F96/D96,0) -> 3.563087056 | F96: =F20+F39 -> 497510.2825 | H96: =H20+H39 -> 149995 | I96: =IF(H96<>0,J96/H96,0) -> 0.7642953398 | J96: =J20+J39 -> 114640.4795 | L96: =L20+L39 -> 149995 | M96: =IF(L96<>0,N96/L96,0) -> 1.785869529 | N96: =N20+N39 -> 267871.5 | P96: =J96+N96 -> 382511.9795
B97: February | D97: 124243 | E97: 3.560335307 | F97: 442346.7395 | H97: 128354 | I97: 0.7614560364 | J97: 97735.9281 | L97: 128354 | M97: 1.77597457 | N97: 227953.44 | P97: 325689.3681
B98: March | D98: 115548.7355 | E98: 3.518765977 | F98: 406588.9593 | H98: 117152 | I98: 0.7507967948 | J98: 87957.3461 | L98: 117152 | M98: 1.738827165 | N98: 203707.08 | P98: 291664.4261
B99: April | D99: 107341.18 | E99: 3.526000909 | F99: 378485.0983 | H99: 107652.18 | I99: 0.7517195742 | J99: 80924.25091 | L99: 107652.18 | M99: 1.742043046 | N99: 187534.7316 | P99: 268458.9825
B100: May | D100: 105084.6 | E100: 3.561982759 | F100: 374309.5334 | H100: 107241.6 | I100: 0.7611114019 | J100: 81622.80452 | L100: 107241.6 | M100: 1.774773521 | N100: 190329.552 | P100: 271952.3565
B101: June | D101: 109326.76 | E101: 3.564558011 | F101: 389701.5781 | H101: 117507.76 | I101: 0.7646447374 | J101: 89851.69029 | L101: 117507.76 | M101: 1.787087178 | N101: 209996.6112 | P101: 299848.3015
B102: July | D102: 124285.9483 | E102: 3.544706519 | F102: 440557.211 | H102: 132604.94 | I102: 0.7599013174 | J102: 100766.6686 | L102: 132604.94 | M102: 1.770556382 | N102: 234784.5228 | P102: 335551.1914
B103: August | D103: 111916.85 | E103: 3.537087025 | F103: 395859.638 | H103: 116830.85 | I103: 0.7568755649 | J103: 88426.41559 | L103: 116830.85 | M103: 1.760011649 | N103: 205623.657 | P103: 294050.0726
B104: September | D104: 108657.3727 | E104: 3.553566627 | F104: 386121.2135 | H104: 113315.0957 | I104: 0.7604931828 | J104: 86175.35779 | L104: 113315.0957 | M104: 1.77261903 | N104: 200864.495 | P104: 287039.8528
B105: October | D105: 101094.06 | E105: 3.550084956 | F105: 358892.5016 | H105: 108077.06 | I105: 0.7611934226 | J105: 82267.5472 | L105: 108077.06 | M105: 1.775059362 | N105: 191843.1972 | P105: 274110.7444
B106: November | D106: 115420.93 | E106: 3.560761199 | F106: 410986.3691 | H106: 123883.93 | I106: 0.7637430354 | J106: 94615.48873 | L106: 123883.93 | M106: 1.783944751 | N106: 221002.0866 | P106: 315617.5753
B107: December | D107: 136673.2717 | E107: 3.555868692 | F107: 485992.208 | H107: 141845.4618 | I107: 0.7614863705 | J107: 108013.3858 | L107: 141845.4618 | M107: 1.776080284 | N107: 251928.9281 | P107: 359942.3139
B109: Total | D109: =SUM(D96:D107) -> 1399221.708 | E109: =IF(D109<>0,F109/D109,0) -> 3.550081665 | F109: =SUM(F96:F107) -> 4967351.332 | H109: =SUM(H96:H107) -> 1464459.877 | I109: =IF(H109<>0,J109/H109,0) -> 0.7600053646 | J109: =SUM(J96:J107) -> 1112997.363 | L109: =SUM(L96:L107) -> 1464459.877 | M109: =IF(L109<>0,N109/L109,0) -> 1.770918986 | N109: =SUM(N96:N107) -> 2593439.801 | P109: =SUM(P96:P107) -> 3706437.165
N111: Transformer Allowance Credit (if applicable) | P111: ='15. RTSR - UTRs & Sub-Tx'!I95 -> 0
N113: Total including deduction for Transformer Allowance Credit | P113: =P109+P111 -> 3706437.165

Sheet 19. RTSR Ntwrk to Curren WS
A13: The purpose of this sheet is to re-align the current RTS Network Rates to recover current wholesale network costs.
A16: Rate Class | B16: Rate Description | C16: Unit | E16: Current RTSR-Network | G16: Loss Adjusted Billed kWh | I16: Loss Adjusted Billed kW | K16: Billed Amount | M16: Billed Amount % | O16: Current Wholesale Billing | Q16: Proposed RTSR Network
A19: RESIDENTIAL | B19: Retail Transmission Rate - Network Service Rate | C19: $/kWh | E19: 0.0072 | G19: 196369089.8 | I19: 0 | K19: =IF(E19="", "", IF(C19="$/kWh", E19*G19, E19*I19)) -> 1413857.447 | M19: =IF(ISERROR(K19/SUM(K19:K100)),"",K19/SUM(K19:K100)) -> 0.2725089742 | O19: =IF(ISERROR('17. RTSR - Current Wholesale'!$F$109*M19), "", '17. RTSR - Current Wholesale'!$F$109*M19) -> 1353647.816 | Q19: =IF(C19="","",IF(C19="$/kWh",IF(G19<>0,O19/G19,),IF(I19<>0,O19/I19,0))) -> 0.006893385397
A20: GENERAL SERVICE LESS THAN 50 KW | B20: Retail Transmission Rate - Network Service Rate | C20: $/kWh | E20: 0.0065 | G20: 89560793.29 | I20: 0 | K20: 582145.1564 | M20: =IF(ISERROR(K20/SUM(K19:K100)),"",K20/SUM(K19:K100)) -> 0.112203518 | O20: =IF(ISERROR('17. RTSR - Current Wholesale'!$F$109*M20), "", '17. RTSR - Current Wholesale'!$F$109*M20) -> 557354.2944 | Q20: 0.00622319515
A21: GENERAL SERVICE 50 TO 4,999 KW | B21: Retail Transmission Rate - Network Service Rate | C21: $/kW | E21: 2.8319 | G21: 0 | I21: 767156 | K21: 2172509.076 | M21: =IF(ISERROR(K21/SUM(K19:K100)),"",K21/SUM(K19:K100)) -> 0.4187326108 | O21: =IF(ISERROR('17. RTSR - Current Wholesale'!$F$109*M21), "", '17. RTSR - Current Wholesale'!$F$109*M21) -> 2079991.992 | Q21: 2.711302515
A22: LARGE USE | B22: Retail Transmission Rate - Network Service Rate | C22: $/kW | E22: 3.4122 | G22: 0 | I22: 291732 | K22: 995447.9304 | M22: =IF(ISERROR(K22/SUM(K19:K100)),"",K22/SUM(K19:K100)) -> 0.1918641056 | O22: =IF(ISERROR('17. RTSR - Current Wholesale'!$F$109*M22), "", '17. RTSR - Current Wholesale'!$F$109*M22) -> 953056.4204 | Q22: 3.266890229
A23: UNMETERED SCATTERED LOAD | B23: Retail Transmission Rate - Network Service Rate | C23: $/kWh | E23: 0.0072 | G23: 896023.14 | I23: 0 | K23: 6451.366608 | M23: =IF(ISERROR(K23/SUM(K19:K100)),"",K23/SUM(K19:K100)) -> 0.001243445936 | O23: =IF(ISERROR('17. RTSR - Current Wholesale'!$F$109*M23), "", '17. RTSR - Current Wholesale'!$F$109*M23) -> 6176.632828 | Q23: 0.006893385397
A24: STREET LIGHTING | B24: Retail Transmission Rate - Network Service Rate | C24: $/kW | E24: 2.0455 | G24: 0 | I24: 8744 | K24: 17885.852 | M24: =IF(ISERROR(K24/SUM(K19:K100)),"",K24/SUM(K19:K100)) -> 0.003447345553 | O24: =IF(ISERROR('17. RTSR - Current Wholesale'!$F$109*M24), "", '17. RTSR - Current Wholesale'!$F$109*M24) -> 17124.17653 | Q24: 1.958391643

Sheet 20. RTSR Adj Conn to Current WS
A13: The purpose of this sheet is to re-align the current RTS Connection Rates to recover current wholesale connection costs.
A16: Rate Class | B16: Rate Description | C16: Unit | E16: Current RTSR-Connection | G16: Loss Adjusted Billed kWh | I16: Loss Adjusted Billed kW | K16: Billed Amount | M16: Billed Amount % | O16: Current Wholesale Billing | Q16: Proposed RTSR Connection
A19: RESIDENTIAL | B19: Retail Transmission Rate - Line and Transformation Connection Service Rate | C19: $/kWh | E19: 0.0055 | G19: 196369089.8 | I19: 0 | K19: =IF(E19="", "", IF(C19="$/kWh", E19*G19, E19*I19)) -> 1080029.994 | M19: =IF(ISERROR(K19/SUM(K19:K100)),"",K19/SUM(K19:K100)) -> 0.271827932 | O19: =IF(ISERROR('17. RTSR - Current Wholesale'!$P$113*M19), "", '17. RTSR - Current Wholesale'!$P$113*M19) -> 1007513.15 | Q19: =IF(C19="","",IF(C19="$/kWh",IF(G19<>0,O19/G19,),IF(I19<>0,O19/I19,0))) -> 0.005130711512
A20: GENERAL SERVICE LESS THAN 50 KW | B20: Retail Transmission Rate - Line and Transformation Connection Service Rate | C20: $/kWh | E20: 0.005 | G20: 89560793.29 | I20: 0 | K20: 447803.9664 | M20: =IF(ISERROR(K20/SUM(K19:K100)),"",K20/SUM(K19:K100)) -> 0.112705783 | O20: =IF(ISERROR('17. RTSR - Current Wholesale'!$P$113*M20), "", '17. RTSR - Current Wholesale'!$P$113*M20) -> 417736.9028 | Q20: 0.004664283192
A21: GENERAL SERVICE 50 TO 4,999 KW | B21: Retail Transmission Rate - Line and Transformation Connection Service Rate | C21: $/kW | E21: 2.1693 | G21: 0 | I21: 767156 | K21: 1664191.511 | M21: =IF(ISERROR(K21/SUM(K19:K100)),"",K21/SUM(K19:K100)) -> 0.4188529387 | O21: =IF(ISERROR('17. RTSR - Current Wholesale'!$P$113*M21), "", '17. RTSR - Current Wholesale'!$P$113*M21) -> 1552452.099 | Q21: 2.023645906
A22: LARGE USE | B22: Retail Transmission Rate - Line and Transformation Connection Service Rate | C22: $/kW | E22: 2.6139 | G22: 0 | I22: 291732 | K22: 762558.2748 | M22: =IF(ISERROR(K22/SUM(K19:K100)),"",K22/SUM(K19:K100)) -> 0.191924891 | O22: =IF(ISERROR('17. RTSR - Current Wholesale'!$P$113*M22), "", '17. RTSR - Current Wholesale'!$P$113*M22) -> 711357.5489 | Q22: 2.438393967
A23: UNMETERED SCATTERED LOAD | B23: Retail Transmission Rate - Line and Transformation Connection Service Rate | C23: $/kWh | E23: 0.0055 | G23: 896023.14 | I23: 0 | K23: 4928.12727 | M23: =IF(ISERROR(K23/SUM(K19:K100)),"",K23/SUM(K19:K100)) -> 0.001240338372 | O23: =IF(ISERROR('17. RTSR - Current Wholesale'!$P$113*M23), "", '17. RTSR - Current Wholesale'!$P$113*M23) -> 4597.236239 | Q23: 0.005130711512
A24: STREET LIGHTING | B24: Retail Transmission Rate - Line and Transformation Connection Service Rate | C24: $/kW | E24: 1.5668 | G24: 0 | I24: 8744 | K24: 13700.0992 | M24: =IF(ISERROR(K24/SUM(K19:K100)),"",K24/SUM(K19:K100)) -> 0.003448116862 | O24: =IF(ISERROR('17. RTSR - Current Wholesale'!$P$113*M24), "", '17. RTSR - Current Wholesale'!$P$113*M24) -> 12780.22849 | Q24: 1.461599781

Sheet 21. RTSR Adj Ntwk to Forcast WS
A13: The purpose of this sheet is to update the re-align RTS Network Rates to recover forecast wholesale network costs.
A16: Rate Class | B16: Rate Description | C16: Unit | E16: Adjusted RTSR-Network | G16: Loss Adjusted Billed kWh | I16: Loss Adjusted Billed kW | K16: Billed Amount | M16: Billed Amount % | O16: Forecast Wholesale Billing | Q16: Proposed RTSR Network
A19: RESIDENTIAL | B19: Retail Transmission Rate - Network Service Rate | C19: $/kWh | E19: 0.006893385397 | G19: 196369089.8 | I19: 0 | K19: =IF(E19="", "", IF(C19="$/kWh", E19*G19, E19*I19)) -> 1353647.816 | M19: =IF(ISERROR(K19/SUM(K19:K100)),"",K19/SUM(K19:K100)) -> 0.2725089742 | O19: =IF(ISERROR('18. RTSR - Forecast Wholesale'!$F$109*M19), "", '18. RTSR - Forecast Wholesale'!$F$109*M19) -> 1353647.816 | Q19: =IF(C19="","",IF(C19="$/kWh",IF(G19<>0,O19/G19,),IF(I19<>0,O19/I19,0))) -> 0.006893385397
A20: GENERAL SERVICE LESS THAN 50 KW | B20: Retail Transmission Rate - Network Service Rate | C20: $/kWh | E20: 0.00622319515 | G20: 89560793.29 | I20: 0 | K20: 557354.2944 | M20: =IF(ISERROR(K20/SUM(K19:K100)),"",K20/SUM(K19:K100)) -> 0.112203518 | O20: =IF(ISERROR('18. RTSR - Forecast Wholesale'!$F$109*M20), "", '18. RTSR - Forecast Wholesale'!$F$109*M20) -> 557354.2944 | Q20: 0.00622319515
A21: GENERAL SERVICE 50 TO 4,999 KW | B21: Retail Transmission Rate - Network Service Rate | C21: $/kW | E21: 2.711302515 | G21: 0 | I21: 767156 | K21: 2079991.992 | M21: =IF(ISERROR(K21/SUM(K19:K100)),"",K21/SUM(K19:K100)) -> 0.4187326108 | O21: =IF(ISERROR('18. RTSR - Forecast Wholesale'!$F$109*M21), "", '18. RTSR - Forecast Wholesale'!$F$109*M21) -> 2079991.992 | Q21: 2.711302515
A22: LARGE USE | B22: Retail Transmission Rate - Network Service Rate | C22: $/kW | E22: 3.266890229 | G22: 0 | I22: 291732 | K22: 953056.4204 | M22: =IF(ISERROR(K22/SUM(K19:K100)),"",K22/SUM(K19:K100)) -> 0.1918641056 | O22: =IF(ISERROR('18. RTSR - Forecast Wholesale'!$F$109*M22), "", '18. RTSR - Forecast Wholesale'!$F$109*M22) -> 953056.4204 | Q22: 3.266890229
A23: UNMETERED SCATTERED LOAD | B23: Retail Transmission Rate - Network Service Rate | C23: $/kWh | E23: 0.006893385397 | G23: 896023.14 | I23: 0 | K23: 6176.632828 | M23: =IF(ISERROR(K23/SUM(K19:K100)),"",K23/SUM(K19:K100)) -> 0.001243445936 | O23: =IF(ISERROR('18. RTSR - Forecast Wholesale'!$F$109*M23), "", '18. RTSR - Forecast Wholesale'!$F$109*M23) -> 6176.632828 | Q23: 0.006893385397
A24: STREET LIGHTING | B24: Retail Transmission Rate - Network Service Rate | C24: $/kW | E24: 1.958391643 | G24: 0 | I24: 8744 | K24: 17124.17653 | M24: =IF(ISERROR(K24/SUM(K19:K100)),"",K24/SUM(K19:K100)) -> 0.003447345553 | O24: =IF(ISERROR('18. RTSR - Forecast Wholesale'!$F$109*M24), "", '18. RTSR - Forecast Wholesale'!$F$109*M24) -> 17124.17653 | Q24: 1.958391643

Sheet 22. RTSR Adj Conn. to Forcst WS
A13: The purpose of this sheet is to update the re-aligned RTS Connection Rates to recover forecast wholesale connection costs.
A16: Rate Class | B16: Rate Description | C16: Unit | E16: Adjusted RTSR-Connection | G16: Loss Adjusted Billed kWh | I16: Loss Adjusted Billed kW | K16: Billed Amount | M16: Billed Amount % | O16: Forecast Wholesale Billing | Q16: Proposed RTSR Connection
A19: RESIDENTIAL | B19: Retail Transmission Rate - Line and Transformation Connection Service Rate | C19: $/kWh | E19: 0.005130711512 | G19: 196369089.8 | I19: 0 | K19: =IF(E19="", "", IF(C19="$/kWh", E19*G19, E19*I19)) -> 1007513.15 | M19: =IF(ISERROR(K19/SUM(K19:K100)),"",K19/SUM(K19:K100)) -> 0.271827932 | O19: =IF(ISERROR('18. RTSR - Forecast Wholesale'!$P$113*M19), "", '18. RTSR - Forecast Wholesale'!$P$113*M19) -> 1007513.15 | Q19: =IF(C19="","",IF(C19="$/kWh",IF(G19<>0,O19/G19,),IF(I19<>0,O19/I19,0))) -> 0.005130711512
A20: GENERAL SERVICE LESS THAN 50 KW | B20: Retail Transmission Rate - Line and Transformation Connection Service Rate | C20: $/kWh | E20: 0.004664283192 | G20: 89560793.29 | I20: 0 | K20: 417736.9028 | M20: =IF(ISERROR(K20/SUM(K19:K100)),"",K20/SUM(K19:K100)) -> 0.112705783 | O20: =IF(ISERROR('18. RTSR - Forecast Wholesale'!$P$113*M20), "", '18. RTSR - Forecast Wholesale'!$P$113*M20) -> 417736.9028 | Q20: 0.004664283192
A21: GENERAL SERVICE 50 TO 4,999 KW | B21: Retail Transmission Rate - Line and Transformation Connection Service Rate | C21: $/kW | E21: 2.023645906 | G21: 0 | I21: 767156 | K21: 1552452.099 | M21: =IF(ISERROR(K21/SUM(K19:K100)),"",K21/SUM(K19:K100)) -> 0.4188529387 | O21: =IF(ISERROR('18. RTSR - Forecast Wholesale'!$P$113*M21), "", '18. RTSR - Forecast Wholesale'!$P$113*M21) -> 1552452.099 | Q21: 2.023645906
A22: LARGE USE | B22: Retail Transmission Rate - Line and Transformation Connection Service Rate | C22: $/kW | E22: 2.438393967 | G22: 0 | I22: 291732 | K22: 711357.5489 | M22: =IF(ISERROR(K22/SUM(K19:K100)),"",K22/SUM(K19:K100)) -> 0.191924891 | O22: =IF(ISERROR('18. RTSR - Forecast Wholesale'!$P$113*M22), "", '18. RTSR - Forecast Wholesale'!$P$113*M22) -> 711357.5489 | Q22: 2.438393967
A23: UNMETERED SCATTERED LOAD | B23: Retail Transmission Rate - Line and Transformation Connection Service Rate | C23: $/kWh | E23: 0.005130711512 | G23: 896023.14 | I23: 0 | K23: 4597.236239 | M23: =IF(ISERROR(K23/SUM(K19:K100)),"",K23/SUM(K19:K100)) -> 0.001240338372 | O23: =IF(ISERROR('18. RTSR - Forecast Wholesale'!$P$113*M23), "", '18. RTSR - Forecast Wholesale'!$P$113*M23) -> 4597.236239 | Q23: 0.005130711512
A24: STREET LIGHTING | B24: Retail Transmission Rate - Line and Transformation Connection Service Rate | C24: $/kW | E24: 1.461599781 | G24: 0 | I24: 8744 | K24: 12780.22849 | M24: =IF(ISERROR(K24/SUM(K19:K100)),"",K24/SUM(K19:K100)) -> 0.003448116862 | O24: =IF(ISERROR('18. RTSR - Forecast Wholesale'!$P$113*M24), "", '18. RTSR - Forecast Wholesale'!$P$113*M24) -> 12780.22849 | Q24: 1.461599781

Sheet 23. RTSR Final 2015 RTS Rates
A13: This sheet lists proposed RTSRs for all classes. No input required.
A16: Rate Class | B16: Rate Description | C16: Unit | E16: Proposed Retail Transmission Rate
A19: RESIDENTIAL | B19: Retail Transmission Rate - Network Service Rate | C19: $/kWh | E19: 0.006893385397
A20: RESIDENTIAL | B20: Retail Transmission Rate - Line and Transformation Connection Service Rate | C20: $/kWh | E20: 0.005130711512
A21: GENERAL SERVICE LESS THAN 50 KW | B21: Retail Transmission Rate - Network Service Rate | C21: $/kWh | E21: 0.00622319515
A22: GENERAL SERVICE LESS THAN 50 KW | B22: Retail Transmission Rate - Line and Transformation Connection Service Rate | C22: $/kWh | E22: 0.004664283192
A23: GENERAL SERVICE 50 TO 4,999 KW | B23: Retail Transmission Rate - Network Service Rate | C23: $/kW | E23: 2.711302515
A24: GENERAL SERVICE 50 TO 4,999 KW | B24: Retail Transmission Rate - Line and Transformation Connection Service Rate | C24: $/kW | E24: 2.023645906
A25: LARGE USE | B25: Retail Transmission Rate - Network Service Rate | C25: $/kW | E25: 3.266890229
A26: LARGE USE | B26: Retail Transmission Rate - Line and Transformation Connection Service Rate | C26: $/kW | E26: 2.438393967
A27: UNMETERED SCATTERED LOAD | B27: Retail Transmission Rate - Network Service Rate | C27: $/kWh | E27: 0.006893385397
A28: UNMETERED SCATTERED LOAD | B28: Retail Transmission Rate - Line and Transformation Connection Service Rate | C28: $/kWh | E28: 0.005130711512
A29: STREET LIGHTING | B29: Retail Transmission Rate - Network Service Rate | C29: $/kW | E29: 1.958391643
A30: STREET LIGHTING | B30: Retail Transmission Rate - Line and Transformation Connection Service Rate | C30: $/kW | E30: 1.461599781

Sheet 24. Rev2Cost_GDPIPI
Y1: FALSE | Z1: 0 | AC1: NO
Y2: TRUE
A12: If applicable, please enter any adjustments related to the revenue to cost ratio model into columns C and E. The Price Escalator and Stretch Factor have been set at the 2014 values and will be updated by Board staff at a later date.
A15: Price Escalator | B15: 0.017 | C15: Choose Stretch Factor Group | E15: III
A16: Productivity Factor | B16: 0 | C16: Associated Stretch Factor Value | E16: =IF(E15="I", 0%, IF(E15="II", 0.15%, IF(E15="III", 0.3%, IF(E15="IV", 0.45%, 0.6%)))) -> 0.003
A17: Price Cap Index | B17: =B15-B16-E16 -> 0.014
B19: Current MFC | C19: MFC Adjustment from R/C Model | D19: Current Volumetric Charge | E19: DVR Adjustment from R/C Model | F19: Price Cap Index to be Applied to MFC and DVR | G19: Proposed MFC | H19: Proposed Volumetric Charge
A20: Rate Class
A22: RESIDENTIAL | B22: 12.4 | D22: 0.0152 | F22: =$B$17 -> 0.014 | G22: =ROUND(SUM(B22,C22)*(1+F22),2) -> 12.57 | H22: =ROUND(SUM(D22,E22)*(1+F22),4) -> 0.0154
A23: GENERAL SERVICE LESS THAN 50 KW | B23: 25.52 | D23: 0.0105 | F23: 0.014 | G23: 25.88 | H23: 0.0106
A24: GENERAL SERVICE 50 TO 4,999 KW | B24: 276.5 | D24: 1.9806 | F24: 0.014 | G24: 280.37 | H24: 2.0083
A25: LARGE USE | B25: 5097.73 | D25: 1.04 | F25: 0.014 | G25: 5169.1 | H25: 1.0546
A26: UNMETERED SCATTERED LOAD | B26: 11.4 | D26: 0.0139 | F26: 0.014 | G26: 11.56 | H26: 0.0141
A27: STANDBY POWER - APPROVED ON AN INTERIM BASIS | F27: 0.014 | G27: 0 | H27: 0
A28: STREET LIGHTING | B28: 1.01 | D28: 4.615 | F28: 0.014 | G28: 1.02 | H28: 4.6796
A29: microFIT | B29: 5.4 | G29: 5.4

Sheet 24. hidden (hidden)
A1: Rate Class | B1: MFC Adjustment from R/C Model | C1: DVR Adjustment from R/C Model
A2: RESIDENTIAL | B2: 12.4 | D2: 0.0152
A3: GENERAL SERVICE LESS THAN 50 KW | B3: 25.52 | D3: 0.0105
A4: GENERAL SERVICE 50 TO 4,999 KW | B4: 276.5 | D4: 1.9806
A5: LARGE USE | B5: 5097.73 | D5: 1.04
A6: UNMETERED SCATTERED LOAD | B6: 11.4 | D6: 0.0139
A7: STANDBY POWER - APPROVED ON AN INTERIM BASIS
A8: STREET LIGHTING | B8: 1.01 | D8: 4.615

Sheet 25. Other Charges & LF
A11: Please enter the following charges as found on your most recent Board-Approved Tariff Schedule. The standard Allowance rates have been included as default entries. If you have different rates, please make the appropriate corrections in the applicable cells below. As well, please enter the current Specific Service Charges below. The standard Retail Service Charges have been entered below. If you have different rates, please make the appropriate corrections in columns A, C or D as applicable (cells are unlocked).
C13: UNIT | D13: RATE
A15: ALLOWANCES
A17: Transformer Allowance for Ownership - per kW of billing demand/month | C17: $/kW | D17: -0.6
A20: Primary Metering Allowance for transformer losses – applied to measured demand and energy | C20: % | D20: -1
A22: SPECIFIC SERVICE CHARGES
A24: APPLICATION
A26: The application of these rates and charges shall be in accordance with the Licence of the Distributor and any Code or Order of the Board, and amendments thereto as approved by the Board, which may be applicable to the administration of this schedule.
A27: No charges to meet the costs of any work or service done or furnished for the purpose of the distribution of electricity shall be made except as permitted by this schedule, unless required by the Distributor’s Licence or a Code or Order of the Board, and amendments thereto as approved by the Board, or as specified herein.
A28: It should be noted that this schedule does not list any charges, assessments or credits that are required by law to be invoiced by a distributor and that are not subject to Board approval, such as the Debt Retirement Charge, the Global Adjustment, the Ontario Clean Energy Benefit and the HST.
A30: Customer Administration
A32: Arrears certificate | C32: $ | D32: 15
A33: Statement of Account | C33: $ | D33: 15
A34: Request for other billing information | C34: $ | D34: 15
A35: Account History | C35: $ | D35: 15
A36: Returned cheque (plus bank charges) | C36: $ | D36: 15
A37: Legal letter charge | C37: $ | D37: 15
A38: Account set up charge/change of occupancy charge (plus credit agency costs if applicable) | C38: $ | D38: 15
A39: Special meter reads | C39: $ | D39: 30
A40: Meter dispute charge plus Measurement Canada fees (if meter found correct) | C40: $ | D40: 30
A67: Non-Payment of Account
A68: Late Payment – per month | C68: % | D68: 1.5
A69: Late Payment – per annum | C69: % | D69: 19.56
A70: Disconnect/Reconnect at meter – during regular hours | C70: $ | D70: 65
A71: Disconnect/Reconnect at meter – after regular hours | C71: $ | D71: 185
A72: Disconnect/Reconnect at pole – during regular hours | C72: $ | D72: 185
A73: Disconnect/Reconnect at pole – after regular hours | C73: $ | D73: 415
A74: Install/Remove load control device – during regular hours | C74: $ | D74: 65
A75: Install/Remove load control device – after regular hours | C75: $ | D75: 185
A76: Specific Charge for Access to the Power Poles - $/pole/year | C76: $ | D76: 22.35
A77: Layout fees | C77: $ | D77: 200
A116: RETAIL SERVICE CHARGES (if applicable)
A118: The application of these rates and charges shall be in accordance with the Licence of the Distributor and any Code or Order of the Board, and amendments thereto as approved by the Board, which may be applicable to the administration of this schedule.
A120: No rates and charges for the distribution of electricity and charges to meet the costs of any work or service done or furnished for the purpose of the distribution of electricity shall be made except as permitted by this schedule, unless required by the Distributor’s Licence or a Code or Order of the Board, and amendments thereto as approved by the Board, or as specified herein.
A122: Unless specifically noted, this schedule does not contain any charges for the electricity commodity, be it under the Regulated Price Plan, a contract with a retailer or the wholesale market price, as applicable.
A124: It should be noted that this schedule does not list any charges, assessments, or credits that are required by law to be invoiced by a distributor and that are not subject to Board approval, such as the Debt Retirement Charge, the Global Adjustment, the Ontario Clean Energy Benefit and the HST.
A126: Retail Service Charges refer to services provided by a distributor to retailers or customers related to the supply of competitive electricity.
A128: One-time charge, per retailer, to establish the service agreement between the distributor and the retailer | C128: $ | D128: 100
A129: Monthly Fixed Charge, per retailer | C129: $ | D129: 20
A130: Monthly Variable Charge, per customer, per retailer | C130: $/cust. | D130: 0.5
A131: Distributor-consolidated billing monthly charge, per customer, per retailer | C131: $/cust. | D131: 0.3
A132: Retailer-consolidated billing monthly credit, per customer, per retailer | C132: $/cust. | D132: -0.3
A133: Service Transaction Requests (STR)
A134: Request fee, per request, applied to the requesting party | C134: $ | D134: 0.25
A135: Processing fee, per request, applied to the requesting party | C135: $ | D135: 0.5
A136: Request for customer information as outlined in Section 10.6.3 and Chapter 11 of the Retail
A137: Settlement Code directly to retailers and customers, if not delivered electronically through the
A138: Electronic Business Transaction (EBT) system, applied to the requesting party
A139: Up to twice a year | C139: $ | D139: no charge
A140: More than twice a year, per request (plus incremental delivery costs) | C140: $ | D140: 2
A143: LOSS FACTORS
A145: If the distributor is not capable of prorating changed loss factors jointly with distribution rates, the revised loss factors will be implemented upon the first subsequent billing for each billing cycle.
A148: Total Loss Factor – Secondary Metered Customer < 5,000 kW | D148: 1.0344 | H148: TLF_Secondary_LT_5000kW
A149: Total Loss Factor – Secondary Metered Customer > 5,000 kW | D149: 1.018 | H149: TLF_Primary_LT_5000kW
A150: Total Loss Factor – Primary Metered Customer < 5,000 kW | D150: 1.0241
A151: Total Loss Factor – Primary Metered Customer > 5,000 kW | D151: 1.0078

Sheet 26. Proposed Rates
Z1: 3
L5: =ROUND(LEN(B5), -2) / 100 -> 0
L9: =ROUND(LEN(B9), -2) / 100 -> 0
B12: In the Green Cells below, enter any proposed rate riders that are not already included in this model (e.g: ICM rate riders). In column B, the rate rider descriptions must begin with "Rate Rider for". In column C, choose the associated unit from the drop-down menu. In column D, enter the rate. All rate riders with a "$" unit will be rounded to 2 decimal places and all others will be rounded to 4 decimal places.
A20: RESIDENTIAL | B20: RESIDENTIAL SERVICE CLASSIFICATION | C20: Unit | D20: Rate
A21: RESIDENTIAL
A22: RESIDENTIAL
A23: RESIDENTIAL
A24: RESIDENTIAL
A25: RESIDENTIAL
A26: RESIDENTIAL
A27: RESIDENTIAL
A28: RESIDENTIAL
A29: RESIDENTIAL
A30: RESIDENTIAL
A32: GENERAL SERVICE LESS THAN 50 KW | B32: GENERAL SERVICE LESS THAN 50 KW SERVICE CLASSIFICATION | C32: Unit | D32: Rate
A33: GENERAL SERVICE LESS THAN 50 KW
A34: GENERAL SERVICE LESS THAN 50 KW
A35: GENERAL SERVICE LESS THAN 50 KW
A36: GENERAL SERVICE LESS THAN 50 KW
A37: GENERAL SERVICE LESS THAN 50 KW
A38: GENERAL SERVICE LESS THAN 50 KW
A39: GENERAL SERVICE LESS THAN 50 KW
A40: GENERAL SERVICE LESS THAN 50 KW
A41: GENERAL SERVICE LESS THAN 50 KW
A42: GENERAL SERVICE LESS THAN 50 KW
A44: GENERAL SERVICE 50 TO 4,999 KW | B44: GENERAL SERVICE 50 TO 4,999 KW SERVICE CLASSIFICATION | C44: Unit | D44: Rate
A45: GENERAL SERVICE 50 TO 4,999 KW | B45: Rate Rider for Disposition of Deferral/Variance Accounts (2015) - effective until December 31, 2015 Applicable only for Wholesale Market Participant Customers | C45: $/kW | D45: 0
A46: GENERAL SERVICE 50 TO 4,999 KW
A47: GENERAL SERVICE 50 TO 4,999 KW
A48: GENERAL SERVICE 50 TO 4,999 KW
A49: GENERAL SERVICE 50 TO 4,999 KW
A50: GENERAL SERVICE 50 TO 4,999 KW
A51: GENERAL SERVICE 50 TO 4,999 KW
A52: GENERAL SERVICE 50 TO 4,999 KW
A53: GENERAL SERVICE 50 TO 4,999 KW
A54: GENERAL SERVICE 50 TO 4,999 KW
A56: LARGE USE | B56: LARGE USE SERVICE CLASSIFICATION | C56: Unit | D56: Rate
A57: LARGE USE | B57: Rate Rider for Disposition of Global Adjustment Account (2015) - effective until December 31, 2015 Applicable only for Class A Global Adjustment Customers | C57: $/kW | D57: 0
A58: LARGE USE
A59: LARGE USE
A60: LARGE USE
A61: LARGE USE
A62: LARGE USE
A63: LARGE USE
A64: LARGE USE
A65: LARGE USE
A66: LARGE USE
A68: UNMETERED SCATTERED LOAD | B68: UNMETERED SCATTERED LOAD SERVICE CLASSIFICATION | C68: Unit | D68: Rate
A69: UNMETERED SCATTERED LOAD
A70: UNMETERED SCATTERED LOAD
A71: UNMETERED SCATTERED LOAD
A72: UNMETERED SCATTERED LOAD
A73: UNMETERED SCATTERED LOAD
A74: UNMETERED SCATTERED LOAD
A75: UNMETERED SCATTERED LOAD
A76: UNMETERED SCATTERED LOAD
A77: UNMETERED SCATTERED LOAD
A78: UNMETERED SCATTERED LOAD
A80: STANDBY POWER - APPROVED ON AN INTERIM BASIS | B80: STANDBY POWER - APPROVED ON AN INTERIM BASIS SERVICE CLASSIFICATION | C80: Unit | D80: Rate
A81: STANDBY POWER - APPROVED ON AN INTERIM BASIS
A82: STANDBY POWER - APPROVED ON AN INTERIM BASIS
A83: STANDBY POWER - APPROVED ON AN INTERIM BASIS
A84: STANDBY POWER - APPROVED ON AN INTERIM BASIS
A85: STANDBY POWER - APPROVED ON AN INTERIM BASIS
A86: STANDBY POWER - APPROVED ON AN INTERIM BASIS
A87: STANDBY POWER - APPROVED ON AN INTERIM BASIS
A88: STANDBY POWER - APPROVED ON AN INTERIM BASIS
A89: STANDBY POWER - APPROVED ON AN INTERIM BASIS
A90: STANDBY POWER - APPROVED ON AN INTERIM BASIS
A92: STREET LIGHTING | B92: STREET LIGHTING SERVICE CLASSIFICATION | C92: Unit | D92: Rate
A93: STREET LIGHTING
A94: STREET LIGHTING
A95: STREET LIGHTING
A96: STREET LIGHTING
A97: STREET LIGHTING
A98: STREET LIGHTING
A99: STREET LIGHTING
A100: STREET LIGHTING
A101: STREET LIGHTING
A102: STREET LIGHTING
A104: microFIT | B104: microFIT SERVICE CLASSIFICATION | C104: Unit | D104: Rate
A105: microFIT
A106: microFIT
A107: microFIT
A108: microFIT
A109: microFIT
A110: microFIT
A111: microFIT
A112: microFIT
A113: microFIT
A114: microFIT
B118: PROPOSED MONTHLY RATES AND CHARGES - Regulatory Component
A120: Wholesale Market Service Rate | B120: Wholesale Market Service Rate | C120: $/kWh | D120: 0.0044
A121: Rural or Remote Electricity Rate Protection Charge (RRRP) | B121: Rural or Remote Electricity Rate Protection Charge (RRRP) | C121: $/kWh | D121: 0.0013
A122: Standard Supply Service - Administrative Charge (if applicable) | B122: Standard Supply Service - Administrative Charge (if applicable) | C122: $ | D122: 0.25

Sheet 26. Hidden (hidden)
A1: RESIDENTIAL | B1: RESIDENTIAL SERVICE CLASSIFICATION | C1: Unit | D1: Rate
A2: RESIDENTIAL
A3: RESIDENTIAL
A4: RESIDENTIAL
A5: RESIDENTIAL
A6: RESIDENTIAL
A7: RESIDENTIAL
A8: RESIDENTIAL
A9: RESIDENTIAL
A10: RESIDENTIAL
A11: RESIDENTIAL
A13: GENERAL SERVICE LESS THAN 50 KW | B13: GENERAL SERVICE LESS THAN 50 KW SERVICE CLASSIFICATION | C13: Unit | D13: Rate
A14: GENERAL SERVICE LESS THAN 50 KW
A15: GENERAL SERVICE LESS THAN 50 KW
A16: GENERAL SERVICE LESS THAN 50 KW
A17: GENERAL SERVICE LESS THAN 50 KW
A18: GENERAL SERVICE LESS THAN 50 KW
A19: GENERAL SERVICE LESS THAN 50 KW
A20: GENERAL SERVICE LESS THAN 50 KW
A21: GENERAL SERVICE LESS THAN 50 KW
A22: GENERAL SERVICE LESS THAN 50 KW
A23: GENERAL SERVICE LESS THAN 50 KW
A25: GENERAL SERVICE 50 TO 4,999 KW | B25: GENERAL SERVICE 50 TO 4,999 KW SERVICE CLASSIFICATION | C25: Unit | D25: Rate
A26: GENERAL SERVICE 50 TO 4,999 KW
A27: GENERAL SERVICE 50 TO 4,999 KW
A28: GENERAL SERVICE 50 TO 4,999 KW
A29: GENERAL SERVICE 50 TO 4,999 KW
A30: GENERAL SERVICE 50 TO 4,999 KW
A31: GENERAL SERVICE 50 TO 4,999 KW
A32: GENERAL SERVICE 50 TO 4,999 KW
A33: GENERAL SERVICE 50 TO 4,999 KW
A34: GENERAL SERVICE 50 TO 4,999 KW
A35: GENERAL SERVICE 50 TO 4,999 KW
A37: LARGE USE | B37: LARGE USE SERVICE CLASSIFICATION | C37: Unit | D37: Rate
A38: LARGE USE
A39: LARGE USE
A40: LARGE USE
A41: LARGE USE
A42: LARGE USE
A43: LARGE USE
A44: LARGE USE
A45: LARGE USE
A46: LARGE USE
A47: LARGE USE
A49: UNMETERED SCATTERED LOAD | B49: UNMETERED SCATTERED LOAD SERVICE CLASSIFICATION | C49: Unit | D49: Rate
A50: UNMETERED SCATTERED LOAD
A51: UNMETERED SCATTERED LOAD
A52: UNMETERED SCATTERED LOAD
A53: UNMETERED SCATTERED LOAD
A54: UNMETERED SCATTERED LOAD
A55: UNMETERED SCATTERED LOAD
A56: UNMETERED SCATTERED LOAD
A57: UNMETERED SCATTERED LOAD
A58: UNMETERED SCATTERED LOAD
A59: UNMETERED SCATTERED LOAD
A61: STANDBY POWER - APPROVED ON AN INTERIM BASIS | B61: STANDBY POWER - APPROVED ON AN INTERIM BASIS SERVICE CLASSIFICATION | C61: Unit | D61: Rate
A62: STANDBY POWER - APPROVED ON AN INTERIM BASIS
A63: STANDBY POWER - APPROVED ON AN INTERIM BASIS
A64: STANDBY POWER - APPROVED ON AN INTERIM BASIS
A65: STANDBY POWER - APPROVED ON AN INTERIM BASIS
A66: STANDBY POWER - APPROVED ON AN INTERIM BASIS
A67: STANDBY POWER - APPROVED ON AN INTERIM BASIS
A68: STANDBY POWER - APPROVED ON AN INTERIM BASIS
A69: STANDBY POWER - APPROVED ON AN INTERIM BASIS
A70: STANDBY POWER - APPROVED ON AN INTERIM BASIS
A71: STANDBY POWER - APPROVED ON AN INTERIM BASIS
A73: STREET LIGHTING | B73: STREET LIGHTING SERVICE CLASSIFICATION | C73: Unit | D73: Rate
A74: STREET LIGHTING
A75: STREET LIGHTING
A76: STREET LIGHTING
A77: STREET LIGHTING
A78: STREET LIGHTING
A79: STREET LIGHTING
A80: STREET LIGHTING
A81: STREET LIGHTING
A82: STREET LIGHTING
A83: STREET LIGHTING
A85: microFIT | B85: microFIT SERVICE CLASSIFICATION | C85: Unit | D85: Rate
A86: microFIT
A87: microFIT
A88: microFIT
A89: microFIT
A90: microFIT
A91: microFIT
A92: microFIT
A93: microFIT
A94: microFIT
A95: microFIT
B99: PROPOSED MONTHLY RATES AND CHARGES - Regulatory Component
A101: Wholesale Market Service Rate | B101: Wholesale Market Service Rate | C101: $/kWh | D101: 0.0044
A102: Rural or Remote Electricity Rate Protection Charge (RRRP) | B102: Rural or Remote Electricity Rate Protection Charge (RRRP) | C102: $/kWh | D102: 0.0013
A103: Standard Supply Service - Administrative Charge (if applicable) | B103: Standard Supply Service - Administrative Charge (if applicable) | C103: $ | D103: 0.25

Sheet 27. Final Tariff Schedule
A1: hidden column | B1: ='1. Information Sheet'!F14 -> Kingston Hydro Corporation | F1: hidden column | Z1: 3
A2: for rate classes | B2: TARIFF OF RATES AND CHARGES | F2: for proposed
B3: ="Effective and Implementation Date " & TEXT('1. Information Sheet'!F26, "mmmm dd, yyyy") -> Effective and Implementation Date May 01, 2015 | F3: labeliing
B5: This schedule supersedes and replaces all previously
B6: approved schedules of Rates, Charges and Loss Factors | L6: =ROUND(LEN(B6), -2) / 100 -> 1
B7: =IF(LEN('1. Information Sheet'!F18)=0, "Please enter your assigned EB# on Sheet 1", '1. Information Sheet'!F18) -> EB-2014-0088
B9: RESIDENTIAL SERVICE CLASSIFICATION
B11: This classification applies to an account taking electricity at 750 volts or less where the electricity is used exclusively in a separate metered living accommodation. Customer shall be residing in single-dwelling units that consist of a detached house or one unit of a semi-detached, duplex, triplex or quadruplex house, with a residential zoning. Separately metered dwellings within a town house complex or apartment building also qualify as residential customers. All customers are single-phase. Further servicing details are available in the distributor's Conditions of Service. | L11: =ROUND(LEN(B11), -2) / 100 -> 6
B13: APPLICATION
B15: The application of these rates and charges shall be in accordance with the Licence of the Distributor and any Code or Order of the Board, and amendments thereto as approved by the Board, which may be applicable to the administration of this schedule. | L15: =ROUND(LEN(B15), -2) / 100 -> 3
B17: No rates and charges for the distribution of electricity and charges to meet the costs of any work or service done or furnished for the purpose of the distribution of electricity shall be made except as permitted by this schedule, unless required by the Distributor's Licence or a Code or Order of the Board, and amendments thereto as approved by the Board, or as specified herein. | L17: =ROUND(LEN(B17), -2) / 100 -> 4
B19: Unless specifically noted, this schedule does not contain any charges for the electricity commodity, be it under the Regulated Price Plan, a contract with a retailer or the wholesale market price, as applicable. In addition, the charges in the MONTHLY RATES AND CHARGES - Regulatory Component of this schedule do not apply to a customer that is an embedded wholesale market participant. | L19: =ROUND(LEN(B19), -2) / 100 -> 4
B21: It should be noted that this schedule does not list any changes, assessments or credits that are required by law to be invoiced by a distributor and that are not subject to Board approval, such as the Debt Retirement Charge, the Global Adjustment, the Ontario Clean Energy Benefit and the HST. | L21: =ROUND(LEN(B21), -2) / 100 -> 3
B23: MONTHLY RATES AND CHARGES - Delivery Component
A25: RESIDENTIAL | B25: Service Charge | D25: $ | E25: 12.57 | K25: 1_P_MSC
A26: RESIDENTIAL | B26: Rate Rider for Recovery of Smart Meter Incremental Revenue Requirement - in effect until the effective date of the next cost of service-based rate order | D26: $ | E26: 2.63 | K26: 1_P_MSC_Rate_Rider_1
A27: RESIDENTIAL | B27: Rate Rider for Smart Metering Entity Charge - effective until October 31, 2018 | D27: $ | E27: 0.79 | K27: 1_P_SMEC
A28: RESIDENTIAL | B28: Distribution Volumetric Rate | D28: $/kWh | E28: 0.0154 | K28: 1_P_VC_1
A29: RESIDENTIAL | B29: Low Voltage Service Rate | D29: $/kWh | E29: 0.0007 | K29: 1_P_LVrate
A30: RESIDENTIAL | B30: Rate Rider for Disposition of Global Adjustment Account (2015) - effective until April 30, 2016 Applicable only for Non RPP Customers | D30: $/kWh | E30: 0.0092 | K30: 1_P_VC_GA_Rate_Rider_kWh_1
A31: RESIDENTIAL | B31: Retail Transmission Rate - Network Service Rate | D31: $/kWh | E31: 0.006893385397 | K31: 1_P_RTSR_Network
A32: RESIDENTIAL | B32: Retail Transmission Rate - Line and Transformation Connection Service Rate | D32: $/kWh | E32: 0.005130711512 | K32: 1_P_RTSR_Connection
A33: RESIDENTIAL
A34: RESIDENTIAL | B34: MONTHLY RATES AND CHARGES - Regulatory Component
A35: RESIDENTIAL
A36: RESIDENTIAL | B36: Wholesale Market Service Rate | D36: $/kWh | E36: 0.0044 | K36: 1_P_WMSR
A37: RESIDENTIAL | B37: Rural or Remote Electricity Rate Protection Charge (RRRP) | D37: $/kWh | E37: 0.0013 | K37: 1_P_RRPC
A38: RESIDENTIAL | B38: Standard Supply Service - Administrative Charge (if applicable) | D38: $ | E38: 0.25 | K38: 1_P_SSS
B40: GENERAL SERVICE LESS THAN 50 KW SERVICE CLASSIFICATION
B42: This classification refers to a non residential account taking electricity at 750 volts or less whose monthly average peak demand is less than, or is forecast to be less than, 50 kW. Further servicing details are available in the distributor's Conditions of Service. | L42: =ROUND(LEN(B42), -2) / 100 -> 3
B44: APPLICATION
B46: The application of these rates and charges shall be in accordance with the Licence of the Distributor and any Code or Order of the Board, and amendments thereto as approved by the Board, which may be applicable to the administration of this schedule. | L46: =ROUND(LEN(B46), -2) / 100 -> 3
B48: No rates and charges for the distribution of electricity and charges to meet the costs of any work or service done or furnished for the purpose of the distribution of electricity shall be made except as permitted by this schedule, unless required by the Distributor's Licence or a Code or Order of the Board, and amendments thereto as approved by the Board, or as specified herein. | L48: =ROUND(LEN(B48), -2) / 100 -> 4
B50: Unless specifically noted, this schedule does not contain any charges for the electricity commodity, be it under the Regulated Price Plan, a contract with a retailer or the wholesale market price, as applicable. In addition, the charges in the MONTHLY RATES AND CHARGES - Regulatory Component of this schedule do not apply to a customer that is an embedded wholesale market participant. | L50: =ROUND(LEN(B50), -2) / 100 -> 4
B52: It should be noted that this schedule does not list any changes, assessments or credits that are required by law to be invoiced by a distributor and that are not subject to Board approval, such as the Debt Retirement Charge, the Global Adjustment, the Ontario Clean Energy Benefit and the HST. | L52: =ROUND(LEN(B52), -2) / 100 -> 3
B54: MONTHLY RATES AND CHARGES - Delivery Component
A56: GENERAL SERVICE LESS THAN 50 KW | B56: Service Charge | D56: $ | E56: 25.88 | K56: 2_P_MSC
A57: GENERAL SERVICE LESS THAN 50 KW | B57: Rate Rider for Recovery of Smart Meter Incremental Revenue Requirement - in effect until the effective date of the next cost of service-based rate order | D57: $ | E57: 3.65 | K57: 2_P_MSC_Rate_Rider_1
A58: GENERAL SERVICE LESS THAN 50 KW | B58: Rate Rider for Smart Metering Entity Charge - effective until October 31, 2018 | D58: $ | E58: 0.79 | K58: 2_P_SMEC
A59: GENERAL SERVICE LESS THAN 50 KW | B59: Distribution Volumetric Rate | D59: $/kWh | E59: 0.0106 | K59: 2_P_VC_1
A60: GENERAL SERVICE LESS THAN 50 KW | B60: Low Voltage Service Rate | D60: $/kWh | E60: 0.0006 | K60: 2_P_LVrate
A61: GENERAL SERVICE LESS THAN 50 KW | B61: Rate Rider for Disposition of Global Adjustment Account (2015) - effective until April 30, 2016 Applicable only for Non RPP Customers | D61: $/kWh | E61: 0.0092 | K61: 2_P_VC_GA_Rate_Rider_kWh_1
A62: GENERAL SERVICE LESS THAN 50 KW | B62: Rate Rider for Recovery of Lost Revenue Adjustment Mechanism Variance Account (LRAMVA) (2015) - effective until April 30, 2016 | D62: $/kWh | E62: 0.0001 | K62: 2_P_VC_Rate_Rider_kWh_1
A63: GENERAL SERVICE LESS THAN 50 KW | B63: Retail Transmission Rate - Network Service Rate | D63: $/kWh | E63: 0.00622319515 | K63: 2_P_RTSR_Network
A64: GENERAL SERVICE LESS THAN 50 KW | B64: Retail Transmission Rate - Line and Transformation Connection Service Rate | D64: $/kWh | E64: 0.004664283192 | K64: 2_P_RTSR_Connection
A65: GENERAL SERVICE LESS THAN 50 KW
A66: GENERAL SERVICE LESS THAN 50 KW | B66: MONTHLY RATES AND CHARGES - Regulatory Component
A67: GENERAL SERVICE LESS THAN 50 KW
A68: GENERAL SERVICE LESS THAN 50 KW | B68: Wholesale Market Service Rate | D68: $/kWh | E68: 0.0044 | K68: 2_P_WMSR
A69: GENERAL SERVICE LESS THAN 50 KW | B69: Rural or Remote Electricity Rate Protection Charge (RRRP) | D69: $/kWh | E69: 0.0013 | K69: 2_P_RRPC
A70: GENERAL SERVICE LESS THAN 50 KW | B70: Standard Supply Service - Administrative Charge (if applicable) | D70: $ | E70: 0.25 | K70: 2_P_SSS
B72: GENERAL SERVICE 50 TO 4,999 KW SERVICE CLASSIFICATION
B74: This classification refers to a non residential account whose monthly average peak demand is equal to or greater than, or is forecast to be equal to or greater than, 50 kW but less than 5,000 kW. Further servicing details are available in th distributor's Conditions of Service. | L74: =ROUND(LEN(B74), -2) / 100 -> 3
B76: APPLICATION
B78: The application of these rates and charges shall be in accordance with the Licence of the Distributor and any Code or Order of the Board, and amendments thereto as approved by the Board, which may be applicable to the administration of this schedule. | L78: =ROUND(LEN(B78), -2) / 100 -> 3
B80: No rates and charges for the distribution of electricity and charges to meet the costs of any work or service done or furnished for the purpose of the distribution of electricity shall be made except as permitted by this schedule, unless required by the Distributor's Licence or a Code or Order of the Board, and amendments thereto as approved by the Board, or as specified herein. | L80: =ROUND(LEN(B80), -2) / 100 -> 4
B82: Unless specifically noted, this schedule does not contain any charges for the electricity commodity, be it under the Regulated Price Plan, a contract with a retailer or the wholesale market price, as applicable. In addition, the charges in the MONTHLY RATES AND CHARGES - Regulatory Component of this schedule do not apply to a customer that is an embedded wholesale market participant. | L82: =ROUND(LEN(B82), -2) / 100 -> 4
B84: It should be noted that this schedule does not list any changes, assessments or credits that are required by law to be invoiced by a distributor and that are not subject to Board approval, such as the Debt Retirement Charge, the Global Adjustment, the Ontario Clean Energy Benefit and the HST. | L84: =ROUND(LEN(B84), -2) / 100 -> 3
B86: MONTHLY RATES AND CHARGES - Delivery Component
A88: GENERAL SERVICE 50 TO 4,999 KW | B88: Service Charge | D88: $ | E88: 280.37 | K88: 3_P_MSC
A89: GENERAL SERVICE 50 TO 4,999 KW | B89: Distribution Volumetric Rate | D89: $/kW | E89: 2.0083 | K89: 3_P_VC_1
A90: GENERAL SERVICE 50 TO 4,999 KW | B90: Low Voltage Service Rate | D90: $/kW | E90: 0.252 | K90: 3_P_LVrate
A91: GENERAL SERVICE 50 TO 4,999 KW | B91: Rate Rider for Tax Change (2015) - effective until April 29, 2016 | D91: $/kW | E91: -0.0099 | K91: 3_P_VC_Rate_Rider_kW_1
A92: GENERAL SERVICE 50 TO 4,999 KW | B92: Rate Rider for Disposition of Deferral/Variance Accounts (2015) - effective until April 30, 2016 | D92: $/kW | E92: 0.0086 | K92: 3_P_VC_DEFVAR_kW_1
A93: GENERAL SERVICE 50 TO 4,999 KW | B93: Rate Rider for Disposition of Global Adjustment Account (2015) - effective until April 30, 2016 Applicable only for Non RPP Customers | D93: $/kW | E93: 3.3998 | K93: 3_P_VC_GA_Rate_Rider_kW_1
A94: GENERAL SERVICE 50 TO 4,999 KW | B94: Rate Rider for Recovery of Lost Revenue Adjustment Mechanism Variance Account (LRAMVA) (2015) - effective until April 30, 2016 | D94: $/kW | E94: 0.008 | K94: 3_P_VC_Rate_Rider_kW_3
A95: GENERAL SERVICE 50 TO 4,999 KW | B95: Retail Transmission Rate - Network Service Rate | D95: $/kW | E95: 2.711302515 | K95: 3_P_RTSR_Network
A96: GENERAL SERVICE 50 TO 4,999 KW | B96: Retail Transmission Rate - Line and Transformation Connection Service Rate | D96: $/kW | E96: 2.023645906 | K96: 3_P_RTSR_Connection
A97: GENERAL SERVICE 50 TO 4,999 KW
A98: GENERAL SERVICE 50 TO 4,999 KW | B98: MONTHLY RATES AND CHARGES - Regulatory Component
A99: GENERAL SERVICE 50 TO 4,999 KW
A100: GENERAL SERVICE 50 TO 4,999 KW | B100: Wholesale Market Service Rate | D100: $/kWh | E100: 0.0044 | K100: 3_P_WMSR
A101: GENERAL SERVICE 50 TO 4,999 KW | B101: Rural or Remote Electricity Rate Protection Charge (RRRP) | D101: $/kWh | E101: 0.0013 | K101: 3_P_RRPC
A102: GENERAL SERVICE 50 TO 4,999 KW | B102: Standard Supply Service - Administrative Charge (if applicable) | D102: $ | E102: 0.25 | K102: 3_P_SSS
B104: LARGE USE SERVICE CLASSIFICATION
B106: This classification refers to an account whose monthly average peak demand is equal to or greater than, or is forecast to be equal to or greater than, 5,000 kW. Further servicing details are available in the distributor's Conditions of Service. | L106: =ROUND(LEN(B106), -2) / 100 -> 2
B108: APPLICATION
B110: The application of these rates and charges shall be in accordance with the Licence of the Distributor and any Code or Order of the Board, and amendments thereto as approved by the Board, which may be applicable to the administration of this schedule. | L110: =ROUND(LEN(B110), -2) / 100 -> 3
B112: No rates and charges for the distribution of electricity and charges to meet the costs of any work or service done or furnished for the purpose of the distribution of electricity shall be made except as permitted by this schedule, unless required by the Distributor's Licence or a Code or Order of the Board, and amendments thereto as approved by the Board, or as specified herein. | L112: =ROUND(LEN(B112), -2) / 100 -> 4
B114: Unless specifically noted, this schedule does not contain any charges for the electricity commodity, be it under the Regulated Price Plan, a contract with a retailer or the wholesale market price, as applicable. In addition, the charges in the MONTHLY RATES AND CHARGES - Regulatory Component of this schedule do not apply to a customer that is an embedded wholesale market participant. | L114: =ROUND(LEN(B114), -2) / 100 -> 4
B116: It should be noted that this schedule does not list any changes, assessments or credits that are required by law to be invoiced by a distributor and that are not subject to Board approval, such as the Debt Retirement Charge, the Global Adjustment, the Ontario Clean Energy Benefit and the HST. | L116: =ROUND(LEN(B116), -2) / 100 -> 3
B118: MONTHLY RATES AND CHARGES - Delivery Component
A120: LARGE USE | B120: Service Charge | D120: $ | E120: 5169.1 | K120: 4_P_MSC
A121: LARGE USE | B121: Distribution Volumetric Rate | D121: $/kW | E121: 1.0546 | K121: 4_P_VC_1
A122: LARGE USE | B122: Low Voltage Service Rate | D122: $/kW | E122: 0.3036 | K122: 4_P_LVrate
A123: LARGE USE | B123: Rate Rider for Tax Change (2015) - effective until April 29, 2016 | D123: $/kW | E123: -0.0045 | K123: 4_P_VC_Rate_Rider_kW_1
A124: LARGE USE | B124: Rate Rider for Disposition of Deferral/Variance Accounts (2015) - effective until April 30, 2016 | D124: $/kW | E124: 0.0212 | K124: 4_P_VC_DEFVAR_kW_1
A125: LARGE USE | B125: Rate Rider for Disposition of Global Adjustment Account (2015) - effective until April 30, 2016 Applicable only for Non RPP Customers | D125: $/kW | E125: 4.6929 | K125: 4_P_VC_GA_Rate_Rider_kW_1
A126: LARGE USE | B126: Rate Rider for Recovery of Lost Revenue Adjustment Mechanism Variance Account (LRAMVA) (2015) - effective until April 30, 2016 | D126: $/kW | E126: 0.0051 | K126: 4_P_VC_Rate_Rider_kW_3
A127: LARGE USE | B127: Retail Transmission Rate - Network Service Rate | D127: $/kW | E127: 3.266890229 | K127: 4_P_RTSR_Network
A128: LARGE USE | B128: Retail Transmission Rate - Line and Transformation Connection Service Rate | D128: $/kW | E128: 2.438393967 | K128: 4_P_RTSR_Connection
A129: LARGE USE
A130: LARGE USE | B130: MONTHLY RATES AND CHARGES - Regulatory Component
A131: LARGE USE
A132: LARGE USE | B132: Wholesale Market Service Rate | D132: $/kWh | E132: 0.0044 | K132: 4_P_WMSR
A133: LARGE USE | B133: Rural or Remote Electricity Rate Protection Charge (RRRP) | D133: $/kWh | E133: 0.0013 | K133: 4_P_RRPC
A134: LARGE USE | B134: Standard Supply Service - Administrative Charge (if applicable) | D134: $ | E134: 0.25 | K134: 4_P_SSS
B136: UNMETERED SCATTERED LOAD SERVICE CLASSIFICATION
B138: This classification refers to an account taking electricity at 750 volts or less whose monthly average peak demand is less than, or is forecast to be less than, 50 kW and the consumption is unmetered. Such connections include cable TV power packs, bus shelters, telephone booths, traffic lights, railway crossings, etc. The customer will provide detailed manufacturer information/documentation with regard to electrical demand/consumption of the proposed unmetered load. Further servicing details are available in the distributor's Conditons of Service. | L138: =ROUND(LEN(B138), -2) / 100 -> 6
B140: APPLICATION
B142: The application of these rates and charges shall be in accordance with the Licence of the Distributor and any Code or Order of the Board, and amendments thereto as approved by the Board, which may be applicable to the administration of this schedule. | L142: =ROUND(LEN(B142), -2) / 100 -> 3
B144: No rates and charges for the distribution of electricity and charges to meet the costs of any work or service done or furnished for the purpose of the distribution of electricity shall be made except as permitted by this schedule, unless required by the Distributor's Licence or a Code or Order of the Board, and amendments thereto as approved by the Board, or as specified herein. | L144: =ROUND(LEN(B144), -2) / 100 -> 4
B146: Unless specifically noted, this schedule does not contain any charges for the electricity commodity, be it under the Regulated Price Plan, a contract with a retailer or the wholesale market price, as applicable. In addition, the charges in the MONTHLY RATES AND CHARGES - Regulatory Component of this schedule do not apply to a customer that is an embedded wholesale market participant. | L146: =ROUND(LEN(B146), -2) / 100 -> 4
B148: It should be noted that this schedule does not list any changes, assessments or credits that are required by law to be invoiced by a distributor and that are not subject to Board approval, such as the Debt Retirement Charge, the Global Adjustment, the Ontario Clean Energy Benefit and the HST. | L148: =ROUND(LEN(B148), -2) / 100 -> 3
B150: MONTHLY RATES AND CHARGES - Delivery Component
A152: UNMETERED SCATTERED LOAD | B152: Service Charge (per customer) | D152: $ | E152: 11.56 | K152: 5_P_MSC
A153: UNMETERED SCATTERED LOAD | B153: Distribution Volumetric Rate | D153: $/kWh | E153: 0.0141 | K153: 5_P_VC_1
A154: UNMETERED SCATTERED LOAD | B154: Low Voltage Service Rate | D154: $/kWh | E154: 0.0007 | K154: 5_P_LVrate
A155: UNMETERED SCATTERED LOAD | B155: Rate Rider for Disposition of Global Adjustment Account (2015) - effective until April 30, 2016 Applicable only for Non RPP Customers | D155: $/kWh | E155: 0.0092 | K155: 5_P_VC_GA_Rate_Rider_kWh_1
A156: UNMETERED SCATTERED LOAD | B156: Retail Transmission Rate - Network Service Rate | D156: $/kWh | E156: 0.006893385397 | K156: 5_P_RTSR_Network
A157: UNMETERED SCATTERED LOAD | B157: Retail Transmission Rate - Line and Transformation Connection Service Rate | D157: $/kWh | E157: 0.005130711512 | K157: 5_P_RTSR_Connection
A158: UNMETERED SCATTERED LOAD
A159: UNMETERED SCATTERED LOAD | B159: MONTHLY RATES AND CHARGES - Regulatory Component
A160: UNMETERED SCATTERED LOAD
A161: UNMETERED SCATTERED LOAD | B161: Wholesale Market Service Rate | D161: $/kWh | E161: 0.0044 | K161: 5_P_WMSR
A162: UNMETERED SCATTERED LOAD | B162: Rural or Remote Electricity Rate Protection Charge (RRRP) | D162: $/kWh | E162: 0.0013 | K162: 5_P_RRPC
A163: UNMETERED SCATTERED LOAD | B163: Standard Supply Service - Administrative Charge (if applicable) | D163: $ | E163: 0.25 | K163: 5_P_SSS
B165: STANDBY POWER - APPROVED ON AN INTERIM BASIS SERVICE CLASSIFICATION
B167: This classification refers to an account that has Load Displacement Generation and requires Kingston Hydro Corporation to provide back-up service. Further servicing details are available in the distributors's Conditions of Service. | L167: =ROUND(LEN(B167), -2) / 100 -> 2
B169: APPLICATION
B171: The application of these rates and charges shall be in accordance with the Licence of the Distributor and any Code or Order of the Board, and amendments thereto as approved by the Board, which may be applicable to the administration of this schedule. | L171: =ROUND(LEN(B171), -2) / 100 -> 3
B173: No rates and charges for the distribution of electricity and charges to meet the costs of any work or service done or furnished for the purpose of the distribution of electricity shall be made except as permitted by this schedule, unless required by the Distributor's Licence or a Code or Order of the Board, and amendments thereto as approved by the Board, or as specified herein. | L173: =ROUND(LEN(B173), -2) / 100 -> 4
B175: Unless specifically noted, this schedule does not contain any charges for the electricity commodity, be it under the Regulated Price Plan, a contract with a retailer or the wholesale market price, as applicable. In addition, the charges in the MONTHLY RATES AND CHARGES - Regulatory Component of this schedule do not apply to a customer that is an embedded wholesale market participant. | L175: =ROUND(LEN(B175), -2) / 100 -> 4
B177: It should be noted that this schedule does not list any changes, assessments or credits that are required by law to be invoiced by a distributor and that are not subject to Board approval, such as the Debt Retirement Charge, the Global Adjustment, the Ontario Clean Energy Benefit and the HST. | L177: =ROUND(LEN(B177), -2) / 100 -> 3
B179: MONTHLY RATES AND CHARGES - Delivery Component
A181: STANDBY POWER - APPROVED ON AN INTERIM BASIS | B181: Standby Charge - for a month where standby power is not provided, the charge is based on the applicable General Service 50 to 4,999 kW or Large Use Distribution Volumetric Charge applied to the contracted amount (e.g. Nameplate rating of generating facility). | E181: 0 | K181: 6_P_MSC
A182: STANDBY POWER - APPROVED ON AN INTERIM BASIS
A183: STANDBY POWER - APPROVED ON AN INTERIM BASIS | B183: MONTHLY RATES AND CHARGES - Regulatory Component
A184: STANDBY POWER - APPROVED ON AN INTERIM BASIS
A185: STANDBY POWER - APPROVED ON AN INTERIM BASIS | B185: Wholesale Market Service Rate | D185: $/kWh | E185: 0.0044 | K185: 6_P_WMSR
A186: STANDBY POWER - APPROVED ON AN INTERIM BASIS | B186: Rural or Remote Electricity Rate Protection Charge (RRRP) | D186: $/kWh | E186: 0.0013 | K186: 6_P_RRPC
A187: STANDBY POWER - APPROVED ON AN INTERIM BASIS | B187: Standard Supply Service - Administrative Charge (if applicable) | D187: $ | E187: 0.25 | K187: 6_P_SSS
B189: STREET LIGHTING SERVICE CLASSIFICATION
B191: This classification refers to an account for roadway lighting with a Municipality, Regional Municipality, Ministry of Transportation and private roadway lighting operation, controlled by photo cells. The consumption for these customers will be based on the calculated connected load times the required lighting times established in the approved OEB street lighting load shape template. Further servicing details are available in the distributor's Conditions of Service. | L191: =ROUND(LEN(B191), -2) / 100 -> 5
B193: APPLICATION
B195: The application of these rates and charges shall be in accordance with the Licence of the Distributor and any Code or Order of the Board, and amendments thereto as approved by the Board, which may be applicable to the administration of this schedule. | L195: =ROUND(LEN(B195), -2) / 100 -> 3
B197: No rates and charges for the distribution of electricity and charges to meet the costs of any work or service done or furnished for the purpose of the distribution of electricity shall be made except as permitted by this schedule, unless required by the Distributor's Licence or a Code or Order of the Board, and amendments thereto as approved by the Board, or as specified herein. | L197: =ROUND(LEN(B197), -2) / 100 -> 4
B199: Unless specifically noted, this schedule does not contain any charges for the electricity commodity, be it under the Regulated Price Plan, a contract with a retailer or the wholesale market price, as applicable. In addition, the charges in the MONTHLY RATES AND CHARGES - Regulatory Component of this schedule do not apply to a customer that is an embedded wholesale market participant. | L199: =ROUND(LEN(B199), -2) / 100 -> 4
B201: It should be noted that this schedule does not list any changes, assessments or credits that are required by law to be invoiced by a distributor and that are not subject to Board approval, such as the Debt Retirement Charge, the Global Adjustment, the Ontario Clean Energy Benefit and the HST. | L201: =ROUND(LEN(B201), -2) / 100 -> 3
B203: MONTHLY RATES AND CHARGES - Delivery Component
A205: STREET LIGHTING | B205: Service Charge (per connection) | D205: $ | E205: 1.02 | K205: 7_P_MSC
A206: STREET LIGHTING | B206: Distribution Volumetric Rate | D206: $/kW | E206: 4.6796 | K206: 7_P_VC_1
A207: STREET LIGHTING | B207: Low Voltage Service Rate | D207: $/kW | E207: 0.182 | K207: 7_P_LVrate
A208: STREET LIGHTING | B208: Rate Rider for Tax Change (2015) - effective until April 29, 2016 | D208: $/kW | E208: -0.0278 | K208: 7_P_VC_Rate_Rider_kW_1
A209: STREET LIGHTING | B209: Rate Rider for Disposition of Deferral/Variance Accounts (2015) - effective until April 30, 2016 | D209: $/kW | E209: -0.0106 | K209: 7_P_VC_DEFVAR_kW_1
A210: STREET LIGHTING | B210: Rate Rider for Disposition of Global Adjustment Account (2015) - effective until April 30, 2016 Applicable only for Non RPP Customers | D210: $/kW | E210: 3.2629 | K210: 7_P_VC_GA_Rate_Rider_kW_1
A211: STREET LIGHTING | B211: Retail Transmission Rate - Network Service Rate | D211: $/kW | E211: 1.958391643 | K211: 7_P_RTSR_Network
A212: STREET LIGHTING | B212: Retail Transmission Rate - Line and Transformation Connection Service Rate | D212: $/kW | E212: 1.461599781 | K212: 7_P_RTSR_Connection
A213: STREET LIGHTING
A214: STREET LIGHTING | B214: MONTHLY RATES AND CHARGES - Regulatory Component
A215: STREET LIGHTING
A216: STREET LIGHTING | B216: Wholesale Market Service Rate | D216: $/kWh | E216: 0.0044 | K216: 7_P_WMSR
A217: STREET LIGHTING | B217: Rural or Remote Electricity Rate Protection Charge (RRRP) | D217: $/kWh | E217: 0.0013 | K217: 7_P_RRPC
A218: STREET LIGHTING | B218: Standard Supply Service - Administrative Charge (if applicable) | D218: $ | E218: 0.25 | K218: 7_P_SSS
B220: MICROFIT SERVICE CLASSIFICATION
B222: This classification applies to an electricity generation facility contracted under the Ontario Power Authority's microFIT program and connected to the distributor's distribution system. Further servicing details are available in the distributor's Conditions of Service. | L222: =ROUND(LEN(B222), -2) / 100 -> 3
B224: APPLICATION
B226: The application of these rates and charges shall be in accordance with the Licence of the Distributor and any Code or Order of the Board, and amendments thereto as approved by the Board, which may be applicable to the administration of this schedule. | L226: =ROUND(LEN(B226), -2) / 100 -> 3
B228: No rates and charges for the distribution of electricity and charges to meet the costs of any work or service done or furnished for the purpose of the distribution of electricity shall be made except as permitted by this schedule, unless required by the Distributor's Licence or a Code or Order of the Board, and amendments thereto as approved by the Board, or as specified herein. | L228: =ROUND(LEN(B228), -2) / 100 -> 4
B230: Unless specifically noted, this schedule does not contain any charges for the electricity commodity, be it under the Regulated Price Plan, a contract with a retailer or the wholesale market price, as applicable. | L230: =ROUND(LEN(B230), -2) / 100 -> 2
B232: It should be noted that this schedule does not list any changes, assessments or credits that are required by law to be invoiced by a distributor and that are not subject to Board approval, such as the Debt Retirement Charge, the Global Adjustment, the Ontario Clean Energy Benefit and the HST. | L232: =ROUND(LEN(B232), -2) / 100 -> 3
B234: MONTHLY RATES AND CHARGES - Delivery Component
A236: MICROFIT | B236: Service Charge | D236: $ | E236: 5.4 | K236: 8_P_MSC
A237: MICROFIT
B238: ALLOWANCES
A239: MICROFIT
B240: Transformer Allowance for Ownership - per kW of billing demand/month | D240: $/kW | E240: -0.6
B241: Primary Metering Allowance for transformer losses – applied to measured demand and energy | D241: % | E241: -1
B243: SPECIFIC SERVICE CHARGES
B245: The application of these rates and charges shall be in accordance with the Licence of the Distributor and any Code or Order of the Board, and amendments thereto as approved by the Board, which may be applicable to the administration of this schedule.
B247: No charges to meet the costs of any work or service done or furnished for the purpose of the distribution of electricity shall be made except as permitted by this schedule, unless required by the Distributor’s Licence or a Code or Order of the Board, and amendments thereto as approved by the Board, or as specified herein.
B249: It should be noted that this schedule does not list any charges, assessments, or credits that are required by law to be invoiced by a distributor and that are not subject to Board approval, such as the Debt Retirement Charge, the Global Adjustment, the Ontario Clean Energy Benefit and the HST.
B251: Customer Administration
B252: Arrears certificate | D252: $ | E252: 15
B253: Statement of Account | D253: $ | E253: 15
B254: Request for other billing information | D254: $ | E254: 15
B255: Account History | D255: $ | E255: 15
B256: Returned cheque (plus bank charges) | D256: $ | E256: 15
B257: Legal letter charge | D257: $ | E257: 15
B258: Account set up charge/change of occupancy charge (plus credit agency costs if applicable) | D258: $ | E258: 15
B259: Special meter reads | D259: $ | E259: 30
B260: Meter dispute charge plus Measurement Canada fees (if meter found correct) | D260: $ | E260: 30
B263: Non-Payment of Account
B264: Late Payment – per month | D264: % | E264: 1.5
B265: Late Payment – per annum | D265: % | E265: 19.56
B266: Disconnect/Reconnect at meter – during regular hours | D266: $ | E266: 65
B267: Disconnect/Reconnect at meter – after regular hours | D267: $ | E267: 185
B268: Disconnect/Reconnect at pole – during regular hours | D268: $ | E268: 185
B269: Disconnect/Reconnect at pole – after regular hours | D269: $ | E269: 415
B270: Install/Remove load control device – during regular hours | D270: $ | E270: 65
B271: Install/Remove load control device – after regular hours | D271: $ | E271: 185
B272: Specific Charge for Access to the Power Poles - $/pole/year | D272: $ | E272: 22.35
B273: Layout fees | D273: $ | E273: 200
B276: RETAIL SERVICE CHARGES (if applicable)
B278: The application of these rates and charges shall be in accordance with the Licence of the Distributor and any Code or Order of the Board, and amendments thereto as approved by the Board, which may be applicable to the administration of this schedule.
B280: No rates and charges for the distribution of electricity and charges to meet the costs of any work or service done or furnished for the purpose of the distribution of electricity shall be made except as permitted by this schedule, unless required by the Distributor’s Licence or a Code or Order of the Board, and amendments thereto as approved by the Board, or as specified herein.
B282: Unless specifically noted, this schedule does not contain any charges for the electricity commodity, be it under the Regulated Price Plan, a contract with a retailer or the wholesale market price, as applicable.
B284: It should be noted that this schedule does not list any charges, assessments, or credits that are required by law to be invoiced by a distributor and that are not subject to Board approval, such as the Debt Retirement Charge, the Global Adjustment, the Ontario Clean Energy Benefit and the HST.
B286: Retail Service Charges refer to services provided by a distributor to retailers or customers related to the supply of competitive electricity.
B288: One-time charge, per retailer, to establish the service agreement between the distributor and the retailer | D288: $ | E288: 100
... 18 more rows

Sheet 14. Bill Impacts (hidden)
Z1: =MATCH(A13, '3. Rate Class Selection'!B19:B40,0) -> 1 | AA1: =VLOOKUP(A13, lists!AO:AP,2,0) -> kWh
A11: Choose a Rate Class from the drop-down menu below and click UPDATE. For Street Lighting and USL classes, please ensure that the number of customers is manually entered into cells B30 and B31. Click the UPDATE button to refresh the sheet.
A13: RESIDENTIAL | F13: =IF(ISERROR(SEARCH("MicroFit",A13,1))=FALSE,"Bill impact presentation for this class does not exist.", "") -> 
A15: Consumption | B15: =730*D15*B17 -> 3650000 | C15: kWh | D15: 10000 | E15: =IF(AA1 = "kWh", "", "kW") -> 
A16: RPP Tier One | B16: 600 | C16: kWh | E16: 1
A17: Load Factor | B17: 0.5
A18: Loss Factor | B18: 1
B21: CURRENT ESTIMATED BILL | E21: PROPOSED ESTIMATED BILL
B22: Volume | C22: Current Rate ($) | D22: Current Charge ($) | E22: Volume | F22: Proposed Rate ($) | G22: Proposed Charge ($) | I22: Change ($) | J22: Change (%) | K22: % of Total RPP Bill | L22: % of Total TOU Bill
A23: Energy First Tier (kWh) | B23: 3650000 | C23: 0.075 | D23: =B23*C23 -> 273750 | E23: =B23 -> 3650000 | F23: =C23 -> 0.075 | G23: =E23*F23 -> 273750 | I23: =G23-D23 -> 0 | J23: =I23/D23 -> 0 | K23: =G23/G48 -> 0.8646078577
A24: Energy Second Tier (kWh) | B24: 0 | C24: 0.088 | D24: =B24*C24 -> 0 | E24: =B24 -> 0 | F24: =C24 -> 0.088 | G24: =E24*F24 -> 0 | I24: =G24-D24 -> 0 | J24: 0 | K24: =G24/G48 -> 0
A26: TOU - Off Peak | B26: =0.64*$B$15*$B$18 -> 2336000 | C26: 0.065 | D26: =C26*B26 -> 151840 | E26: =B26 -> 2336000 | F26: =C26 -> 0.065 | G26: =F26*E26 -> 151840 | I26: =G26-D26 -> 0 | J26: =I26/D26 -> 0 | L26: =G26/G54 -> 0.449726096
A27: TOU - Mid Peak | B27: =0.18*$B$15*$B$18 -> 657000 | C27: 0.1 | D27: =C27*B27 -> 65700 | E27: =B27 -> 657000 | F27: =C27 -> 0.1 | G27: =F27*E27 -> 65700 | H27: =G27*F27 -> 6570 | I27: =G27-D27 -> 0 | J27: =I27/D27 -> 0 | L27: =G27/G54 -> 0.1945930223
A28: TOU - On Peak | B28: =0.18*$B$15*$B$18 -> 657000 | C28: 0.117 | D28: 76869 | F28: =C28 -> 0.117 | G28: =F28*E28 -> 0 | H28: =G28*F28 -> 0 | J28: =I28/D28 -> 0 | L28: =G28/G54 -> 0
A30: Service Charge | B30: 1 | D30: 0 | G30: =F30*E30 -> 0 | H30: 0 | J30: 0 | K30: 0 | L30: 0
A31: Service Charge Rate Rider(s) | B31: 1 | C31: 0 | D31: 0 | F31: 0 | G31: 0 | H31: 0 | J31: 0 | K31: 0 | L31: 0
A32: Distribution Volumetric Rate | B32: 10000 | D32: 0 | E32: =B32 -> 10000 | G32: 0 | H32: 0 | I32: =G32-D32 -> 0 | J32: 0 | K32: 0 | L32: 0
A33: Low Voltage Volumetric Rate | B33: 10000 | D33: 0 | G33: 0 | H33: 0 | J33: 0 | K33: 0 | L33: 0
A34: Distribution Volumetric Rate Rider(s) | B34: 10000 | C34: 0 | D34: 0 | F34: 1.2025 | G34: 0 | H34: 0 | J34: 0 | K34: =G34/G48 -> 0 | L34: =G34/G54 -> 0
A35: Total: Distribution | D35: =ROUND(SUM(D30:D34),2) -> 0 | G35: =ROUND(SUM(G30:G34),2) -> 0 | J35: 0 | K35: =G35/G48 -> 0 | L35: =G35/G54 -> 0
A36: Total: Retail Transmission
A37: Sub-Total: Delivery (Distribution and Retail Transmission) | D37: =SUM(D36,D35) -> 0 | G37: =SUM(G36,G35) -> 0 | J37: 0 | K37: =G37/G48 -> 0 | L37: =G37/G54 -> 0
A38: Wholesale Market Service Rate | B38: 3650000 | C38: 0 | D38: =B38*C38 -> 0 | F38: =C38 -> 0 | G38: =E38*F38 -> 0 | J38: 0 | K38: 0 | L38: 0
A39: Rural Rate Protection Charge | B39: 3650000 | C39: 0 | D39: =B39*C39 -> 0 | E39: 3650000 | F39: 0 | G39: =E39*F39 -> 0 | I39: =G39-D39 -> 0 | J39: 0 | K39: 0 | L39: 0
A40: Standard Supply Service – Administration Charge (if applicable) | B40: 1 | C40: 0 | D40: =B40*C40 -> 0 | E40: 1 | F40: 0 | G40: =E40*F40 -> 0 | I40: =G40-D40 -> 0 | J40: 0 | K40: 0 | L40: 0
A41: Sub-Total: Regulatory | D41: =SUM(D38:D40) -> 0 | G41: =SUM(G38:H40) -> 0 | I41: =G41-D41 -> 0 | J41: 0 | K41: 0 | L41: 0
A42: Debt Retirement Charge (DRC) | B42: 3650000 | C42: 0.007 | D42: =B42*C42 -> 25550 | E42: =B42 -> 3650000 | F42: =C42 -> 0.007 | G42: =E42*F42 -> 25550 | I42: =G42-D42 -> 0 | J42: =I42/D42 -> 0 | K42: =G42/G48 -> 0.08069673339 | L42: =G42/G54 -> 0.07567506422
A44: Total Bill on RPP (before taxes) | D44: 299300 | G44: 311325 | I44: =G44-D44 -> 12025 | J44: =I44/D44 -> 0.04017707985 | K44: =G44/G48 -> 0.9832841691
A45: HST | C45: 0.13 | D45: =C45*D44 -> 38909 | F45: =C45 -> 0.13 | G45: =F45*G44 -> 40472.25 | I45: =G45-D45 -> 1563.25 | J45: =I45/D45 -> 0.04017707985 | K45: =G45/G48 -> 0.127826942
A46: Total Bill (including HST) | D46: =D45+D44 -> 338209 | G46: =G45+G44 -> 351797.25 | I46: =G46-D46 -> 13588.25 | J46: =I46/D46 -> 0.04017707985 | K46: =G46/G48 -> 1.111111111
A47: Ontario Clean Energy Benefit (OCEB) | C47: -0.1 | D47: =-0.1*D46 -> -33820.9 | F47: =C47 -> -0.1 | G47: =-0.1*G46 -> -35179.725 | I47: =G47-D47 -> -1358.825 | J47: =I47/D47 -> 0.04017707985 | K47: =G47/G48 -> -0.1111111111
A48: Total Bill on RPP (including OCEB) | D48: =D46+D47 -> 304388.1 | G48: =G46+G47 -> 316617.525 | I48: =G48-D48 -> 12229.425 | J48: =I48/D48 -> 0.04017707985 | K48: =G48/G48 -> 1
A50: Total Bill on TOU (before taxes) | D50: 319959 | G50: 331984 | I50: =G50-D50 -> 12025 | J50: =I50/D50 -> 0.03758294031 | L50: =G50/G54 -> 0.9832841691
A51: HST | C51: 0.13 | D51: =C51*D50 -> 41594.67 | F51: =C51 -> 0.13 | G51: =F51*G50 -> 43157.92 | I51: =G51-D51 -> 1563.25 | J51: =I51/D51 -> 0.03758294031 | L51: =G51/G54 -> 0.127826942
A52: Total Bill (including HST) | D52: =D51+D50 -> 361553.67 | G52: =G51+G50 -> 375141.92 | I52: =G52-D52 -> 13588.25 | J52: =I52/D52 -> 0.03758294031 | L52: =G52/G54 -> 1.111111111
A53: Ontario Clean Energy Benefit (OCEB) | C53: -0.1 | D53: =-0.1*D52 -> -36155.367 | F53: =C53 -> -0.1 | G53: =-0.1*G52 -> -37514.192 | I53: =G53-D53 -> -1358.825 | J53: =I53/D53 -> 0.03758294031 | L53: =G53/G54 -> -0.1111111111
A54: Total Bill on TOU (including OCEB) | D54: =D52+D53 -> 325398.303 | G54: =G52+G53 -> 337627.728 | I54: =G54-D54 -> 12229.425 | J54: =I54/D54 -> 0.03758294031 | L54: =G54/G54 -> 1
A57: Applicants must provide bill impacts for residential at 800 kWh and GS<50kW at 2000 kWh. In addition, their filing should cover the range that is relevant to their service territory, class by class. A general guideline of consumption levels follows: Residential (kWh) - 100, 250, 500, 800, 1000, 1500, 2000 GS<50kW (kWh) - 1000, 2000, 5000, 10000, 15000 GS>50kW (kW) 100, 500, 1000 Large User - range appropriate for utility Street/Sentinel Lighting Classes and USL - 150 kWh and 1 kW, range appropriate for utility.

Sheet 28. Bill Impacts
S1: 1 | Z1: =MATCH(C14, '3. Rate Class Selection'!B19:B40,0) -> 1 | AA1: =VLOOKUP(C14, lists!AO:AP,2,0) -> kWh
A14: Rate Class | C14: RESIDENTIAL
A16: Loss Factor | E16: 1.0344
A18: Consumption | C18: kWh | E18: 800
A20: If Billed on a kW basis:
A21: Demand | C21: kW
E25: Current Board-Approved | I25: Proposed | M25: Impact
E26: Rate | F26: Volume | G26: Charge | I26: Rate | J26: Volume | K26: Charge | M26: $ Change | N26: % Change
E27: ($) | G27: ($) | I27: ($) | K27: ($)
A28: Monthly Service Charge | E28: 12.4 | F28: 1 | G28: =F28*E28 -> 12.4 | I28: 12.57 | J28: 1 | K28: =J28*I28 -> 12.57 | M28: =K28-G28 -> 0.17 | N28: =IF((G28)=0,"",(M28/G28)) -> 0.01370967742
A29: Distribution Volumetric Rate | E29: 0.0152 | F29: 5250000 | G29: =F29*E29 -> 79800 | I29: 0.0154 | J29: =F29 -> 5250000 | K29: =J29*I29 -> 80850 | M29: 1050 | N29: 0.01315789474
A30: Fixed Rate Riders | E30: 2.63 | F30: 1 | G30: =F30*E30 -> 2.63 | I30: 2.63 | J30: 1 | K30: =J30*I30 -> 2.63 | M30: 0 | N30: 0
A31: Volumetric Rate Riders | E31: 0.0006 | F31: 5250000 | G31: =F31*E31 -> 3150 | I31: 0 | J31: =F31 -> 5250000 | K31: =J31*I31 -> 0 | M31: -3150 | N31: -1
A32: Sub-Total A (excluding pass through) | G32: =SUM(G28:G31) -> 82965.03 | K32: =SUM(K28:K31) -> 80865.2 | M32: -2099.83 | N32: -0.02530982029
A33: Line Losses on Cost of Power | E33: =E45*0.64+E46*0.18+E47*0.18 -> 0.08392 | F33: =E18*(E16-1) -> 27.52 | G33: =E33*F33 -> 2.3094784 | I33: =I45*0.64+I46*0.18+I47*0.18 -> 0.08392 | J33: =F33 -> 27.52 | K33: =I33*J33 -> 2.3094784 | M33: 0 | N33: 0
A34: Total Deferral/Variance Account Rate Riders | E34: -0.0005 | F34: 5250000 | G34: =F34*E34 -> -2625 | I34: 0 | J34: =F34 -> 5250000 | K34: =J34*I34 -> 0 | M34: 2625 | N34: -1
A35: Low Voltage Service Charge | E35: 0.0007 | F35: 5250000 | G35: =F35*E35 -> 3675 | I35: 0.0007 | J35: =F35 -> 5250000 | K35: =J35*I35 -> 3675 | M35: 0 | N35: 0
A36: Smart Meter Entity Charge | E36: 0.79 | F36: 1 | G36: =F36*E36 -> 0.79 | I36: 0.79 | J36: =F36 -> 1 | K36: =J36*I36 -> 0.79 | M36: 0 | N36: 0
A37: Sub-Total B - Distribution (includes Sub-Total A) | G37: =SUM(G32:G36) -> 84018.12948 | K37: =SUM(K32:K36) -> 84543.29948 | M37: =K37-G37 -> 525.17 | N37: =IF((G37)=0,"",(M37/G37)) -> 0.006250674744
A38: RTSR - Network | E38: 0.0072 | F38: 5430600 | G38: =F38*E38 -> 39100.32 | I38: 0.0069 | J38: =F38 -> 5430600 | K38: =J38*I38 -> 37471.14 | M38: -1629.18 | N38: -0.04166666667
A39: RTSR - Connection and/or Line and Transformation Connection | E39: 0.0055 | F39: 5430600 | G39: =F39*E39 -> 29868.3 | I39: 0.0051 | J39: =F39 -> 5430600 | K39: =J39*I39 -> 27696.06 | M39: -2172.24 | N39: -0.07272727273
A40: Sub-Total C - Delivery (including Sub-Total B) | G40: =SUM(G37:G39) -> 152986.7495 | K40: =SUM(K37:K39) -> 149710.4995 | M40: -3276.25 | N40: -0.02141525335
A41: Wholesale Market Service Charge (WMSC) | E41: 0.0044 | F41: =E18*E16 -> 827.52 | G41: =F41*E41 -> 3.641088 | I41: 0.0044 | J41: =E18*E16 -> 827.52 | K41: =J41*I41 -> 3.641088 | M41: 0 | N41: 0
A42: Rural and Remote Rate Protection (RRRP) | E42: 0.0013 | F42: =E18*E16 -> 827.52 | G42: 1.075776 | I42: 0.0013 | J42: =E18*E16 -> 827.52 | K42: 1.075776 | M42: 0 | N42: 0
A43: Standard Supply Service Charge | E43: 0.25 | F43: 1 | G43: 0.25 | I43: 0.25 | J43: 1 | K43: 0.25 | M43: 0 | N43: 0
A44: Debt Retirement Charge (DRC) | E44: 0.007 | F44: =E18 -> 800 | G44: 5.6 | I44: 0.007 | J44: =E18 -> 800 | K44: 5.6 | M44: 0 | N44: 0
A45: TOU - Off Peak | E45: 0.067 | F45: 3360000 | G45: 225120 | I45: 0.067 | J45: =F45 -> 3360000 | K45: 225120 | M45: 0 | N45: 0
A46: TOU - Mid Peak | E46: 0.104 | F46: 945000 | G46: 98280 | I46: 0.104 | J46: =F46 -> 945000 | K46: 98280 | M46: 0 | N46: 0
A47: TOU - On Peak | E47: 0.124 | F47: 945000 | G47: 117180 | I47: 0.124 | J47: =F47 -> 945000 | K47: 117180 | M47: 0 | N47: 0
A49: Total Bill on TOU (before Taxes) | G49: =SUM(G40:G44,G45:G47) -> 593577.3163 | K49: =SUM(K40:K44,K45:K47) -> 590301.0663 | M49: =K49-G49 -> -3276.25 | N49: =IF((G49)=0,"",(M49/G49)) -> -0.005519500004
A50: HST | E50: 0.13 | G50: =G49*E50 -> 77165.05112 | I50: 0.13 | K50: =K49*I50 -> 76739.13862 | M50: -425.9125 | N50: -0.005519500004
A51: Total Bill (including HST) | G51: =G49+G50 -> 670742.3675 | K51: =K49+K50 -> 667040.205 | M51: -3702.1625 | N51: -0.005519500004
A52: Ontario Clean Energy Benefit 1 | G52: =ROUND(-G51*10%,2) -> -67074.24 | K52: =ROUND(-K51*10%,2) -> -66704.02 | M52: 370.22 | N52: -0.005519555645
A53: Total Bill on TOU (including OCEB) | G53: =G51+G52 -> 603668.1275 | K53: =K51+K52 -> 600336.185 | M53: -3331.9425 | N53: -0.005519493822
A58: Note: For distributors who have a majority of customers on Tiered pricing, please provide a separate bill impact for such customers.

Sheet lists (hidden)
A1: DISTRIBUTED GENERATION [DGEN] | B1: Embedded Distributor | C1: =COUNTA(B1:B17) -> 4 | I1: A Standby Service Charge will be applied for a month where standby power is not provided. The applicable rate is the approved Distribution Volumetric Rate of the applicable service class and is applied to gross metered demand or contracted amount, whichever is greater. A monthly administration charge of $200, for simple metering arrangements, or $500, for complex metering arrangements, will also be applied. | L1: Loss Factors | N1: Units | O1: Units1 | P1: Units2 | Z1: Account History | AA1: Account set up charge/change of occupancy charge (plus credit agency costs if applicable) | AB1: Total Loss Factor – Embedded Distributor – Hydro One Networks Inc. | AL1: Algoma Power Inc. | AM1: Algoma Power Inc. | AO1: DISTRIBUTED GENERATION [DGEN] | AP1: kW | AT1: Sub-Total: Delivery (Distribution and Retail Transmission)
A2: EMBEDDED DISTRIBUTOR | B2: General Service 3,000 to 4,999 kW | I2: Distribution Volumetric Rate | L2: Total Loss Factor – Primary Metered Customer | N2: $ | O2: $/kWh | P2: $ | Z2: Account set up charge/change of occupancy charge | AA2: Administrative Billing Charge | AB2: Total Loss Factor – Primary Metered Customer | AL2: Atikokan Hydro Inc. | AM2: Atikokan Hydro Inc. | AO2: EMBEDDED DISTRIBUTOR | AP2: kW | AT2: Wholesale Market Service Rate | AW2: =AU2*AV2 -> 0 | AX2: =AU2 -> 0 | AY2: 0 | AZ2: =AX2*AY2 -> 0 | BB2: =AZ2-AW2 -> 0 | BC2: =BB2/AW2 -> 
A3: EMBEDDED DISTRIBUTOR | B3: General Service 1,000 to 4,999 kW | I3: Distribution Volumetric Rate - $/kW of contracted amount | L3: Total Loss Factor – Primary Metered Customer < 5,000 kW | N3: $/kWh | O3: $/kW | P3: % | W3: MSC | Z3: Account set up charge/change of occupancy charge (plus credit agency costs if applicable – Residential) | AA3: Bell Canada Pole Rentals | AB3: Total Loss Factor – Primary Metered Customer < 5,000 kW | AL3: Bluewater Power Distribution Corporation | AM3: Bluewater Power Distribution Corporation | AO3: EMBEDDED DISTRIBUTOR | AP3: kW | AT3: Rural or Remote Electricity Rate Protection Charge (RRRP) | AW3: =AU3*AV3 -> 0 | AX3: 0 | AY3: 0 | AZ3: =AX3*AY3 -> 0 | BB3: =AZ3-AW3 -> 0 | BC3: =BB3/AW3 -> 
A4: FARMS - SINGLE PHASE ENERGY-BILLED [F1] | B4: General Service Equal To Or Greater Than 1,500 kW - Interval Metered | I4: Distribution Wheeling Service Rate | L4: Total Loss Factor – Primary Metered Customer > 5,000 kW | N4: $/kW | O4: $/kVA | W4: SM_Rate_Adder | Z4: Account set up charge/change of occupancy charge (plus credit agency costs if applicable) | AA4: Clearance Pole Attachment charge $/pole/year | AB4: Total Loss Factor – Primary Metered Customer > 5,000 kW | AL4: Brant County Power Inc. | AM4: Brant County Power Inc. | AO4: FARMS - SINGLE PHASE ENERGY-BILLED [F1] | AP4: kWh | AT4: Standard Supply Service – Administration Charge (if applicable) | AW4: =AU4*AV4 -> 0 | AX4: 0 | AY4: 0 | AZ4: =AX4*AY4 -> 0 | BB4: =AZ4-AW4 -> 0 | BC4: =BB4/AW4 -> 
A5: FARMS - THREE PHASE ENERGY-BILLED [F3] | I5: Electricity Rate | L5: Total Loss Factor – Secondary Metered Customer | N5: $/kVA | W5: MSC_Rate_Rider_ | Z5: Arrears certificate | AA5: Collection of account charge – no disconnection | AB5: Total Loss Factor – Secondary Metered Customer | AL5: Brantford Power Inc. | AM5: Brantford Power Inc. | AO5: FARMS - THREE PHASE ENERGY-BILLED [F3] | AP5: kWh | AT5: Sub-Total: Regulatory | AW5: =SUM(AW2:AW4) -> 0 | AZ5: =SUM(AZ2:BA4) -> 0 | BB5: =AZ5-AW5 -> 0 | BC5: =BB5/AW5 -> 
A6: GENERAL SERVICE - COMMERCIAL | I6: Electricity Rate - All Additional kWh | L6: Total Loss Factor – Secondary Metered Customer < 5,000 kW | W6: VC | Z6: Arrears certificate (credit reference) | AA6: Collection of account charge – no disconnection – after regular hours | AB6: Total Loss Factor – Secondary Metered Customer < 5,000 kW | AL6: Burlington Hydro Inc. | AM6: Burlington Hydro Inc. | AO6: GENERAL SERVICE - COMMERCIAL | AP6: kW | AT6: Debt Retirement Charge (DRC) | AW6: =AU6*AV6 -> 0 | AX6: =AU6 -> 0 | AY6: =AV6 -> 0 | AZ6: =AX6*AY6 -> 0 | BB6: =AZ6-AW6 -> 0 | BC6: =BB6/AW6 -> 
A7: GENERAL SERVICE - INSTITUTIONAL | I7: Electricity Rate - First 250 kWh | AL7: Cambridge and North Dumfries Hydro Inc. | AM7: Cambridge and North Dumfries Hydro Inc. | AO7: GENERAL SERVICE - INSTITUTIONAL | AP7: kW
A8: GENERAL SERVICE 1,000 TO 2,999 KW | I8: Electricity Rate -All Additional kWh | L8: Total Loss Factor – Secondary Metered Customer > 5,000 kW | W8: VC_Rate_Rider_ | Z8: Charge to certify cheque | AA8: Collection of account charge – no disconnection - during regular business hours | AB8: Total Loss Factor – Secondary Metered Customer > 5,000 kW | AL8: Canadian Niagara Power Inc. | AM8: Canadian Niagara Power Inc. | AO8: GENERAL SERVICE 1,000 TO 2,999 KW | AP8: kW | AT8: Total Bill on RPP (before taxes) | BB8: =AZ8-AW8 -> 0
A9: GENERAL SERVICE 1,000 TO 4,999 KW | I9: Electricity Rate First 1,000 kWh | L9: Distribution Loss Factor - Secondary Metered Customer < 5,000 kW | W9: VC_GA_Rate_Rider_kW_ | Z9: Collection of Account Charge – No Disconnection | AA9: Collection of account charge – no disconnection – during regular hours | AL9: Centre Wellington Hydro Ltd. | AM9: Centre Wellington Hydro Ltd. | AO9: GENERAL SERVICE 1,000 TO 4,999 KW | AP9: kW | AT9: HST | AW9: =AV9*AW8 -> 0 | AY9: =AV9 -> 0 | AZ9: =AY9*AZ8 -> 0 | BB9: =AZ9-AW9 -> 0 | BC9: =BB9/AW9 -> 
A10: GENERAL SERVICE 1,000 TO 4,999 KW - INTERVAL METERS | I10: Electricity Rate First 25,000 kWh | L10: Distribution Loss Factor - Secondary Metered Customer > 5,000 kW | W10: VC_LV_Rate | Z10: Credit Card Convenience Charge | AA10: Collection/Disconnection/Load Limiter/Reconnection – if in Community | AL10: Chapleau Public Utilities Corporation | AM10: Chapleau Public Utilities Corporation | AO10: GENERAL SERVICE 1,000 TO 4,999 KW - INTERVAL METERS | AP10: kW | AT10: Total Bill (including HST) | AW10: =AW9+AW8 -> 0 | AZ10: =AZ9+AZ8 -> 0 | BB10: =AZ10-AW10 -> 0 | BC10: =BB10/AW10 -> 
A11: GENERAL SERVICE 1,000 TO 4,999 KW (CO-GENERATION) | I11: Electricity Rate First 6,000 kWh | L11: Distribution Loss Factor - Primary Metered Customer < 5,000 kW | W11: RTSR_Network | Z11: Credit check (plus credit agency costs) | AA11: Credit Card Convenience Charge | AL11: Collus PowerStream Corporation | AM11: Collus PowerStream Corporation | AO11: GENERAL SERVICE 1,000 TO 4,999 KW (CO-GENERATION) | AP11: kW | AT11: Ontario Clean Energy Benefit (OCEB) | AW11: =-0.1*AW10 -> 0 | AY11: =AV11 -> 0 | AZ11: =-0.1*AZ10 -> 0 | BB11: =AZ11-AW11 -> 0 | BC11: =BB11/AW11 -> 
A12: GENERAL SERVICE 1,500 TO 4,999 KW | I12: Electricity Rate Next 1,500 kWh | L12: Distribution Loss Factor - Primary Metered Customer > 5,000 kW | W12: RTSR_Connection | Z12: Credit reference Letter | AA12: Disconnect/Reconnect at meter – after regular hours | AL12: Cooperative Hydro Embrun Inc. | AM12: Cooperative Hydro Embrun Inc. | AO12: GENERAL SERVICE 1,500 TO 4,999 KW | AP12: kW | AT12: Total Bill on RPP (including OCEB) | AW12: =AW10+AW11 -> 0 | AZ12: =AZ10+AZ11 -> 0 | BB12: =AZ12-AW12 -> 0 | BC12: =BB12/AW12 -> 
A13: GENERAL SERVICE 2,500 TO 4,999 KW | I13: General Service 1,500 to 4,999 kW customer | AL13: E.L.K. Energy Inc. | AM13: E.L.K. Energy Inc. | AO13: GENERAL SERVICE 2,500 TO 4,999 KW | AP13: kW
A14: GENERAL SERVICE 3,000 TO 4,999 KW | I14: General Service 50 to 1,499 kW customer | L14: Total Loss Factor - Embedded Distributor | W14: RTSR_Network_Interval | Z14: Credit reference/credit check (plus credit agency costs – General Service) | AA14: Disconnect/Reconnect at meter – during regular hours | AL14: Enersource Hydro Mississauga Inc. | AM14: Enersource Hydro Mississauga Inc. | AO14: GENERAL SERVICE 3,000 TO 4,999 KW | AP14: kW | AT14: Total Bill on TOU (before taxes) | BB14: =AZ14-AW14 -> 0
A15: GENERAL SERVICE 3,000 TO 4,999 KW - INTERMEDIATE USE | I15: General Service Large Use customer | L15: Total Loss Factor – Embedded Distributor – Hydro One Networks Inc. | W15: RTSR_Connection_Interval | Z15: Credit Reference/credit check (plus credit agency costs) | AA15: Disconnect/Reconnect at pole – after regular hours | AL15: Entegrus Powerlines Inc. | AM15: Entegrus Powerlines Inc. | AO15: GENERAL SERVICE 3,000 TO 4,999 KW - INTERMEDIATE USE | AP15: kW | AT15: HST | AW15: =AV15*AW14 -> 0 | AY15: =AV15 -> 0 | AZ15: =AY15*AZ14 -> 0 | BB15: =AZ15-AW15 -> 0 | BC15: =BB15/AW15 -> 
A16: GENERAL SERVICE 3,000 TO 4,999 KW - INTERVAL METERED | I16: Green Energy Act Initiatives Funding Adder - effective until the date of the next cost of service-based rate order | W16: RTSR_Network_Interval_GR1000kW | Z16: Dispute Test – Commercial self contained -- MC | AA16: Disconnect/Reconnect at pole – during regular hours | AL16: Entegrus Powerlines Inc. - Dutton Service Area | AM16: Entegrus Powerlines Inc. - Dutton Service Area | AO16: GENERAL SERVICE 3,000 TO 4,999 KW - INTERVAL METERED | AP16: kW | AT16: Total Bill (including HST) | AW16: =AW15+AW14 -> 0 | AZ16: =AZ15+AZ14 -> 0 | BB16: =AZ16-AW16 -> 0 | BC16: =BB16/AW16 -> 
A17: GENERAL SERVICE 3,000 TO 4,999 KW - TIME OF USE | I17: Green Energy Act Plan Funding Adder | W17: RTSR_Connection_Interval_GR1000kW | Z17: Dispute Test – Commercial TT -- MC | AA17: Disconnect/Reconnect Charge – At Meter – After Hours | AL17: Entegrus Powerlines Inc. - former Chatham-Kent Hydro Service Area | AM17: Entegrus Powerlines Inc. - former Chatham-Kent Hydro Service Area | AO17: GENERAL SERVICE 3,000 TO 4,999 KW - TIME OF USE | AP17: kW | AT17: Ontario Clean Energy Benefit (OCEB) | AW17: =-0.1*AW16 -> 0 | AY17: =AV17 -> 0 | AZ17: =-0.1*AZ16 -> 0 | BB17: =AZ17-AW17 -> 0 | BC17: =BB17/AW17 -> 
A18: GENERAL SERVICE 50 TO 1,000 KW | I18: Green Energy Act Plan Funding Adder - effective April 1, 2013 until March 31, 2014 | W18: RTSR_Line_Connection | Z18: Dispute Test – Residential | AA18: Disconnect/Reconnect Charge – At Meter – During Regular Hours | AL18: Entegrus Powerlines Inc. - Newbury Service Area | AM18: Entegrus Powerlines Inc. - Newbury Service Area | AO18: GENERAL SERVICE 50 TO 1,000 KW | AP18: kW | AT18: Total Bill on TOU (including OCEB) | AW18: =AW16+AW17 -> 0 | AZ18: =AZ16+AZ17 -> 0 | BB18: =AZ18-AW18 -> 0 | BC18: =BB18/AW18 -> 
A19: GENERAL SERVICE 50 TO 1,000 KW - INTERVAL METERS | I19: Green Energy Act Plan Funding Adder - effective April 1, 2014 until March 31, 2015 | W19: RTSR_Transformer_Connection | Z19: Duplicate Invoices for previous billing | AA19: Disconnect/Reconnect Charge – At Pole – After Hours | AL19: Entegrus Powerlines Inc. - Strathroy, Mount Brydges and Parkhill Service Areas | AM19: Entegrus Powerlines Inc. - Strathroy, Mount Brydges and Parkhill Service Areas | AO19: GENERAL SERVICE 50 TO 1,000 KW - INTERVAL METERS | AP19: kW
A20: GENERAL SERVICE 50 TO 1,000 KW - NON INTERVAL METERS | I20: ICM Rate Rider (2014) - in effect until the effective date of the next cost of service rates | W20: WMSR | Z20: Easement Letter | AA20: Disconnect/Reconnect Charge – At Pole – During Regular Hours | AL20: ENWIN Utilities Ltd. | AM20: ENWIN Utilities Ltd. | AO20: GENERAL SERVICE 50 TO 1,000 KW - NON INTERVAL METERS | AP20: kW
A21: GENERAL SERVICE 50 TO 1,499 KW | I21: Low Voltage Service Charge | W21: RRRP | Z21: Income Tax Letter | AA21: Disconnect/Reconnect Charges for non payment of account - At Meter After Hours | AL21: Erie Thames Powerlines Corporation | AM21: Erie Thames Powerlines Corporation | AO21: GENERAL SERVICE 50 TO 1,499 KW | AP21: kW
A22: GENERAL SERVICE 50 TO 1,499 KW - INTERVAL METERED | I22: Low Voltage Service Rate | W22: SPC | Z22: Interval Meter Interrogation | AA22: Disconnect/Reconnect charges for non payment of account – at meter after regular hours | AL22: Espanola Regional Hydro Distribution Corporation | AM22: Espanola Regional Hydro Distribution Corporation | AO22: GENERAL SERVICE 50 TO 1,499 KW - INTERVAL METERED | AP22: kW
A23: GENERAL SERVICE 50 TO 2,499 KW | I23: Low Voltage Volumetric Rate | W23: DRC | Z23: Interval meter request change | AA23: Disconnect/Reconnect Charges for non payment of account - At Meter During Regular Hours | AL23: Essex Powerlines Corporation | AM23: Essex Powerlines Corporation | AO23: GENERAL SERVICE 50 TO 2,499 KW | AP23: kW
A24: GENERAL SERVICE 50 TO 2,999 KW | I24: LRAM Rate Rider - Effective Until April 30, 2015 | W24: SSS | Z24: Legal letter | AA24: Disconnect/Reconnect charges for non payment of account – at meter during regular hours | AL24: Festival Hydro Inc. | AM24: Festival Hydro Inc. | AO24: GENERAL SERVICE 50 TO 2,999 KW | AP24: kW
A25: GENERAL SERVICE 50 TO 2,999 KW - INTERVAL METERED | I25: Minimum Distribution Charge - per KW of maximum billing demand in the previous 11 months | W25: SFLF | Z25: Legal letter charge | AA25: Disconnect/Reconnect charges for non payment of account – at pole after regular hours | AL25: Fort Frances Power Corporation | AM25: Fort Frances Power Corporation | AO25: GENERAL SERVICE 50 TO 2,999 KW - INTERVAL METERED | AP25: kW
A26: GENERAL SERVICE 50 TO 2,999 KW - TIME OF USE | B26: January | I26: Monthly Distribution Wheeling Service Rate - Dedicated LV Line | W26: DLF_Secondary_LT_5000kW | Z26: Meter dispute charge plus Measurement Canada fees (if meter found correct) | AA26: Disconnect/Reconnect charges for non payment of account – at pole during regular hours | AL26: Greater Sudbury Hydro Inc. | AM26: Greater Sudbury Hydro Inc. | AO26: GENERAL SERVICE 50 TO 2,999 KW - TIME OF USE | AP26: kW
A27: GENERAL SERVICE 50 TO 4,999 KW | B27: February | I27: Monthly Distribution Wheeling Service Rate - Hydro One Networks | W27: DLF_Secondary_GT_5000kW | Z27: Notification charge | AA27: Disconnect/Reconnection for >300 volts - after regular hours | AL27: Grimsby Power Inc. | AM27: Grimsby Power Inc. | AO27: GENERAL SERVICE 50 TO 4,999 KW | AP27: kW
A28: GENERAL SERVICE 50 TO 4,999 KW - INTERVAL METERED | B28: March | I28: Monthly Distribution Wheeling Service Rate - Shared LV Line | W28: DLF_Primary_LT_5000kW | Z28: Pulling Post Dated Cheques | AA28: Disconnect/Reconnection for >300 volts - during regular hours | AL28: Guelph Hydro Electric Systems Inc. | AM28: Guelph Hydro Electric Systems Inc. | AO28: GENERAL SERVICE 50 TO 4,999 KW - INTERVAL METERED | AP28: kW
A29: GENERAL SERVICE 50 TO 4,999 KW - TIME OF USE | B29: April | I29: Monthly Distribution Wheeling Service Rate - Waterloo North Hydro | W29: DLF_Primary_GT_5000kW | Z29: Request for other billing information | AA29: Disposal of Concrete Poles | AL29: Haldimand County Hydro Inc. | AM29: Haldimand County Hydro Inc. | AO29: GENERAL SERVICE 50 TO 4,999 KW - TIME OF USE | AP29: kW
A30: GENERAL SERVICE 50 TO 4,999 KW (COGENERATION) | B30: May | I30: Rate Rider for Application of Tax Change - effective until April 30, 2015 | W30: TLF_Secondary_LT_5000kW | Z30: Returned cheque (plus bank charges) | AA30: Dispute Test – Commercial TT -- MC | AL30: Halton Hills Hydro Inc. | AM30: Halton Hills Hydro Inc. | AO30: GENERAL SERVICE 50 TO 4,999 KW (COGENERATION) | AP30: kW
A31: GENERAL SERVICE 50 TO 4,999 KW (FORMERLY TIME OF USE) | B31: June | I31: Rate Rider for Application of Tax Change - effective until December 31, 2014 | W31: TLF_Secondary_GT_5000kW | Z31: Returned cheque charge (plus bank charges) | AA31: Install/Remove load control device – after regular hours | AL31: Hearst Power Distribution Company Limited | AM31: Hearst Power Distribution Company Limited | AO31: GENERAL SERVICE 50 TO 4,999 KW (FORMERLY TIME OF USE) | AP31: kW
A32: GENERAL SERVICE 50 TO 499 KW | B32: July | I32: Rate Rider for Application of Tax Change (2014) - effective until April 30, 2015 | W32: TLF_Primary_LT_5000kW | Z32: Special Billing Service (aggregation) | AA32: Install/Remove load control device – during regular hours | AL32: Horizon Utilities Corporation | AM32: Horizon Utilities Corporation | AO32: GENERAL SERVICE 50 TO 499 KW | AP32: kW
A33: GENERAL SERVICE 50 TO 699 KW | B33: August | I33: Rate Rider for Application of Tax Change (per connection) - effective until April 30, 2015 | W33: TLF_Primary_GT_5000kW | Z33: Special Billing Service (sub-metering charge per meter) | AA33: Interval Meter Interrogation | AL33: Hydro 2000 Inc. | AM33: Hydro 2000 Inc. | AO33: GENERAL SERVICE 50 TO 699 KW | AP33: kW
A34: GENERAL SERVICE 50 TO 999 KW | B34: September | I34: Rate Rider for CGAAP Accounting Changes (2013) - effective until April 30, 2017 | W34: TLF_EmbeddedDistributor | Z34: Special meter reads | AA34: Interval Meter Load Management Tool Charge $/month | AL34: Hydro Hawkesbury Inc. | AM34: Hydro Hawkesbury Inc. | AO34: GENERAL SERVICE 50 TO 999 KW | AP34: kW
A35: GENERAL SERVICE 50 TO 999 KW - INTERVAL METERED | B35: October | I35: Rate Rider for Deferral/Variance Account (2012) - effective unitl April 30, 2016 | Z35: Statement of Account | AA35: Interval meter request change | AL35: Hydro One Brampton Networks Inc. | AM35: Hydro One Brampton Networks Inc. | AO35: GENERAL SERVICE 50 TO 999 KW - INTERVAL METERED | AP35: kW
A36: GENERAL SERVICE 500 TO 4,999 KW | B36: November | I36: Rate Rider for Deferral/Variance Account Disposition – effective until April 30, 2015 | Z36: Unprocessed Payment Charge (plus bank charges) | AA36: Late Payment – per annum | AL36: Hydro One Networks Inc. | AM36: Hydro One Networks Inc. | AO36: GENERAL SERVICE 500 TO 4,999 KW | AP36: kW
A37: GENERAL SERVICE 700 TO 4,999 KW | B37: December | I37: Rate Rider for Deferral/Variance Account Disposition (2012) - effective until April 30, 2016 | AA37: Late Payment – per month | AL37: Hydro Ottawa Limited | AM37: Hydro Ottawa Limited | AO37: GENERAL SERVICE 700 TO 4,999 KW | AP37: kW
A38: GENERAL SERVICE DEMAND BILLED (50 KW AND ABOVE) [GSD] | I38: Rate Rider for Deferral/Variance Account Disposition (2013) - effective until April 30, 2014 | AA38: Layout fees | AL38: Innisfil Hydro Distribution Systems Limited | AM38: Innisfil Hydro Distribution Systems Limited | AO38: GENERAL SERVICE DEMAND BILLED (50 KW AND ABOVE) [GSD] | AP38: kW
A39: GENERAL SERVICE ENERGY BILLED (LESS THAN 50 KW) [GSE-METERED] | I39: Rate Rider for Deferral/Variance Account Disposition (2014) - effective until April 28, 2016 | AA39: Meter dispute charge plus Measurement Canada fees (if meter found correct) | AL39: Kenora Hydro Electric Corporation Ltd. | AM39: Kenora Hydro Electric Corporation Ltd. | AO39: GENERAL SERVICE ENERGY BILLED (LESS THAN 50 KW) [GSE-METERED] | AP39: kWh
A40: GENERAL SERVICE ENERGY BILLED (LESS THAN TO 50 KW) [GSE-UNMETERED] | I40: Rate Rider for Deferral/Variance Account Disposition (2014) - effective until April 30, 2015 | AA40: Meter Interrogation Charge | AL40: Kingston Hydro Corporation | AM40: Kingston Hydro Corporation | AO40: GENERAL SERVICE ENERGY BILLED (LESS THAN TO 50 KW) [GSE-UNMETERED] | AP40: kWh
A41: GENERAL SERVICE EQUAL TO OR GREATER THAN 1,500 KW | I41: Rate Rider for Deferral/Variance Account Disposition (2014) - effective until December 31, 2014 | AA41: Missed Service Appointment | AL41: Kitchener-Wilmot Hydro Inc. | AM41: Kitchener-Wilmot Hydro Inc. | AO41: GENERAL SERVICE EQUAL TO OR GREATER THAN 1,500 KW | AP41: kW
A42: GENERAL SERVICE EQUAL TO OR GREATER THAN 1,500 KW - INTERVAL METERED | I42: Rate Rider for Deferral/Variance Account Disposition (2014) - effective until December 31, 2015 | AA42: Norfolk Pole Rentals – Billed | AL42: Lakefront Utilities Inc. | AM42: Lakefront Utilities Inc. | AO42: GENERAL SERVICE EQUAL TO OR GREATER THAN 1,500 KW - INTERVAL METERED | AP42: kW
A43: GENERAL SERVICE GREATER THAN 1,000 KW | I43: Rate Rider for Deferral/Variance Account Dispositon (2012) - effective until April 30, 2016 | AA43: Optional Interval/TOU Meter charge $/month | AL43: Lakeland Power Distribution Ltd. | AM43: Lakeland Power Distribution Ltd. | AO43: GENERAL SERVICE GREATER THAN 1,000 KW | AP43: kW
A44: GENERAL SERVICE GREATER THAN 50 kW - WMP | I44: Rate Rider for Disposition of Accounting Changes Under CGAAP Account 1576 - effective until April 30, 2016 | AA44: Overtime Locate | AL44: London Hydro Inc. | AM44: London Hydro Inc. | AO44: GENERAL SERVICE GREATER THAN 50 kW - WMP | AP44: kW
A45: GENERAL SERVICE INTERMEDIATE 1,000 TO 4,999 KW | I45: Rate Rider for Disposition of Deferral/Variance Accounts (2010) - effective until December 31, 2014 | AA45: Owner Requested Disconnection/Reconnection – after regular hours | AL45: Midland Power Utility Corporation | AM45: Midland Power Utility Corporation | AO45: GENERAL SERVICE INTERMEDIATE 1,000 TO 4,999 KW | AP45: kW
A46: GENERAL SERVICE INTERMEDIATE RATE CLASS 1,000 TO 4,999 KW (FORMERLY GENERAL SERVICE > 50 KW CUSTOMERS) | I46: Rate Rider for Disposition of Deferral/Variance Accounts (2011) - effective until April 30, 2015 | AA46: Owner Requested Disconnection/Reconnection – during regular hours | AL46: Milton Hydro Distribution Inc. | AM46: Milton Hydro Distribution Inc. | AO46: GENERAL SERVICE INTERMEDIATE RATE CLASS 1,000 TO 4,999 KW (FORMERLY GENERAL SERVICE > 50 KW CUSTOMERS) | AP46: kW
A47: GENERAL SERVICE INTERMEDIATE RATE CLASS 1,000 TO 4,999 KW (FORMERLY LARGE USE CUSTOMERS) | I47: Rate Rider for Disposition of Deferral/Variance Accounts (2011) - effective until April 30, 2016 | AA47: Returned cheque (plus bank charges) | AL47: Newmarket - Tay Power Distribution Ltd. | AM47: Newmarket - Tay Power Distribution Ltd. | AO47: GENERAL SERVICE INTERMEDIATE RATE CLASS 1,000 TO 4,999 KW (FORMERLY LARGE USE CUSTOMERS) | AP47: kW
A48: GENERAL SERVICE LESS THAN 50 KW | I48: Rate Rider for Disposition of Deferral/Variance Accounts (2012) - effective until April 30, 2014 | AA48: Rural system expansion / line connection fee | AL48: Niagara Peninsula Energy Inc. | AM48: Niagara Peninsula Energy Inc. | AO48: GENERAL SERVICE LESS THAN 50 KW | AP48: kWh
A49: GENERAL SERVICE LESS THAN 50 KW - SINGLE PHASE ENERGY-BILLED [G1] | I49: Rate Rider for Disposition of Deferral/Variance Accounts (2012) - effective until April 30, 2015 | AA49: Same Day Open Trench | AL49: Niagara-on-the-Lake Hydro Inc. | AM49: Niagara-on-the-Lake Hydro Inc. | AO49: GENERAL SERVICE LESS THAN 50 KW - SINGLE PHASE ENERGY-BILLED [G1] | AP49: kWh
A50: GENERAL SERVICE LESS THAN 50 KW - THREE PHASE ENERGY-BILLED [G3] | I50: Rate Rider for Disposition of Deferral/Variance Accounts (2012) - effective until April 30, 2016 | AA50: Scheduled Day Open Trench | AL50: Norfolk Power Distribution Inc. | AM50: Norfolk Power Distribution Inc. | AO50: GENERAL SERVICE LESS THAN 50 KW - THREE PHASE ENERGY-BILLED [G3] | AP50: kWh
A51: GENERAL SERVICE LESS THAN 50 KW - TRANSMISSION CLASS ENERGY-BILLED [T] | I51: Rate Rider for Disposition of Deferral/Variance Accounts (2012) - effective until August 31, 2014 | AA51: Service call – after regular hours | AL51: North Bay Hydro Distribution Limited | AM51: North Bay Hydro Distribution Limited | AO51: GENERAL SERVICE LESS THAN 50 KW - TRANSMISSION CLASS ENERGY-BILLED [T] | AP51: kWh
A52: GENERAL SERVICE LESS THAN 50 KW - URBAN ENERGY-BILLED [UG] | I52: Rate Rider for Disposition of Deferral/Variance Accounts (2012) - effective until December 31, 2015 | AA52: Service call – customer owned equipment | AL52: Northern Ontario Wires Inc. | AM52: Northern Ontario Wires Inc. | AO52: GENERAL SERVICE LESS THAN 50 KW - URBAN ENERGY-BILLED [UG] | AP52: kWh
A53: GENERAL SERVICE SINGLE PHASE - G1 | I53: Rate Rider for Disposition of Deferral/Variance Accounts (2012) - effective until December 31, 2016 Applicable only in the former service area of Clinton Power | AA53: Service Call – Customer-owned Equipment – After Regular Hours | AL53: Oakville Hydro Electricity Distribution Inc. | AM53: Oakville Hydro Electricity Distribution Inc. | AO53: GENERAL SERVICE SINGLE PHASE - G1 | AP53: kW
A54: GENERAL SERVICE THREE PHASE - G3 | I54: Rate Rider for Disposition of Deferral/Variance Accounts (2012) – effective until December 31, 2016 Applicable only in the former service area of Clinton Power | AA54: Service Call – Customer-owned Equipment – During Regular Hours | AL54: Orangeville Hydro Limited | AM54: Orangeville Hydro Limited | AO54: GENERAL SERVICE THREE PHASE - G3 | AP54: kW
A55: INTERMEDIATE USERS | I55: Rate Rider for Disposition of Deferral/Variance Accounts (2012) - effective until January 31, 2014 | AA55: Service Charge for onsite interrogation of interval meter due to customer phone line failure - required weekly until line repaired $ 6 | AL55: Orillia Power Distribution Corporation | AM55: Orillia Power Distribution Corporation | AO55: INTERMEDIATE USERS | AP55: kW
A56: INTERMEDIATE WITH SELF GENERATION | I56: Rate Rider for Disposition of Deferral/Variance Accounts (2012) - effective until June 30, 2014 | AA56: Service Layout - Commercial | AL56: Oshawa PUC Networks Inc. | AM56: Oshawa PUC Networks Inc. | AO56: INTERMEDIATE WITH SELF GENERATION | AP56: kW
A57: LARGE USE | I57: Rate Rider for Disposition of Deferral/Variance Accounts (2013) - Applicable only to Wholesale Market Participants - effective until April 30, 2015 | AA57: Service Layout - ResidentiaI | AL57: Ottawa River Power Corporation | AM57: Ottawa River Power Corporation | AO57: LARGE USE | AP57: kW
A58: LARGE USE - 3TS | I58: Rate Rider for Disposition of Deferral/Variance Accounts (2013) - effective until April 30, 2014 | AA58: Special Billing Service (sub-metering charge per meter) | AL58: Parry Sound Power Corporation | AM58: Parry Sound Power Corporation | AO58: LARGE USE - 3TS | AP58: kW
A59: LARGE USE - FORD ANNEX | I59: Rate Rider for Disposition of Deferral/Variance Accounts (2013) - effective until April 30, 2015 | AA59: Special meter reads | AL59: Peterborough Distribution Incorporated | AM59: Peterborough Distribution Incorporated | AO59: LARGE USE - FORD ANNEX | AP59: kW
A60: LARGE USE - REGULAR | I60: Rate Rider for Disposition of Deferral/Variance Accounts (2013) - effective until April 30, 2015 - not applicable to Wholesale Market Participants | AA60: Specific Charge for Access to the Power Poles - $/pole/year | AL60: PowerStream Inc. | AM60: PowerStream Inc. | AO60: LARGE USE - REGULAR | AP60: kW
A61: LARGE USE > 5000 KW | I61: Rate Rider for Disposition of Deferral/Variance Accounts (2013) - effective until April 30, 2017 | AA61: Specific Charge for Bell Canada Access to the Power Poles – per pole/year | AL61: PUC Distribution Inc. | AM61: PUC Distribution Inc. | AO61: LARGE USE > 5000 KW | AP61: kW
A62: microFIT | I62: Rate Rider for Disposition of Deferral/Variance Accounts (2013) - effective until August 31, 2014 | AA62: Switching for company maintenance – Charge based on Time and Materials | AL62: Renfrew Hydro Inc. | AM62: Renfrew Hydro Inc. | AO62: microFIT | AP62: $
A63: RESIDENTIAL | I63: Rate Rider for Disposition of Deferral/Variance Accounts (2013) - effective until December 31, 2014 | AA63: Temporary Service – Install & remove – overhead – no transformer | AL63: Rideau St. Lawrence Distribution Inc. | AM63: Rideau St. Lawrence Distribution Inc. | AO63: RESIDENTIAL | AP63: kWh
A64: RESIDENTIAL - HENSALL | I64: Rate Rider for Disposition of Deferral/Variance Accounts (2013) - effective until May 31, 2014 | AA64: Temporary Service – Install & remove – overhead – with transformer | AL64: Sioux Lookout Hydro Inc. | AM64: Sioux Lookout Hydro Inc. | AO64: RESIDENTIAL - HENSALL | AP64: kWh
A65: RESIDENTIAL - HIGH DENSITY [R1] | I65: Rate Rider for Disposition of Deferral/Variance Accounts (2014) - effective until December 31, 2015 | AA65: Temporary Service – Install & remove – underground – no transformer | AL65: St. Thomas Energy Inc. | AM65: St. Thomas Energy Inc. | AO65: RESIDENTIAL - HIGH DENSITY [R1] | AP65: kWh
A66: RESIDENTIAL - LOW DENSITY [R2] | I66: Rate Rider for Disposition of Deferred PILs Variance Account 1562 - effective until March 31, 2016 | AA66: Temporary service install & remove – overhead – no transformer | AL66: Thunder Bay Hydro Electricity Distribution Inc. | AM66: Thunder Bay Hydro Electricity Distribution Inc. | AO66: RESIDENTIAL - LOW DENSITY [R2] | AP66: kWh
A67: RESIDENTIAL - MEDIUM DENSITY [R1] | I67: Rate Rider for Disposition of Deferred PILs Variance Account 1562 (2012) - effective until April 30, 2015 | AA67: Temporary Service Install & Remove – Overhead – With Transformer | AL67: Tillsonburg Hydro Inc. | AM67: Tillsonburg Hydro Inc. | AO67: RESIDENTIAL - MEDIUM DENSITY [R1] | AP67: kWh
A68: RESIDENTIAL - NORMAL DENSITY [R2] | I68: Rate Rider for Disposition of Deferred PILs Variance Account 1562 (2012) - effective until April 30, 2016 | AA68: Temporary Service Install & Remove – Underground – No Transformer | AL68: Toronto Hydro-Electric System Limited | AM68: Toronto Hydro-Electric System Limited | AO68: RESIDENTIAL - NORMAL DENSITY [R2] | AP68: kWh
A69: RESIDENTIAL - TIME OF USE | I69: Rate Rider for Disposition of Deferred PILs Variance Account 1562 (2nd Installment - 2012) - effective until April 30, 2016 | AA69: Temporary service installation and removal – overhead – no transformer | AL69: Veridian Connections Inc. | AM69: Veridian Connections Inc. | AO69: RESIDENTIAL - TIME OF USE | AP69: kWh
A70: RESIDENTIAL - URBAN [UR] | I70: Rate Rider for Disposition of Deferred PILs Variance Account 1562 (per connection) (2012) - effective until April 30, 2015 | AA70: Temporary service installation and removal – overhead – with transformer | AL70: Wasaga Distribution Inc. | AM70: Wasaga Distribution Inc. | AO70: RESIDENTIAL - URBAN [UR] | AP70: kWh
A71: RESIDENTIAL REGULAR | I71: Rate Rider for Disposition of Deferred PILs Variance Account 1562 (per connection) (2012) - effective until April 30, 2016 | AA71: Temporary service installation and removal – underground – no transformer | AL71: Waterloo North Hydro Inc. | AM71: Waterloo North Hydro Inc. | AO71: RESIDENTIAL REGULAR | AP71: kWh
A72: RESIDENTIAL SUBURBAN | I72: Rate Rider for Disposition of Global Adjustment Sub-Account (2011) - effective until April 30, 2015 Applicable only for Non-RPP Customers | AL72: Welland Hydro-Electric System Corp. | AM72: Welland Hydro-Electric System Corp. | AO72: RESIDENTIAL SUBURBAN | AP72: kWh
A73: RESIDENTIAL SUBURBAN SEASONAL | I73: Rate Rider for Disposition of Global Adjustment Sub-Account (2011) - effective until April 30, 2016 Applicable only for Non-RPP Customers | AL73: Wellington North Power Inc. | AM73: Wellington North Power Inc. | AO73: RESIDENTIAL SUBURBAN SEASONAL | AP73: kWh
A74: RESIDENTIAL SUBURBAN YEAR ROUND | I74: Rate Rider for Disposition of Global Adjustment Sub-Account (2012) - effective until April 30, 2014 Applicable only for Non-RPP Customers | AL74: West Coast Huron Energy Inc. | AM74: West Coast Huron Energy Inc. | AO74: RESIDENTIAL SUBURBAN YEAR ROUND | AP74: kWh
A75: RESIDENTIAL URBAN | I75: Rate Rider for Disposition of Global Adjustment Sub-Account (2012) - effective until April 30, 2015 Applicable only for Non-RPP Customers | AL75: Westario Power Inc. | AM75: Westario Power Inc. | AO75: RESIDENTIAL URBAN | AP75: kWh
A76: RESIDENTIAL URBAN YEAR-ROUND | I76: Rate Rider for Disposition of Global Adjustment Sub-Account (2012) - effective until April 30, 2015 Applicatble only for Non-RPP Customers | AL76: Whitby Hydro Electric Corporation | AM76: Whitby Hydro Electric Corporation | AO76: RESIDENTIAL URBAN YEAR-ROUND | AP76: kWh
A77: SEASONAL RESIDENTIAL | I77: Rate Rider for Disposition of Global Adjustment Sub-Account (2012) - effective until April 30, 2016 Applicable only for Non-RPP Customers | AL77: Woodstock Hydro Services Inc. | AM77: Woodstock Hydro Services Inc. | AO77: SEASONAL RESIDENTIAL | AP77: kWh
A78: SEASONAL RESIDENTIAL - HIGH DENSITY [R3] | I78: Rate Rider for Disposition of Global Adjustment Sub-Account (2012) - effective until January 31, 2014. Applicable only for Non-RPP Customers | AO78: SEASONAL RESIDENTIAL - HIGH DENSITY [R3] | AP78: kWh
A79: SEASONAL RESIDENTIAL - NORMAL DENSITY [R4] | I79: Rate Rider for Disposition of Global Adjustment Sub-Account (2012) - effective until June 30, 2014 Applicable only for Non-RPP Customers | AO79: SEASONAL RESIDENTIAL - NORMAL DENSITY [R4] | AP79: kWh
A80: SENTINEL LIGHTING | I80: Rate Rider for Disposition of Global Adjustment Sub-Account (2012) Applicable only for Non-RPP Customers - effective until August 31, 2014 | AO80: SENTINEL LIGHTING | AP80: kW
A81: SMALL COMMERCIAL AND USL - PER CONNECTION | I81: Rate Rider for Disposition of Global Adjustment Sub-Account (2012) Applicable only to Non-RPP Customers - effective until August 31, 2014 | AO81: SMALL COMMERCIAL AND USL - PER CONNECTION | AP81: kWh
A82: SMALL COMMERCIAL AND USL - PER METER | I82: Rate Rider for Disposition of Global Adjustment Sub-Account (2013) - effective until April 30, 2014 Applicable only for Non-RPP Customers | AO82: SMALL COMMERCIAL AND USL - PER METER | AP82: kWh
A83: STANDARD A GENERAL SERVICE AIR ACCESS | I83: Rate Rider for Disposition of Global Adjustment Sub-Account (2013) - effective until April 30, 2015 Applicable only for Non-RPP Customers | AO83: STANDARD A GENERAL SERVICE AIR ACCESS | AP83: kWh
A84: STANDARD A GENERAL SERVICE ROAD/RAIL | I84: Rate Rider for Disposition of Global Adjustment Sub-Account (2013) - effective until April 30, 2015 Applicable only for Non-RPP Customers and excluding Wholesale Market Participants | AO84: STANDARD A GENERAL SERVICE ROAD/RAIL | AP84: kWh
A85: STANDARD A GRID CONNECTED | I85: Rate Rider for Disposition of Global Adjustment Sub-Account (2013) - effective until April 30, 2017 Applicable only for Non-RPP Customers | AO85: STANDARD A GRID CONNECTED | AP85: kWh
A86: STANDARD A RESIDENTIAL AIR ACCESS | I86: Rate Rider For Disposition of Global Adjustment Sub-Account (2013) - effective until August 31, 2014 Applicable only for Non-RPP Customers | AO86: STANDARD A RESIDENTIAL AIR ACCESS | AP86: kWh
A87: STANDARD A RESIDENTIAL ROAD/RAIL | I87: Rate Rider for Disposition of Global Adjustment Sub-Account (2013) - effective until December 31, 2014 Applicable only for Non-RPP Customers | AO87: STANDARD A RESIDENTIAL ROAD/RAIL | AP87: kWh
A88: STANDBY - GENERAL SERVICE 1,000 - 5,000 KW | I88: Rate Rider for Disposition of Global Adjustment Sub-Account (2013) - effective until May 31, 2014 Applicable only for Non-RPP Customers | AO88: STANDBY - GENERAL SERVICE 1,000 - 5,000 KW | AP88: kW
A89: STANDBY - GENERAL SERVICE 50 - 1,000 KW | I89: Rate Rider for Disposition of Global Adjustment Sub-Account (2014) - effective until December 31, 2014. Applicable only for Non-RPP - Class B Customers | AO89: STANDBY - GENERAL SERVICE 50 - 1,000 KW | AP89: kW
A90: STANDBY - LARGE USE | I90: Rate Rider for Disposition of Global Adjustment Sub-Account (2014) - effective until December 31, 2014. Applicable only for Non-RPP Customers | AO90: STANDBY - LARGE USE | AP90: kW
A91: STANDBY DISTRIBUTION SERVICE | I91: Rate Rider for Disposition of Global Adjustment Sub-Account (2014) - effective until December 31, 2014. Applicable only for Non-RPP Customers - Class A Customers | AO91: STANDBY DISTRIBUTION SERVICE | AP91: kW
A92: STANDBY POWER | I92: Rate Rider for Disposition of Global Adjustment Sub-Account (2014) - effective until December 31, 2014. Applicable only for Non-RPP Customers - Interval Metered | AO92: STANDBY POWER | AP92: kW
A93: STANDBY POWER - APPROVED ON AN INTERIM BASIS | I93: Rate Rider for Disposition of Global Adjustment Sub-Account (2014) - effective until December 31, 2014. Applicable only for Non-RPP Customers - Non Interval Metered | AO93: STANDBY POWER - APPROVED ON AN INTERIM BASIS | AP93: kW
A94: STANDBY POWER GENERAL SERVICE 1,500 TO 4,999 KW | I94: Rate Rider for Disposition of Global Adjustment Sub-Account (2014) - effective until December 31, 2015. Applicable only for Non-RPP Customers. | AO94: STANDBY POWER GENERAL SERVICE 1,500 TO 4,999 KW | AP94: kW
A95: STANDBY POWER GENERAL SERVICE 50 TO 1,499 KW | I95: Rate Rider for Disposition of Post Retirement Actuarial Gain - effective until March 31, 2025 | AO95: STANDBY POWER GENERAL SERVICE 50 TO 1,499 KW | AP95: kW
A96: STANDBY POWER GENERAL SERVICE LARGE USE | I96: Rate Rider for Disposition of Residual Hisotrical Smart Meter Costs - effective until April 30, 2015 | AO96: STANDBY POWER GENERAL SERVICE LARGE USE | AP96: kW
A97: STREET LIGHTING | I97: Rate Rider for Disposition of Residual Hisotrical Smart Meter Costs - effective until April 30, 2017 | AO97: STREET LIGHTING | AP97: kW
A98: SUB TRANSMISSION [ST] | I98: Rate Rider for Disposition of Residual Historical Smart Meter Costs - effective until April 30, 2014 | AO98: SUB TRANSMISSION [ST] | AP98: kW
A99: UNMETERED SCATTERED LOAD | I99: Rate Rider for Disposition of Residual Historical Smart Meter Costs - effective until April 30, 2016 | AO99: UNMETERED SCATTERED LOAD | AP99: kWh
A100: URBAN GENERAL SERVICE DEMAND BILLED (50 KW AND ABOVE) [UGD] | I100: Rate Rider for Disposition of Residual Historical Smart Meter Costs - effective until August 31, 2014 | AO100: URBAN GENERAL SERVICE DEMAND BILLED (50 KW AND ABOVE) [UGD] | AP100: kW
A101: URBAN GENERAL SERVICE ENERGY BILLED (LESS THAN 50 KW) [UGE] | I101: Rate Rider for Disposition of Residual Historical Smart Meter Costs - effective until August 31, 2015 | AO101: URBAN GENERAL SERVICE ENERGY BILLED (LESS THAN 50 KW) [UGE] | AP101: kWh
A102: WESTPORT SEWAGE TREATMENT PLANT | I102: Rate Rider for Disposition of Residual Historical Smart Meter Costs - effective until December 31, 2014 | AO102: WESTPORT SEWAGE TREATMENT PLANT | AP102: kW
A103: YEAR-ROUND RESIDENTIAL - R2 | I103: Rate Rider for Disposition of Residual Historical Smart Meter Costs – effective until December 31, 2014 | AO103: YEAR-ROUND RESIDENTIAL - R2 | AP103: kWh
I104: Rate Rider for Disposition of Residual Historical Smart Meter Costs - effective until December 31, 2015
I105: Rate Rider for Disposition of Residual Historical Smart Meter Costs - effective until December 31, 2016
I106: Rate Rider for Disposition of Residual Historical Smart Meter Costs - effective until October 31, 2014
I107: Rate Rider for Disposition of Residual Historical Smart Meter Costs - effective until September 30, 2014
I108: Rate Rider for Disposition of Residual Historical Smart Meter Costs - Non-Interval Metered - effective until April 30, 2014
I109: Rate Rider for Disposition of Residual Historical Smart Meter Costs 2 - in effect until the effective date of the next cost of service-based rate order
I110: Rate Rider for Disposition of Residual Historical Smart Meter Costs 3 - in effect until the effective date of the next cost of service-based rate order
I111: Rate Rider for Disposition of Residual Incremental Historical Smart Meter Costs - effective until August 31, 2015
I112: Rate Rider for Disposition of Stranded Meter costs - effective until April 30, 2015
I113: Rate Rider for Disposition of Stranded Meter Costs - effective until April 30, 2016
I114: Rate Rider for Disposition of Stranded Meter Costs - effective until April 30, 2017
I115: Rate Rider for Global Adjustment Sub Account Disposition - effective until April 30, 2016 Applicable only for Non RPP Customers
I116: Rate Rider for Global Adjustment Sub-Account Disposition (2014) - effective until April 28, 2016 Applicable only for Non-RPP Customers
I117: Rate Rider for Global Adjustment Sub-Account Disposition (2014) - effective until April 30, 2015 Applicable only for Non-RPP Customers
I118: Rate Rider for Global Adjustment Sub-Account Disposition (2014) - effective until December 30, 2015 Applicable only for Non-RPP Customers
I119: Rate Rider for Global Adjustment Sub-Account Disposition (2014) - effective until December 31, 2014 Applicable only for Non-RPP Customers
I120: Rate Rider for Global Adjustment Sub-Account Disposition (2014) - effective until December 31, 2015 Applicable only for Non-RPP Customers
I121: Rate Rider for Global Adjustment Sub-Account Disposition Applicable only for Non-RPP Customers - effective until April 30, 2015
I122: Rate Rider for Incremental Capital - Distribution Volumetric - effective until April 30, 2016
I123: Rate Rider for Incremental Capital - Service Charge - effective until April 30, 2016
I124: Rate Rider for Incremental Capital (2012) - effective until April 30, 2015
I125: Rate Rider for Lost Revenue Adjustment Mechanism Variance Account (LRAMVA) Recovery (2012 CDM Activities) - effective until April 30, 2015
I126: Rate Rider for Recover of Residual Historical Smart meter Costs - effective until June 30, 2014
I127: Rate Rider for Recovery of CGAAP/CWIP Differential - in effect until December 31, 2016
I128: Rate Rider for Recovery of Foregone Revenue - effective until April 30, 2015
I129: Rate Rider for Recovery of Forgone Revenue - effective until April 30, 2015
I130: Rate Rider for Recovery of Forgone Revenue - effective until December 31, 2014
I131: Rate Rider for Recovery of Green Energy Act related costs - effective until December 31, 2014
I132: Rate Rider for Recovery of Incremental Capital (2013) - in effect until the effective date of the next cost of service-based rate order
I133: Rate Rider for Recovery of Incremental Capital (2013) - in effect until the effective date of the next cost of service-based rate order
I134: Rate Rider for Recovery of Incremental Capital (2013) (per connection) - in effect until the effective date of the next cost of service-based rate order
I135: Rate Rider for Recovery of Incremental Capital (2013) (per connection)- in effect until the effective date of the next cost of service-based rate order
I136: Rate Rider for Recovery of Incremental Capital Costs
I137: Rate Rider for Recovery of Incremental Capital Costs - effective until April 30, 2015
I138: Rate Rider for Recovery of Incremental Capital Module Costs (2014) - in effect until the effective date of the next cost of service-based rate order
I139: Rate Rider for Recovery of Incremental Capital Module Costs (2014) - in effect until the effective date of the next cost of service-based rate order
I140: Rate Rider for Recovery of Lost Revenue Adjustment Mechanism ( LRAM)/Shared Savings Mechanism (SSM) (2012) - effective until August 31, 2014
I141: Rate Rider for Recovery of Lost Revenue Adjustment Mechanism (2013) - effective until December 31, 2014
I142: Rate Rider for Recovery of Lost Revenue Adjustment Mechanism (LRAM) - effective until April 30, 2016
I143: Rate Rider for Recovery of Lost Revenue Adjustment Mechanism (LRAM) (pre-2011 CDM Activities) - effective until April 30, 2015
I144: Rate Rider for Recovery of Lost Revenue Adjustment Mechanism (LRAM) (pre-2011 CDM Activities) (2013) - effective until April 30, 2015
I145: Rate Rider for Recovery of Lost Revenue Adjustment Mechanism (LRAM)/Shared Savings
I146: Rate Rider for Recovery of Lost Revenue Adjustment Mechanism (LRAM)/Shared Savings Mechanism (SSM) - effective until December 31, 2018 and applicable in the service area excluding the former service areas of Clinton Power and West Perth Power
I147: Rate Rider for Recovery of Lost Revenue Adjustment Mechanism (LRAM)/Shared Savings Mechanism (SSM) - effective until December 31, 2014 and applicable in the service area excluding the former service areas of Clinton Power and West Perth Power
I148: Rate Rider for Recovery of Lost Revenue Adjustment Mechanism (LRAM)/Shared Savings Mechanism (SSM) - effective until December 31, 2014 and applicable only in the former service area of Clinton Power
I149: Rate Rider for Recovery of Lost Revenue Adjustment Mechanism (LRAM)/Shared Savings Mechanism (SSM) - effective until December 31, 2014 and applicable only in the former service area of West Perth Power
I150: Rate Rider for Recovery of Lost Revenue Adjustment Mechanism (LRAM)/Shared Savings Mechanism (SSM) - effective until December 31, 2014 and applicable in the service area excluding the former service area of Clinton Power
I151: Rate Rider for Recovery of Lost Revenue Adjustment Mechanism (LRAM)/Shared Savings Mechanism (SSM) - effective until March 31, 2016
I152: Rate Rider for Recovery of Lost Revenue Adjustment Mechanism (LRAM)/Shared Savings Mechanism (SSM) (2012) - effective until August 31, 2014
I153: Rate Rider for Recovery of Lost Revenue Adjustment Mechanism (LRAM)/Shared Savings Mechanism (SSM) Recovery - effective until April 30, 2015
I154: Rate Rider for Recovery of Lost Revenue Adjustment Mechanism Variance Account (LRAMVA) (2014) - effective until April 30, 2015
I155: Rate Rider for Recovery of Residual Historical Smart Meter Costs - effective July 1, 2012 - April 30, 2016
I156: Rate Rider for Recovery of Smart Meter Incremental Revenue Requirement - effective until the date of the next cost of service-based rate order
I157: Rate Rider for Recovery of Smart Meter Incremental Revenue Requirement - effective until the effective date of the next cost of service-based rate order, or October 31, 2017, whichever occurs earlier
I158: Rate Rider for Recovery of Smart Meter Incremental Revenue Requirement - in effect until the effective date of the next cost of service-based rate order
I159: Rate Rider for Recovery of Smart Meter Incremental Revenue Requirement - Non-Interval Metered - in effect until the effective date of the next cost of service-based rate order
I160: Rate Rider for Recovery of Smart Meter Incremental Revenue Requirements - in effect until the effective date of the next cost of service application
I161: Rate Rider for Recovery of Smart Meter Stranded Assets - effective until April 30, 2016
I162: Rate Rider for Recovery of Storm Damage Costs - effective until August 31, 2017
I163: Rate Rider for Recovery of Stranded Assets - effective until April 30, 2016
I164: Rate Rider for Recovery of Stranded Meter Assets - effective July 1, 2012 - April 30, 2016
I165: Rate Rider for Recovery of Stranded Meter Assets – effective until April 30, 2015
I166: Rate Rider for Recovery of Stranded Meter Assets - effective until April 30, 2016
I167: Rate Rider for Recovery of Stranded Meter Assets - effective until April 30, 2017
I168: Rate Rider for Recovery of Stranded Meter Assets - effective until August 31, 2015
I169: Rate Rider for Recovery of Stranded Meter Assets - effective until August 31, 2017
I170: Rate Rider for Recovery of Stranded Meter Assets - effective until December 31, 2014
I171: Rate Rider for Recovery of Stranded Meter Assets - effective until December 31, 2015
I172: Rate Rider for Recovery of Stranded Meter Assets - effective until June 30, 2016
I173: Rate Rider for Recovery of Stranded Meter Assets - effective until March 31, 2016
I174: Rate Rider for Recovery of Stranded Meter Assets - effective until May 31, 2014
I175: Rate Rider for Reversal of Deferral/Variance Account Disposition (2011) - effective until April 30, 2015
I176: Rate Rider for Smart Meter Disposition - effective until April 30, 2016
I177: Rate Rider for Smart Meter Incremental Revenue Requirement - in effect until the effective date of the next cost of service-based rate order
I178: Rate Rider for Smart Metering Entity Charge - effective until October 31, 2018
I179: Rate Rider for Stranded Meter Cost Recovery - effective until April 30, 2017
I180: Rate Rider for Tax Change
I181: Rate Rider for Tax Change - effective until April 30, 2015
I182: Rate Rider for Tax Change (2014) - effective until April 30, 2015
I183: Retail Transmission Rate - Line and Transformation Connection Service Rate
I184: Retail Transmission Rate - Line and Transformation Connection Service Rate - (less than 1,000 kW)
I185: Retail Transmission Rate - Line and Transformation Connection Service Rate - Interval Metered
I186: Retail Transmission Rate - Line and Transformation Connection Service Rate - Interval Metered (1,000 to 4,999 kW)
I187: Retail Transmission Rate - Line and Transformation Connection Service Rate - Interval Metered (less than 1,000 kW)
I188: Retail Transmission Rate - Line and Transformation Connection Service Rate - Interval Metered < 1,000 kW
I189: Retail Transmission Rate - Line and Transformation Connection Service Rate FOR ALL SERVICE AREAS EXCEPT HENSALL
I190: Retail Transmission Rate - Line and Transformation Connection Service Rate - Interval Metered > 1,000 kW
I191: Retail Transmission Rate - Line Connection Service Rate
I192: Retail Transmission Rate - Network Service Rate
I193: Retail Transmission Rate - Network Service Rate - (less than 1,000 kW)
I194: Retail Transmission Rate - Network Service Rate - Interval Metered
I195: Retail Transmission Rate - Network Service Rate - Interval Metered (1,000 to 4,999 kW)
I196: Retail Transmission Rate - Network Service Rate - Interval Metered (less than 1,000 kW)
I197: Retail Transmission Rate - Network Service Rate - Interval Metered > 1,000 kW
I198: Retail Transmission Rate - Transformation Connection Service Rate
I199: Rider for Global Adjustment Sub-Account Disposition (2012) - effective until April 30, 2016 Applicable only for Non-RPP Customers
I200: Rural or Remote Electricity Rate Protection Charge (RRRP)
... 14 more rows

Sheet Sheet1 (hidden)
